 Batch Number,Vendor Name,Invoice Number, Line,Line Amount,Account Description,Issue Date ,Total Amount Paid,Department,Pro Class
902481,ROYAL MAIL====================,AD5831,1,350,DAY TO DAY MINOR IMPS,05/01/2015,350,Property PFI,Financial Services
902482,ICLEI,I 14 12 136 24127,1,"3,129.83",PROFESSIONAL DEVELOPMENT,05/01/2015,"3,129.83",EU Fired-Up Project,Facilities & Management S
902484,FFC LONDON SHOP===============,TSW17659  20/12/2014,1,787.5,GENERAL CONSUMABLES,07/01/2015,"3,187.50",Procurement,Fire & Rescue
902484,FFC LONDON SHOP===============,TSW17659  20/12/2014,2,"2,400.00",GENERAL CONSUMABLES,07/01/2015,,Procurement,Fire & Rescue
231214E,ADVANCED FURNITURE============,66214,1,"1,080.00",PURCHASES-FURNITURE,08/01/2015,"1,080.00",Property PFI,Furniture
231214E,ADVANCED FURNITURE============,66216,1,945,PURCHASES-COMPUTER/EQUIPMENT,08/01/2015,945,Property PFI,Furniture
181214E,ADAM PHONES LTD===============,1083549,1,480,CELLULAR TELEPHONES,08/01/2015,522,Information and Communication Technology,ICT
181214E,ADAM PHONES LTD===============,1083549,2,42,CELLULAR TELEPHONES,08/01/2015,,Information and Communication Technology,ICT
231214E,CHANGING YOUNG MINDS,081214 & 101214,1,150,GENERAL,08/01/2015,300,LIFE - LFB Funded,Human Resources
231214E,CHANGING YOUNG MINDS,081214 & 101214,2,150,GENERAL,08/01/2015,,LIFE - LFB Funded,Human Resources
221214C,BACP ENTERPRISES LTD==========,100260J,1,374,SUBSCRIPTIONS,08/01/2015,374,HR Excluding Secondments,Financial Services
231214E,*SPRUE SAFETY PRODUCTS LTD====,1068546,1,800,FIRE DETECTORS,08/01/2015,800,Operations Non Fire Stations,Health & Safety
221214C,SILVERSANDS LIMITED===========,121575,1,"4,275.00",PURCHASES-SOFTWARE,08/01/2015,"5,467.50",Information and Communication Technology,ICT
221214C,SILVERSANDS LIMITED===========,121575,2,"1,192.50",PURCHASES-SOFTWARE,08/01/2015,,Information and Communication Technology,ICT
221214C,OPERATIONAL RESEARCH IN HEALTH,125Y/LFB1/51,1,"8,433.33",CONSULTANTS,08/01/2015,"8,433.33",Strategy & Performance,Consultancy
050115G,OPERATIONAL RESEARCH IN HEALTH,136Y/LFBD6/1,1,"6,200.00",CONSULTANTS,08/01/2015,"6,200.00",National Co-ordination Centre,Consultancy
221214C,RICOH IMAGING UK LTD,1400146840,1,339.54,OPERATIONAL EQUIP-PURCHASE,08/01/2015,339.54,Regulatory Fire Safety,Facilities & Management S
181214E,BUREAU VERITAS HS&E LTD=======,14020525,1,"96,450.00",SCIENTIFIC SERVICES,08/01/2015,"96,450.00",Procurement,Environmental Services
231214E,SPECTRUM======================,1439,1,270,SPECIALIST EQUIPMENT,08/01/2015,270,Communications,Facilities & Management S
221214C,RESPIREX======================,149150,1,500,REPAIR & MAINTENANCE,08/01/2015,500,Technical And Service Support,Clothing
231214E,UK TAPES LTD==================,152972,1,"1,366.56",GENERAL CONSUMABLES,08/01/2015,"1,366.56",Procurement,Health & Safety
050115G,ENTEL UK LTD==================,160540,1,600,RADIO,08/01/2015,"1,415.65",Information and Communication Technology,ICT
050115G,ENTEL UK LTD==================,160540,2,525,RADIO,08/01/2015,,Information and Communication Technology,ICT
050115G,ENTEL UK LTD==================,160540,3,33.7,RADIO,08/01/2015,,Information and Communication Technology,ICT
050115G,ENTEL UK LTD==================,160540,4,160.75,RADIO,08/01/2015,,Information and Communication Technology,ICT
050115G,ENTEL UK LTD==================,160540,5,96.2,RADIO,08/01/2015,,Information and Communication Technology,ICT
221214C,GREATER LONDON AUTHORITY======,1800004498,1,"28,525.80",GLA GROUP SHARED SERVICES,08/01/2015,"28,525.80",Legal & Democratic Services,Fire & Rescue
050115G,FUTURE SAFETY LTD=============,2271,1,580,OPERATIONAL EQUIP-PURCHASE,08/01/2015,"1,330.00",Mass Casualty Response Project,Clothing
050115G,FUTURE SAFETY LTD=============,2271,2,580,OPERATIONAL EQUIP-PURCHASE,08/01/2015,,Mass Casualty Response Project,Clothing
050115G,FUTURE SAFETY LTD=============,2271,3,160,OPERATIONAL EQUIP-PURCHASE,08/01/2015,,Mass Casualty Response Project,Clothing
050115G,FUTURE SAFETY LTD=============,2271,4,10,REPAIR & MAINTENANCE,08/01/2015,,Technical And Service Support,Clothing
050115G,*LOCKHART CATERING EQUIPMENT,2328708,1,113.52,CATERING EQUIPMENT,08/01/2015,274.96,Operations Fire Stations,Catering
050115G,*LOCKHART CATERING EQUIPMENT,2328708,2,8.22,CATERING EQUIPMENT,08/01/2015,,Operations Fire Stations,Catering
050115G,*LOCKHART CATERING EQUIPMENT,2328708,3,56.76,CATERING EQUIPMENT,08/01/2015,,Operations Fire Stations,Catering
050115G,*LOCKHART CATERING EQUIPMENT,2328708,4,10.88,CATERING EQUIPMENT,08/01/2015,,Operations Fire Stations,Catering
050115G,*LOCKHART CATERING EQUIPMENT,2328708,5,6.53,CATERING EQUIPMENT,08/01/2015,,Operations Fire Stations,Catering
050115G,*LOCKHART CATERING EQUIPMENT,2328708,6,6.53,CATERING EQUIPMENT,08/01/2015,,Operations Fire Stations,Catering
050115G,*LOCKHART CATERING EQUIPMENT,2328708,7,4.24,CATERING EQUIPMENT,08/01/2015,,Operations Fire Stations,Catering
050115G,*LOCKHART CATERING EQUIPMENT,2328708,8,11.38,CATERING EQUIPMENT,08/01/2015,,Operations Fire Stations,Catering
050115G,*LOCKHART CATERING EQUIPMENT,2328708,9,32.52,CATERING EQUIPMENT,08/01/2015,,Operations Fire Stations,Catering
050115G,*LOCKHART CATERING EQUIPMENT,2328708,10,6.97,CATERING EQUIPMENT,08/01/2015,,Operations Fire Stations,Catering
050115G,*LOCKHART CATERING EQUIPMENT,2328708,11,7.46,CATERING EQUIPMENT,08/01/2015,,Operations Fire Stations,Catering
050115G,*LOCKHART CATERING EQUIPMENT,2328708,12,2.14,CATERING EQUIPMENT,08/01/2015,,Operations Fire Stations,Catering
050115G,*LOCKHART CATERING EQUIPMENT,2328708,13,1.96,CATERING EQUIPMENT,08/01/2015,,Operations Fire Stations,Catering
050115G,*LOCKHART CATERING EQUIPMENT,2328708,14,0.43,CATERING EQUIPMENT,08/01/2015,,Operations Fire Stations,Catering
050115G,*LOCKHART CATERING EQUIPMENT,2328708,15,0.48,CATERING EQUIPMENT,08/01/2015,,Operations Fire Stations,Catering
050115G,*LOCKHART CATERING EQUIPMENT,2328708,16,4.94,CATERING EQUIPMENT,08/01/2015,,Operations Fire Stations,Catering
231214E,CHARTERBRAE LIMITED===========,24184,1,917.2,PURCHASES-FURNITURE,08/01/2015,917.2,Property PFI,Furniture
800054964,ADECCO UK LIMITED=============,26941551,1,263.76,FRS STAFF AGENCY,08/01/2015,263.76,Regulatory Fire Safety,Human Resources
800055012,ADECCO UK LIMITED=============,26948907,1,499.52,FRS STAFF AGENCY,08/01/2015,499.52,Operational Directorates Support Group,Human Resources
800055014,ADECCO UK LIMITED=============,26948911,1,624.4,FRS STAFF AGENCY,08/01/2015,624.4,Operations Non Fire Stations,Human Resources
800055026,ADECCO UK LIMITED=============,26948920,1,893.2,FRS STAFF AGENCY,08/01/2015,893.2,Vehicle & Equipment Programme,Human Resources
800055027,ADECCO UK LIMITED=============,26948921,1,624.4,FRS STAFF AGENCY,08/01/2015,624.4,Operational Directorates Support Group,Human Resources
800055031,ADECCO UK LIMITED=============,26948926,1,439.6,FRS STAFF AGENCY,08/01/2015,439.6,Regulatory Fire Safety,Human Resources
800055067,ADECCO UK LIMITED=============,26952675,1,"1,025.00",FRS STAFF AGENCY,08/01/2015,"1,025.00",Information and Communication Technology,Human Resources
800055068,ADECCO UK LIMITED=============,26952676,1,"1,281.25",FRS STAFF AGENCY,08/01/2015,"1,281.25",Information and Communication Technology,Human Resources
800055069,ADECCO UK LIMITED=============,26952677,1,"1,281.25",FRS STAFF AGENCY,08/01/2015,"1,281.25",Information and Communication Technology,Human Resources
800055070,ADECCO UK LIMITED=============,26952678,1,"1,281.25",FRS STAFF AGENCY,08/01/2015,"1,281.25",Information and Communication Technology,Human Resources
800055235,ADECCO UK LIMITED=============,26956384,1,624.4,FRS STAFF AGENCY,08/01/2015,624.4,Operations Non Fire Stations,Human Resources
800055245,ADECCO UK LIMITED=============,26956391,1,535.92,FRS STAFF AGENCY,08/01/2015,535.92,Vehicle & Equipment Programme,Human Resources
800055250,ADECCO UK LIMITED=============,26956396,1,439.6,FRS STAFF AGENCY,08/01/2015,439.6,Regulatory Fire Safety,Human Resources
800055319,ADECCO UK LIMITED=============,26963807,1,624.4,FRS STAFF AGENCY,08/01/2015,624.4,Operations Non Fire Stations,Human Resources
800055325,ADECCO UK LIMITED=============,26963813,1,893.2,FRS STAFF AGENCY,08/01/2015,893.2,Vehicle & Equipment Programme,Human Resources
800055345,ADECCO UK LIMITED=============,26963833,1,499.52,FRS STAFF AGENCY,08/01/2015,499.52,Regulatory Fire Safety,Human Resources
800055361,ADECCO UK LIMITED=============,26968296,1,"1,177.40",FRS STAFF AGENCY,08/01/2015,"1,177.40",Communications,Human Resources
800055360,ADECCO UK LIMITED=============,26968297,1,"1,177.40",FRS STAFF AGENCY,08/01/2015,"1,177.40",Communications,Human Resources
800055362,ADECCO UK LIMITED=============,26968302,1,"1,537.50",FRS STAFF AGENCY,08/01/2015,"1,537.50",Information and Communication Technology,Human Resources
800055367,ADECCO UK LIMITED=============,26971950,1,624.4,FRS STAFF AGENCY,08/01/2015,624.4,Operations Non Fire Stations,Human Resources
800055394,ADECCO UK LIMITED=============,26971977,1,285.44,FRS STAFF AGENCY,08/01/2015,285.44,Regulatory Fire Safety,Human Resources
800055396,ADECCO UK LIMITED=============,26975649,1,"1,177.40",FRS STAFF AGENCY,08/01/2015,"1,177.40",Communications,Human Resources
800055397,ADECCO UK LIMITED=============,26975650,1,"1,177.40",FRS STAFF AGENCY,08/01/2015,"1,177.40",Communications,Human Resources
800055395,ADECCO UK LIMITED=============,26975652,1,"1,025.00",FRS STAFF AGENCY,08/01/2015,"1,025.00",Information and Communication Technology,Human Resources
800055973,ADECCO UK LIMITED=============,26994144,1,439.6,FRS STAFF AGENCY,08/01/2015,439.6,Technical And Service Support,Human Resources
800055984,ADECCO UK LIMITED=============,26998338,1,"1,177.40",FRS STAFF AGENCY,08/01/2015,"1,177.40",Communications,Human Resources
800056656,ADECCO UK LIMITED=============,27002235,1,624.4,FRS STAFF AGENCY,08/01/2015,624.4,Operations Non Fire Stations,Human Resources
800056689,ADECCO UK LIMITED=============,27006039,1,"1,177.40",FRS STAFF AGENCY,08/01/2015,"1,177.40",Communications,Human Resources
800056683,ADECCO UK LIMITED=============,27006048,1,"1,281.25",FRS STAFF AGENCY,08/01/2015,"1,281.25",Information and Communication Technology,Human Resources
800056693,ADECCO UK LIMITED=============,27008881,1,401.92,FRS STAFF AGENCY,08/01/2015,401.92,Regulatory Fire Safety,Human Resources
800056694,ADECCO UK LIMITED=============,27008882,1,439.6,FRS STAFF AGENCY,08/01/2015,439.6,Regulatory Fire Safety,Human Resources
800056697,ADECCO UK LIMITED=============,27008885,1,439.6,FRS STAFF AGENCY,08/01/2015,439.6,Technical And Service Support,Human Resources
800056700,ADECCO UK LIMITED=============,27008888,1,439.6,FRS STAFF AGENCY,08/01/2015,439.6,Regulatory Fire Safety,Human Resources
800056701,ADECCO UK LIMITED=============,27008889,1,439.6,FRS STAFF AGENCY,08/01/2015,439.6,Regulatory Fire Safety,Human Resources
800056702,ADECCO UK LIMITED=============,27008890,1,356.8,FRS STAFF AGENCY,08/01/2015,356.8,Regulatory Fire Safety,Human Resources
800056703,ADECCO UK LIMITED=============,27008891,1,"1,250.77",FRS STAFF AGENCY,08/01/2015,"1,250.77",Legal & Democratic Services,Human Resources
800056705,ADECCO UK LIMITED=============,27008893,1,374.64,FRS STAFF AGENCY,08/01/2015,374.64,Operational Directorates Support Group,Human Resources
800056706,ADECCO UK LIMITED=============,27008894,1,635.17,FRS STAFF AGENCY,08/01/2015,635.17,Corporate Management Secretariat,Human Resources
800056708,ADECCO UK LIMITED=============,27008896,1,996.04,FRS STAFF AGENCY,08/01/2015,996.04,Technical And Service Support,Human Resources
800056709,ADECCO UK LIMITED=============,27008897,1,720.16,FRS STAFF AGENCY,08/01/2015,720.16,National Operational Guidance Project,Human Resources
800056710,ADECCO UK LIMITED=============,27008898,1,624.4,FRS STAFF AGENCY,08/01/2015,624.4,Operations Non Fire Stations,Human Resources
800056712,ADECCO UK LIMITED=============,27008900,1,499.52,FRS STAFF AGENCY,08/01/2015,499.52,Regulatory Fire Safety,Human Resources
800056717,ADECCO UK LIMITED=============,27008905,1,439.6,FRS STAFF AGENCY,08/01/2015,439.6,Technical And Service Support,Human Resources
800056718,ADECCO UK LIMITED=============,27008906,1,499.52,FRS STAFF AGENCY,08/01/2015,499.52,Operations Non Fire Stations,Human Resources
800056719,ADECCO UK LIMITED=============,27008907,1,624.4,FRS STAFF AGENCY,08/01/2015,624.4,Operational Resilience,Human Resources
800056720,ADECCO UK LIMITED=============,27008908,1,973.14,FRS STAFF AGENCY,08/01/2015,973.14,Review of Property Services,Human Resources
800056721,ADECCO UK LIMITED=============,27008909,1,"1,445.40",FRS STAFF AGENCY,08/01/2015,"1,445.40",National Operational Guidance Project,Human Resources
800056722,ADECCO UK LIMITED=============,27008910,1,624.4,FRS STAFF AGENCY,08/01/2015,624.4,Operational Directorates Support Group,Human Resources
800056723,ADECCO UK LIMITED=============,27008911,1,553.04,FRS STAFF AGENCY,08/01/2015,553.04,Operational Directorates Support Group,Human Resources
800056725,ADECCO UK LIMITED=============,27008913,1,499.52,FRS STAFF AGENCY,08/01/2015,499.52,Regulatory Fire Safety,Human Resources
800056728,ADECCO UK LIMITED=============,27008916,1,554.75,FRS STAFF AGENCY,08/01/2015,554.75,Strategy & Performance,Human Resources
800056739,ADECCO UK LIMITED=============,27015841,1,439.6,FRS STAFF AGENCY,08/01/2015,439.6,Regulatory Fire Safety,Human Resources
800056742,ADECCO UK LIMITED=============,27015844,1,439.6,FRS STAFF AGENCY,08/01/2015,439.6,Technical And Service Support,Human Resources
800056745,ADECCO UK LIMITED=============,27015847,1,439.6,FRS STAFF AGENCY,08/01/2015,439.6,Regulatory Fire Safety,Human Resources
800056746,ADECCO UK LIMITED=============,27015848,1,420.76,FRS STAFF AGENCY,08/01/2015,420.76,Operational Directorates Support Group,Human Resources
800056747,ADECCO UK LIMITED=============,27015849,1,"1,445.40",FRS STAFF AGENCY,08/01/2015,"1,445.40",National Operational Guidance Project,Human Resources
800056748,ADECCO UK LIMITED=============,27015850,1,733.21,FRS STAFF AGENCY,08/01/2015,733.21,Legal & Democratic Services,Human Resources
800056750,ADECCO UK LIMITED=============,27015852,1,499.52,FRS STAFF AGENCY,08/01/2015,499.52,Operational Directorates Support Group,Human Resources
800056751,ADECCO UK LIMITED=============,27015853,1,635.17,FRS STAFF AGENCY,08/01/2015,635.17,Corporate Management Secretariat,Human Resources
800056753,ADECCO UK LIMITED=============,27015855,1,996.04,FRS STAFF AGENCY,08/01/2015,996.04,Technical And Service Support,Human Resources
800056754,ADECCO UK LIMITED=============,27015856,1,900.2,FRS STAFF AGENCY,08/01/2015,900.2,National Operational Guidance Project,Human Resources
800056755,ADECCO UK LIMITED=============,27015857,1,624.4,FRS STAFF AGENCY,08/01/2015,624.4,Operations Non Fire Stations,Human Resources
800056756,ADECCO UK LIMITED=============,27015858,1,624.4,FRS STAFF AGENCY,08/01/2015,624.4,Regulatory Fire Safety,Human Resources
800056761,ADECCO UK LIMITED=============,27015863,1,439.6,FRS STAFF AGENCY,08/01/2015,439.6,Technical And Service Support,Human Resources
800056762,ADECCO UK LIMITED=============,27015864,1,624.4,FRS STAFF AGENCY,08/01/2015,624.4,Operations Non Fire Stations,Human Resources
800056763,ADECCO UK LIMITED=============,27015865,1,973.14,FRS STAFF AGENCY,08/01/2015,973.14,Review of Property Services,Human Resources
800056765,ADECCO UK LIMITED=============,27015867,1,544.12,FRS STAFF AGENCY,08/01/2015,544.12,Operational Directorates Support Group,Human Resources
800056767,ADECCO UK LIMITED=============,27015869,1,374.64,FRS STAFF AGENCY,08/01/2015,374.64,Regulatory Fire Safety,Human Resources
800056768,ADECCO UK LIMITED=============,27015870,1,263.76,FRS STAFF AGENCY,08/01/2015,263.76,Technical And Service Support,Human Resources
800056769,ADECCO UK LIMITED=============,27015871,1,508.44,FRS STAFF AGENCY,08/01/2015,508.44,Regulatory Fire Safety,Human Resources
800056772,ADECCO UK LIMITED=============,27015874,1,554.75,FRS STAFF AGENCY,08/01/2015,554.75,Strategy & Performance,Human Resources
800056774,ADECCO UK LIMITED=============,27019651,1,"1,131.20",FRS STAFF AGENCY,08/01/2015,"1,131.20",Technical And Service Support,Human Resources
800056775,ADECCO UK LIMITED=============,27019652,1,"1,131.20",FRS STAFF AGENCY,08/01/2015,"1,131.20",Technical And Service Support,Human Resources
800056776,ADECCO UK LIMITED=============,27019653,1,"1,131.20",FRS STAFF AGENCY,08/01/2015,"1,131.20",Technical And Service Support,Human Resources
800056784,ADECCO UK LIMITED=============,27019654,1,941.92,FRS STAFF AGENCY,08/01/2015,941.92,Communications,Human Resources
800056785,ADECCO UK LIMITED=============,27019655,1,"1,177.40",FRS STAFF AGENCY,08/01/2015,"1,177.40",Communications,Human Resources
800056786,ADECCO UK LIMITED=============,27019656,1,"1,241.25",FRS STAFF AGENCY,08/01/2015,"1,241.25",Communications,Human Resources
800056781,ADECCO UK LIMITED=============,27019663,1,"1,281.25",FRS STAFF AGENCY,08/01/2015,"1,281.25",Information and Communication Technology,Human Resources
800056782,ADECCO UK LIMITED=============,27019664,1,"1,281.25",FRS STAFF AGENCY,08/01/2015,"1,281.25",Information and Communication Technology,Human Resources
800056790,ADECCO UK LIMITED=============,27022902,1,439.6,FRS STAFF AGENCY,08/01/2015,439.6,Strategy & Performance,Human Resources
800056791,ADECCO UK LIMITED=============,27022903,1,439.6,FRS STAFF AGENCY,08/01/2015,439.6,Regulatory Fire Safety,Human Resources
800056794,ADECCO UK LIMITED=============,27022906,1,439.6,FRS STAFF AGENCY,08/01/2015,439.6,Technical And Service Support,Human Resources
800056797,ADECCO UK LIMITED=============,27022909,1,351.68,FRS STAFF AGENCY,08/01/2015,351.68,Regulatory Fire Safety,Human Resources
800056798,ADECCO UK LIMITED=============,27022910,1,408.2,FRS STAFF AGENCY,08/01/2015,408.2,Operational Directorates Support Group,Human Resources
800056799,ADECCO UK LIMITED=============,27022911,1,"1,337.03",FRS STAFF AGENCY,08/01/2015,"1,337.03",Legal & Democratic Services,Human Resources
800056801,ADECCO UK LIMITED=============,27022913,1,624.4,FRS STAFF AGENCY,08/01/2015,624.4,Operational Directorates Support Group,Human Resources
800056802,ADECCO UK LIMITED=============,27022914,1,"1,270.34",FRS STAFF AGENCY,08/01/2015,"1,270.34",Corporate Management Secretariat,Human Resources
800056804,ADECCO UK LIMITED=============,27022916,1,"1,076.80",FRS STAFF AGENCY,08/01/2015,"1,076.80",Technical And Service Support,Human Resources
800056806,ADECCO UK LIMITED=============,27022918,1,624.4,FRS STAFF AGENCY,08/01/2015,624.4,Operations Non Fire Stations,Human Resources
800056809,ADECCO UK LIMITED=============,27022921,1,351.68,FRS STAFF AGENCY,08/01/2015,351.68,Technical And Service Support,Human Resources
800056810,ADECCO UK LIMITED=============,27022922,1,624.4,FRS STAFF AGENCY,08/01/2015,624.4,Operations Non Fire Stations,Human Resources
800056811,ADECCO UK LIMITED=============,27022923,1,973.14,FRS STAFF AGENCY,08/01/2015,973.14,Review of Property Services,Human Resources
800056812,ADECCO UK LIMITED=============,27022924,1,624.4,FRS STAFF AGENCY,08/01/2015,624.4,Procurement,Human Resources
800056818,ADECCO UK LIMITED=============,27022930,1,554.75,FRS STAFF AGENCY,08/01/2015,554.75,Strategy & Performance,Human Resources
800056819,ADECCO UK LIMITED=============,27022931,1,561.96,FRS STAFF AGENCY,08/01/2015,561.96,Operational Directorates Support Group,Human Resources
800056820,ADECCO UK LIMITED=============,27022932,1,263.76,FRS STAFF AGENCY,08/01/2015,263.76,HR Excluding Secondments,Human Resources
800056952,ADECCO UK LIMITED=============,27029345,1,263.76,FRS STAFF AGENCY,08/01/2015,263.76,Technical And Service Support,Human Resources
800056953,ADECCO UK LIMITED=============,27029346,1,540.12,FRS STAFF AGENCY,08/01/2015,540.12,National Operational Guidance Project,Human Resources
800056955,ADECCO UK LIMITED=============,27029348,1,263.76,FRS STAFF AGENCY,08/01/2015,263.76,Regulatory Fire Safety,Human Resources
800056956,ADECCO UK LIMITED=============,27029349,1,263.76,FRS STAFF AGENCY,08/01/2015,263.76,Operational Directorates Support Group,Human Resources
800056957,ADECCO UK LIMITED=============,27029350,1,948.86,FRS STAFF AGENCY,08/01/2015,948.86,Legal & Democratic Services,Human Resources
800056958,ADECCO UK LIMITED=============,27029351,1,357.28,FRS STAFF AGENCY,08/01/2015,357.28,Vehicle & Equipment Programme,Human Resources
800056959,ADECCO UK LIMITED=============,27029352,1,374.64,FRS STAFF AGENCY,08/01/2015,374.64,Operational Directorates Support Group,Human Resources
800056948,ADECCO UK LIMITED=============,27029353,1,"1,471.35",FRS STAFF AGENCY,08/01/2015,"1,471.35",Legal & Democratic Services,Human Resources
800056949,ADECCO UK LIMITED=============,27029354,1,646.08,FRS STAFF AGENCY,08/01/2015,646.08,Technical And Service Support,Human Resources
800056941,ADECCO UK LIMITED=============,27029355,1,540.12,FRS STAFF AGENCY,08/01/2015,540.12,National Operational Guidance Project,Human Resources
800056945,ADECCO UK LIMITED=============,27029356,1,374.64,FRS STAFF AGENCY,08/01/2015,374.64,Operations Non Fire Stations,Human Resources
800056943,ADECCO UK LIMITED=============,27029360,1,624.4,FRS STAFF AGENCY,08/01/2015,624.4,Operations Non Fire Stations,Human Resources
800056960,ADECCO UK LIMITED=============,27029362,1,374.64,FRS STAFF AGENCY,08/01/2015,374.64,Operations Non Fire Stations,Human Resources
800056962,ADECCO UK LIMITED=============,27029363,1,695.1,FRS STAFF AGENCY,08/01/2015,695.1,Review of Property Services,Human Resources
800056963,ADECCO UK LIMITED=============,27029364,1,374.64,FRS STAFF AGENCY,08/01/2015,374.64,Procurement,Human Resources
800056966,ADECCO UK LIMITED=============,27029365,1,263.76,FRS STAFF AGENCY,08/01/2015,263.76,Technical And Service Support,Human Resources
800056964,ADECCO UK LIMITED=============,27029371,1,498.24,FRS STAFF AGENCY,08/01/2015,498.24,Mobilising,Human Resources
800056965,ADECCO UK LIMITED=============,27029372,1,374.64,FRS STAFF AGENCY,08/01/2015,374.64,Strategy & Performance,Human Resources
800056961,ADECCO UK LIMITED=============,27029373,1,263.76,FRS STAFF AGENCY,08/01/2015,263.76,Technical And Service Support,Human Resources
231214E,RS COMPONENTS LTD=============,277981542,1,380.72,PROTECTIVE EQUIPT - PARTS,08/01/2015,380.72,Technical and Service Support,Building Constr Materials
221214C,DRAEGER SAFETY UK LIMITED=====,2910002316,1,"2,295.40",PROTECTIVE EQUIPT - PARTS,08/01/2015,"2,295.40",Technical and Service Support,Fire & Rescue
221214C,DRAEGER SAFETY UK LIMITED=====,2910002671,1,543.6,PROTECTIVE EQUIPT - PARTS,08/01/2015,809.1,Technical and Service Support,Fire & Rescue
221214C,DRAEGER SAFETY UK LIMITED=====,2910002671,2,265.5,PROTECTIVE EQUIPT - PARTS,08/01/2015,,Technical and Service Support,Fire & Rescue
221214C,DRAEGER SAFETY UK LIMITED=====,2910002753,1,150,PROTECTIVE EQUIPT - PARTS,08/01/2015,"1,778.30",Technical and Service Support,Fire & Rescue
221214C,DRAEGER SAFETY UK LIMITED=====,2910002753,2,111.1,PROTECTIVE EQUIPT - PARTS,08/01/2015,,Technical and Service Support,Fire & Rescue
221214C,DRAEGER SAFETY UK LIMITED=====,2910002753,3,432.6,PROTECTIVE EQUIPT - PARTS,08/01/2015,,Technical and Service Support,Fire & Rescue
221214C,DRAEGER SAFETY UK LIMITED=====,2910002753,4,8.8,PROTECTIVE EQUIPT - PARTS,08/01/2015,,Technical and Service Support,Fire & Rescue
221214C,DRAEGER SAFETY UK LIMITED=====,2910002753,5,851.1,PROTECTIVE EQUIPT - PARTS,08/01/2015,,Technical and Service Support,Fire & Rescue
221214C,DRAEGER SAFETY UK LIMITED=====,2910002753,6,213.9,PROTECTIVE EQUIPT - PARTS,08/01/2015,,Technical and Service Support,Fire & Rescue
221214C,DRAEGER SAFETY UK LIMITED=====,2910002753,7,10.8,PROTECTIVE EQUIPT - PARTS,08/01/2015,,Technical and Service Support,Fire & Rescue
221214C,DRAEGER SAFETY UK LIMITED=====,2910003120,1,796.5,PROTECTIVE EQUIPT - PARTS,08/01/2015,796.5,Technical and Service Support,Fire & Rescue
221214C,DRAEGER SAFETY UK LIMITED=====,2910003261,1,162,PROTECTIVE EQUIPT - PARTS,08/01/2015,"3,880.20",Technical and Service Support,Fire & Rescue
221214C,DRAEGER SAFETY UK LIMITED=====,2910003261,2,484.8,PROTECTIVE EQUIPT - PARTS,08/01/2015,,Technical and Service Support,Fire & Rescue
221214C,DRAEGER SAFETY UK LIMITED=====,2910003261,3,354.6,PROTECTIVE EQUIPT - PARTS,08/01/2015,,Technical and Service Support,Fire & Rescue
221214C,DRAEGER SAFETY UK LIMITED=====,2910003261,4,"1,138.60",PROTECTIVE EQUIPT - PARTS,08/01/2015,,Technical and Service Support,Fire & Rescue
221214C,DRAEGER SAFETY UK LIMITED=====,2910003261,5,380.2,PROTECTIVE EQUIPT - PARTS,08/01/2015,,Technical and Service Support,Fire & Rescue
221214C,DRAEGER SAFETY UK LIMITED=====,2910003261,6,226,PROTECTIVE EQUIPT - PARTS,08/01/2015,,Technical and Service Support,Fire & Rescue
221214C,DRAEGER SAFETY UK LIMITED=====,2910003261,7,76,PROTECTIVE EQUIPT - PARTS,08/01/2015,,Technical and Service Support,Fire & Rescue
221214C,DRAEGER SAFETY UK LIMITED=====,2910003261,8,50,PROTECTIVE EQUIPT - PARTS,08/01/2015,,Technical and Service Support,Fire & Rescue
221214C,DRAEGER SAFETY UK LIMITED=====,2910003261,9,876,PROTECTIVE EQUIPT - PARTS,08/01/2015,,Technical and Service Support,Fire & Rescue
221214C,DRAEGER SAFETY UK LIMITED=====,2910003261,10,132,PROTECTIVE EQUIPT - PARTS,08/01/2015,,Technical and Service Support,Fire & Rescue
221214C,DRAEGER SAFETY UK LIMITED=====,2910003385,1,"1,138.60",PROTECTIVE EQUIPT - PARTS,08/01/2015,"1,533.20",Technical and Service Support,Fire & Rescue
221214C,DRAEGER SAFETY UK LIMITED=====,2910003385,2,380.2,PROTECTIVE EQUIPT - PARTS,08/01/2015,,Technical and Service Support,Fire & Rescue
221214C,DRAEGER SAFETY UK LIMITED=====,2910003385,3,14.4,PROTECTIVE EQUIPT - PARTS,08/01/2015,,Technical and Service Support,Fire & Rescue
221214C,DRAEGER SAFETY UK LIMITED=====,2910003407,1,350,REPAIR & MAINTENANCE,08/01/2015,350,Technical And Service Support,Fire & Rescue
221214C,DRAEGER SAFETY UK LIMITED=====,2910003468,1,427.8,PROTECTIVE EQUIPT - PARTS,08/01/2015,427.8,Technical and Service Support,Fire & Rescue
221214C,DRAEGER SAFETY UK LIMITED=====,2910003546,1,954.75,PROTECTIVE EQUIPT - PARTS,08/01/2015,954.75,Technical and Service Support,Fire & Rescue
221214C,DRAEGER SAFETY UK LIMITED=====,2910003547,1,954.75,PROTECTIVE EQUIPT - PARTS,08/01/2015,954.75,Technical and Service Support,Fire & Rescue
050115G,DRAEGER SAFETY UK LIMITED=====,2910003990,1,"2,354.71",PROTECTIVE EQUIPT - PARTS,08/01/2015,"2,354.71",Technical and Service Support,Fire & Rescue
050115G,DRAEGER SAFETY UK LIMITED=====,2910004079,1,547.2,GENERAL CONSUMABLES,08/01/2015,547.2,Procurement,Fire & Rescue
050115G,DRAEGER SAFETY UK LIMITED=====,2910004123,1,407.7,PROTECTIVE EQUIPT - PARTS,08/01/2015,407.7,Technical and Service Support,Fire & Rescue
050115G,DRAEGER SAFETY UK LIMITED=====,2910004124,1,254.6,PROTECTIVE EQUIPT - PARTS,08/01/2015,254.6,Technical and Service Support,Fire & Rescue
050115G,DRAEGER SAFETY UK LIMITED=====,2910004282,1,540.75,PROTECTIVE EQUIPT - PARTS,08/01/2015,540.75,Technical and Service Support,Fire & Rescue
221214C,DRAEGER SAFETY UK LIMITED=====,291002752,1,"2,269.60",PROTECTIVE EQUIPT - PARTS,08/01/2015,"2,810.35",Technical and Service Support,Fire & Rescue
221214C,DRAEGER SAFETY UK LIMITED=====,291002752,2,540.75,PROTECTIVE EQUIPT - PARTS,08/01/2015,,Technical and Service Support,Fire & Rescue
800056918,*BANNER BUSINESS SUPPLIES LTD=,29261114,1,269.28,STATIONERY CONSUMABLES,08/01/2015,269.28,Operations Fire Stations,Stationery
140912,THAMES WATER UTILITIES LTD====,2963180521~,1,293.02,WATER & SEWERAGE RATES,08/01/2015,293.02,Technical And Service Support,Utilities
231214E,STORM TECHNOLOGIES============,301048,1,350,DEVELOPMENT  EXPENSES-CONTRACT,08/01/2015,350,Property PFI,ICT
221214C,STORM TECHNOLOGIES============,301635,1,"4,873.56",ACQUISITIONS,08/01/2015,"6,380.40",Information and Communication Technology,ICT
221214C,STORM TECHNOLOGIES============,301635,2,"1,506.84",ACQUISITIONS,08/01/2015,,Information and Communication Technology,ICT
231214E,STORM TECHNOLOGIES============,304464,1,"1,064.85",ACQUISITIONS,08/01/2015,"1,064.85",Information and Communication Technology,ICT
231214E,DEALERSHIP SERVICES LTD,3159,1,79.8,CLOTHING,08/01/2015,"1,007.15",Community Safety Delivery,Clothing
231214E,DEALERSHIP SERVICES LTD,3159,2,145,CLOTHING,08/01/2015,,Community Safety Delivery,Clothing
231214E,DEALERSHIP SERVICES LTD,3159,3,109.25,CLOTHING,08/01/2015,,Community Safety Delivery,Clothing
231214E,DEALERSHIP SERVICES LTD,3159,4,109.25,CLOTHING,08/01/2015,,Community Safety Delivery,Clothing
231214E,DEALERSHIP SERVICES LTD,3159,5,134.25,CLOTHING,08/01/2015,,Community Safety Delivery,Clothing
231214E,DEALERSHIP SERVICES LTD,3159,6,134.25,CLOTHING,08/01/2015,,Community Safety Delivery,Clothing
231214E,DEALERSHIP SERVICES LTD,3159,7,26.85,CLOTHING,08/01/2015,,Community Safety Delivery,Clothing
231214E,DEALERSHIP SERVICES LTD,3159,8,134.25,CLOTHING,08/01/2015,,Community Safety Delivery,Clothing
231214E,DEALERSHIP SERVICES LTD,3159,9,134.25,CLOTHING,08/01/2015,,Community Safety Delivery,Clothing
140912,THAMES WATER UTILITIES LTD====,3367365430Y,1,396.97,WATER & SEWERAGE RATES,08/01/2015,396.97,Technical And Service Support,Utilities
231214E,HUNTERS CONTRACTS LIMITED,348365,1,501.45,PURCHASES-FURNITURE,08/01/2015,"1,313.01",Property PFI,Furniture
231214E,HUNTERS CONTRACTS LIMITED,348365,2,130.87,PURCHASES-FURNITURE,08/01/2015,,Property PFI,Furniture
231214E,HUNTERS CONTRACTS LIMITED,348365,3,261.74,PURCHASES-FURNITURE,08/01/2015,,Property PFI,Furniture
231214E,HUNTERS CONTRACTS LIMITED,348365,4,418.95,PURCHASES-FURNITURE,08/01/2015,,Property PFI,Furniture
140912,THAMES WATER UTILITIES LTD====,38201-85478M,1,392.83,WATER & SEWERAGE RATES,08/01/2015,392.83,Technical And Service Support,Utilities
221214C,COMPUTACENTRE================,3880360714,1,488.88,ACQUISITIONS,08/01/2015,488.88,Operations Fire Stations,ICT
221214C,TECHNIFORM GRAPHICS LTD=======,404261,1,775,FIXTURES & FITTINGS,08/01/2015,775,Communications,Building Constr Materials
221214C,THE HEIGHTEC GROUP LTD========,43394,1,"2,799.75",REPAIR & MAINTENANCE,08/01/2015,"2,799.75",Technical And Service Support,Fire & Rescue
050115G,FOCUS & VISION TECHNOLOGY LTD,43882,1,"1,322.24",MEDICAL EXPENSES CONTRACT,08/01/2015,"1,322.24",HR Excluding Secondments,Healthcare
140912,THAMES WATER UTILITIES LTD====,46264-21532M,1,330.88,WATER & SEWERAGE RATES,08/01/2015,330.88,Technical And Service Support,Utilities
231214E,SPORTSAFE UK LTD==============,465623,1,155.82,GYM EQUIPMENT,08/01/2015,314.76,Technical And Service Support,Sports & Playground Equip
231214E,SPORTSAFE UK LTD==============,465623,2,29,GYM EQUIPMENT,08/01/2015,,Technical And Service Support,Sports & Playground Equip
231214E,SPORTSAFE UK LTD==============,465623,3,59.99,GYM EQUIPMENT,08/01/2015,,Technical And Service Support,Sports & Playground Equip
231214E,SPORTSAFE UK LTD==============,465623,4,69.95,GYM EQUIPMENT,08/01/2015,,Technical And Service Support,Sports & Playground Equip
231214E,SPORTSAFE UK LTD==============,465624,1,195,GYM EQUIPMENT,08/01/2015,264,Technical And Service Support,Sports & Playground Equip
231214E,SPORTSAFE UK LTD==============,465624,2,69,GYM EQUIPMENT,08/01/2015,,Technical And Service Support,Sports & Playground Equip
231214E,SPORTSAFE UK LTD==============,465625,1,195,GYM EQUIPMENT,08/01/2015,890,Technical And Service Support,Sports & Playground Equip
231214E,SPORTSAFE UK LTD==============,465625,2,695,GYM EQUIPMENT,08/01/2015,,Technical And Service Support,Sports & Playground Equip
231214E,SPORTSAFE UK LTD==============,465626,1,290,GYM EQUIPMENT,08/01/2015,595.24,Technical And Service Support,Sports & Playground Equip
231214E,SPORTSAFE UK LTD==============,465626,2,73.14,GYM EQUIPMENT,08/01/2015,,Technical And Service Support,Sports & Playground Equip
231214E,SPORTSAFE UK LTD==============,465626,3,25.42,GYM EQUIPMENT,08/01/2015,,Technical And Service Support,Sports & Playground Equip
231214E,SPORTSAFE UK LTD==============,465626,4,83.74,GYM EQUIPMENT,08/01/2015,,Technical And Service Support,Sports & Playground Equip
231214E,SPORTSAFE UK LTD==============,465626,5,73.94,GYM EQUIPMENT,08/01/2015,,Technical And Service Support,Sports & Playground Equip
231214E,SPORTSAFE UK LTD==============,465626,6,49,GYM EQUIPMENT,08/01/2015,,Technical And Service Support,Sports & Playground Equip
800056834,*GREENHAM TRADING LTD=========,5668243,1,43.24,HYGIENE,08/01/2015,354.53,Operations Fire Stations,Cleaning & Janitorial
800056834,*GREENHAM TRADING LTD=========,5668243,2,17.7,HYGIENE,08/01/2015,,Operations Fire Stations,Cleaning & Janitorial
800056834,*GREENHAM TRADING LTD=========,5668243,3,10.26,HYGIENE,08/01/2015,,Operations Fire Stations,Cleaning & Janitorial
800056834,*GREENHAM TRADING LTD=========,5668243,4,35.52,HYGIENE,08/01/2015,,Operations Fire Stations,Cleaning & Janitorial
800056834,*GREENHAM TRADING LTD=========,5668243,5,16,HYGIENE,08/01/2015,,Operations Fire Stations,Cleaning & Janitorial
800056834,*GREENHAM TRADING LTD=========,5668243,6,19.76,HYGIENE,08/01/2015,,Operations Fire Stations,Cleaning & Janitorial
800056834,*GREENHAM TRADING LTD=========,5668243,7,10.7,HYGIENE,08/01/2015,,Operations Fire Stations,Cleaning & Janitorial
800056834,*GREENHAM TRADING LTD=========,5668243,8,10.7,HYGIENE,08/01/2015,,Operations Fire Stations,Cleaning & Janitorial
800056834,*GREENHAM TRADING LTD=========,5668243,9,40.75,HYGIENE,08/01/2015,,Operations Fire Stations,Cleaning & Janitorial
800056834,*GREENHAM TRADING LTD=========,5668243,10,118.9,HYGIENE,08/01/2015,,Operations Fire Stations,Cleaning & Janitorial
800056834,*GREENHAM TRADING LTD=========,5668243,11,31,HYGIENE,08/01/2015,,Operations Fire Stations,Cleaning & Janitorial
050115G,TOYOTA MATERIAL HANDLING UK LT,610153405,1,909.99,PURCHASE,08/01/2015,909.99,Procurement,Vehicle Management
221214C,GAS & AIR SERVICES (UK)=======,6543,1,"1,321.42",REPAIR & MAINTENANCE,08/01/2015,"1,321.42",Technical And Service Support,Building Constr Materials
050115G,GAS & AIR SERVICES (UK)=======,6544,1,313.6,REPAIR & MAINTENANCE,08/01/2015,313.6,Technical And Service Support,Building Constr Materials
191214C,BOON EDAM LTD,720576,1,480,STRATEGIC (CYCLICAL),08/01/2015,480,Technical And Service Support,Building Constr Materials
221214C,WESTMINSTER CATHEDRAL=========,738,1,"1,054.00",PUBLIC RELATIONS,08/01/2015,"1,054.00",Communications,Arts & Leisure Services
050115G,CANON (UK) LTD===============,770492220,1,390.86,OFFICE EQUIPMENT,08/01/2015,390.86,HR Excluding Secondments,ICT
221214C,TWO SERVICES LTD==============,79234,1,"2,726.00",PURCHASES-FURNITURE,08/01/2015,"5,798.00",Property PFI,Catering
221214C,TWO SERVICES LTD==============,79234,2,"2,852.00",PURCHASES-FURNITURE,08/01/2015,,Property PFI,Catering
221214C,TWO SERVICES LTD==============,79234,3,220,PURCHASES-FURNITURE,08/01/2015,,Property PFI,Catering
140912,SHARPE PRITCHARD==============,80146,1,"1,140.00",CONSULTANTS,08/01/2015,"1,140.00",Central Finance,Legal Services
050115G,ANGUS FIRE LIMITED,8028715,1,"6,049.00",PROTECTIVE EQUIPT - PARTS,08/01/2015,"8,175.00",Technical and Service Support,Fire & Rescue
050115G,ANGUS FIRE LIMITED,8028715,2,"2,047.00",PROTECTIVE EQUIPT - PARTS,08/01/2015,,Technical and Service Support,Fire & Rescue
050115G,ANGUS FIRE LIMITED,8028715,3,79,OPERATIONAL EQUIP-PURCHASE,08/01/2015,,Technical And Service Support,Fire & Rescue
050115G,ANGUS FIRE LIMITED,8028716,1,"3,629.40",OPERATIONAL EQUIP-PURCHASE,08/01/2015,"3,708.40",Technical And Service Support,Fire & Rescue
050115G,ANGUS FIRE LIMITED,8028716,2,79,OPERATIONAL EQUIP-PURCHASE,08/01/2015,,Technical And Service Support,Fire & Rescue
140912,THAMES WATER UTILITIES LTD====,84470-03310M,1,419.7,WATER & SEWERAGE RATES,08/01/2015,419.7,Technical And Service Support,Utilities
140912,LONDON PENSIONS FUND AUTHORITY,8581,1,"84,267.02",LOCAL GOVT PENSION SCHEME PAYM,08/01/2015,"84,267.02",Central Finance,Financial Services
140912,THAMES WATER UTILITIES LTD====,8962850520\,1,415.56,WATER & SEWERAGE RATES,08/01/2015,415.56,Technical And Service Support,Utilities
171214C,CAPITA SECURE INFO SOLUTIONS,94106797,1,"149,356.00",CAMS CONTRACT,08/01/2015,"149,356.00",Control & Mobilising Services,ICT
161214E,BANCROFT HINCHLEY LTD=========,9559,1,"3,250.00",PROFESSIONAL DEVELOPMENT,08/01/2015,"3,250.00",Technical And Service Support,Fire & Rescue
181214C,ASTEC SURVEYS LIMITED=========,ASL-14-404,1,725,ASBESTOS,08/01/2015,725,Technical and Service Support,Environmental Services
181214E,SURVITEC SERVICE &DISTRIBUTION,CD30806138,1,"1,416.60",PURCHASE,08/01/2015,"1,436.60",Technical And Service Support,Fire & Rescue
181214E,SURVITEC SERVICE &DISTRIBUTION,CD30806138,2,20,REPAIR & MAINTENANCE,08/01/2015,,Technical And Service Support,Fire & Rescue
050115G,SURVITEC SERVICE &DISTRIBUTION,CD30806453,1,166,PROTECTIVE EQUIPT - PARTS,08/01/2015,491,Technical and Service Support,Fire & Rescue
050115G,SURVITEC SERVICE &DISTRIBUTION,CD30806453,2,310,PROTECTIVE EQUIPT - PARTS,08/01/2015,,Technical and Service Support,Fire & Rescue
050115G,SURVITEC SERVICE &DISTRIBUTION,CD30806453,3,15,REPAIR & MAINTENANCE,08/01/2015,,Technical And Service Support,Fire & Rescue
221214C,E&S B DAVIS LTD,DAV/53654,1,"1,080.00",OPERATIONAL EQUIP-PURCHASE,08/01/2015,"1,080.00",Business Continuity,Environmental Services
800056939,ALLSTAR BUSINESS SOLUTIONS LTD,E2003980709,1,694.09,FUEL,08/01/2015,"16,732.23",Procurement,Vehicle Management
800056939,ALLSTAR BUSINESS SOLUTIONS LTD,E2003980709,2,648.84,FUEL,08/01/2015,,Operations Fire Stations,Vehicle Management
800056939,ALLSTAR BUSINESS SOLUTIONS LTD,E2003980709,3,585.67,FUEL,08/01/2015,,Operations Non Fire Stations,Vehicle Management
800056939,ALLSTAR BUSINESS SOLUTIONS LTD,E2003980709,4,486.36,FUEL,08/01/2015,,Operations Fire Stations,Vehicle Management
800056939,ALLSTAR BUSINESS SOLUTIONS LTD,E2003980709,5,426.44,FUEL,08/01/2015,,Operations Fire Stations,Vehicle Management
800056939,ALLSTAR BUSINESS SOLUTIONS LTD,E2003980709,6,424.37,FUEL,08/01/2015,,Operations Fire Stations,Vehicle Management
800056939,ALLSTAR BUSINESS SOLUTIONS LTD,E2003980709,7,361.53,FUEL,08/01/2015,,Operations Fire Stations,Vehicle Management
800056939,ALLSTAR BUSINESS SOLUTIONS LTD,E2003980709,8,344.22,FUEL,08/01/2015,,Operations Fire Stations,Vehicle Management
800056939,ALLSTAR BUSINESS SOLUTIONS LTD,E2003980709,9,338.92,FUEL,08/01/2015,,Business Continuity,Vehicle Management
800056939,ALLSTAR BUSINESS SOLUTIONS LTD,E2003980709,10,317.94,FUEL,08/01/2015,,Operations Fire Stations,Vehicle Management
800056939,ALLSTAR BUSINESS SOLUTIONS LTD,E2003980709,11,266.84,FUEL,08/01/2015,,Operations Fire Stations,Vehicle Management
800056939,ALLSTAR BUSINESS SOLUTIONS LTD,E2003980709,12,266.03,FUEL,08/01/2015,,Operations Fire Stations,Vehicle Management
800056939,ALLSTAR BUSINESS SOLUTIONS LTD,E2003980709,13,258.48,FUEL,08/01/2015,,Operations Fire Stations,Vehicle Management
800056939,ALLSTAR BUSINESS SOLUTIONS LTD,E2003980709,14,241.91,FUEL,08/01/2015,,Operations Fire Stations,Vehicle Management
800056939,ALLSTAR BUSINESS SOLUTIONS LTD,E2003980709,15,235.29,FUEL,08/01/2015,,Operations Fire Stations,Vehicle Management
800056939,ALLSTAR BUSINESS SOLUTIONS LTD,E2003980709,16,234.49,FUEL,08/01/2015,,Operations Fire Stations,Vehicle Management
800056939,ALLSTAR BUSINESS SOLUTIONS LTD,E2003980709,17,230.71,FUEL,08/01/2015,,Operations Fire Stations,Vehicle Management
800056939,ALLSTAR BUSINESS SOLUTIONS LTD,E2003980709,18,230.33,FUEL,08/01/2015,,Operations Fire Stations,Vehicle Management
800056939,ALLSTAR BUSINESS SOLUTIONS LTD,E2003980709,19,226.4,FUEL,08/01/2015,,Operations Fire Stations,Vehicle Management
800056939,ALLSTAR BUSINESS SOLUTIONS LTD,E2003980709,20,223.01,FUEL,08/01/2015,,Operations Fire Stations,Vehicle Management
800056939,ALLSTAR BUSINESS SOLUTIONS LTD,E2003980709,21,222.65,FUEL,08/01/2015,,Operations Fire Stations,Vehicle Management
800056939,ALLSTAR BUSINESS SOLUTIONS LTD,E2003980709,22,212.02,FUEL,08/01/2015,,Operations Fire Stations,Vehicle Management
800056939,ALLSTAR BUSINESS SOLUTIONS LTD,E2003980709,23,211.38,FUEL,08/01/2015,,Operations Fire Stations,Vehicle Management
800056939,ALLSTAR BUSINESS SOLUTIONS LTD,E2003980709,24,208,FUEL,08/01/2015,,Operations Fire Stations,Vehicle Management
800056939,ALLSTAR BUSINESS SOLUTIONS LTD,E2003980709,25,204.33,FUEL,08/01/2015,,Operations Fire Stations,Vehicle Management
800056939,ALLSTAR BUSINESS SOLUTIONS LTD,E2003980709,26,201.41,FUEL,08/01/2015,,Operations Fire Stations,Vehicle Management
800056939,ALLSTAR BUSINESS SOLUTIONS LTD,E2003980709,27,197.13,FUEL,08/01/2015,,Operations Fire Stations,Vehicle Management
800056939,ALLSTAR BUSINESS SOLUTIONS LTD,E2003980709,28,196.12,FUEL,08/01/2015,,Operations Fire Stations,Vehicle Management
800056939,ALLSTAR BUSINESS SOLUTIONS LTD,E2003980709,29,190.18,FUEL,08/01/2015,,Operations Fire Stations,Vehicle Management
800056939,ALLSTAR BUSINESS SOLUTIONS LTD,E2003980709,30,189.85,FUEL,08/01/2015,,Operations Fire Stations,Vehicle Management
800056939,ALLSTAR BUSINESS SOLUTIONS LTD,E2003980709,31,188.72,FUEL,08/01/2015,,Operations Fire Stations,Vehicle Management
800056939,ALLSTAR BUSINESS SOLUTIONS LTD,E2003980709,32,181.61,FUEL,08/01/2015,,Operations Fire Stations,Vehicle Management
800056939,ALLSTAR BUSINESS SOLUTIONS LTD,E2003980709,33,178.93,FUEL,08/01/2015,,Operations Fire Stations,Vehicle Management
800056939,ALLSTAR BUSINESS SOLUTIONS LTD,E2003980709,34,177.71,FUEL,08/01/2015,,Operations Fire Stations,Vehicle Management
800056939,ALLSTAR BUSINESS SOLUTIONS LTD,E2003980709,35,175.03,FUEL,08/01/2015,,Operations Fire Stations,Vehicle Management
800056939,ALLSTAR BUSINESS SOLUTIONS LTD,E2003980709,36,172.86,FUEL,08/01/2015,,Operations Fire Stations,Vehicle Management
800056939,ALLSTAR BUSINESS SOLUTIONS LTD,E2003980709,37,171.91,FUEL,08/01/2015,,Operations Fire Stations,Vehicle Management
800056939,ALLSTAR BUSINESS SOLUTIONS LTD,E2003980709,38,171.01,FUEL,08/01/2015,,Operations Fire Stations,Vehicle Management
800056939,ALLSTAR BUSINESS SOLUTIONS LTD,E2003980709,39,163.16,FUEL,08/01/2015,,Operations Fire Stations,Vehicle Management
800056939,ALLSTAR BUSINESS SOLUTIONS LTD,E2003980709,40,162.01,FUEL,08/01/2015,,Operations Fire Stations,Vehicle Management
800056939,ALLSTAR BUSINESS SOLUTIONS LTD,E2003980709,41,158.12,FUEL,08/01/2015,,Operations Fire Stations,Vehicle Management
800056939,ALLSTAR BUSINESS SOLUTIONS LTD,E2003980709,42,154.49,FUEL,08/01/2015,,Operations Fire Stations,Vehicle Management
800056939,ALLSTAR BUSINESS SOLUTIONS LTD,E2003980709,43,153.15,FUEL,08/01/2015,,Operations Fire Stations,Vehicle Management
800056939,ALLSTAR BUSINESS SOLUTIONS LTD,E2003980709,44,152.57,FUEL,08/01/2015,,Operations Fire Stations,Vehicle Management
800056939,ALLSTAR BUSINESS SOLUTIONS LTD,E2003980709,45,151.74,FUEL,08/01/2015,,Operations Fire Stations,Vehicle Management
800056939,ALLSTAR BUSINESS SOLUTIONS LTD,E2003980709,46,148.47,FUEL,08/01/2015,,Operations Fire Stations,Vehicle Management
800056939,ALLSTAR BUSINESS SOLUTIONS LTD,E2003980709,47,144.62,FUEL,08/01/2015,,Operations Non Fire Stations,Vehicle Management
800056939,ALLSTAR BUSINESS SOLUTIONS LTD,E2003980709,48,143.93,FUEL,08/01/2015,,Operations Fire Stations,Vehicle Management
800056939,ALLSTAR BUSINESS SOLUTIONS LTD,E2003980709,49,141.45,FUEL,08/01/2015,,Operations Fire Stations,Vehicle Management
800056939,ALLSTAR BUSINESS SOLUTIONS LTD,E2003980709,50,139.63,FUEL,08/01/2015,,Operations Fire Stations,Vehicle Management
800056939,ALLSTAR BUSINESS SOLUTIONS LTD,E2003980709,51,138.97,FUEL,08/01/2015,,Operational Resilience,Vehicle Management
800056939,ALLSTAR BUSINESS SOLUTIONS LTD,E2003980709,52,136.41,FUEL,08/01/2015,,Operations Fire Stations,Vehicle Management
800056939,ALLSTAR BUSINESS SOLUTIONS LTD,E2003980709,53,134.2,FUEL,08/01/2015,,Operations Fire Stations,Vehicle Management
800056939,ALLSTAR BUSINESS SOLUTIONS LTD,E2003980709,54,133.05,FUEL,08/01/2015,,Operations Fire Stations,Vehicle Management
800056939,ALLSTAR BUSINESS SOLUTIONS LTD,E2003980709,55,131.66,FUEL,08/01/2015,,Operations Fire Stations,Vehicle Management
800056939,ALLSTAR BUSINESS SOLUTIONS LTD,E2003980709,56,129.27,FUEL,08/01/2015,,Operations Fire Stations,Vehicle Management
800056939,ALLSTAR BUSINESS SOLUTIONS LTD,E2003980709,57,128.1,FUEL,08/01/2015,,Operations Fire Stations,Vehicle Management
800056939,ALLSTAR BUSINESS SOLUTIONS LTD,E2003980709,58,127.33,FUEL,08/01/2015,,Operations Fire Stations,Vehicle Management
800056939,ALLSTAR BUSINESS SOLUTIONS LTD,E2003980709,59,126.12,FUEL,08/01/2015,,Operations Fire Stations,Vehicle Management
800056939,ALLSTAR BUSINESS SOLUTIONS LTD,E2003980709,60,125.47,FUEL,08/01/2015,,Operations Fire Stations,Vehicle Management
800056939,ALLSTAR BUSINESS SOLUTIONS LTD,E2003980709,61,122.78,FUEL,08/01/2015,,Operations Fire Stations,Vehicle Management
800056939,ALLSTAR BUSINESS SOLUTIONS LTD,E2003980709,62,122.22,FUEL,08/01/2015,,Command Units,Vehicle Management
800056939,ALLSTAR BUSINESS SOLUTIONS LTD,E2003980709,63,119.56,FUEL,08/01/2015,,Operations Fire Stations,Vehicle Management
800056939,ALLSTAR BUSINESS SOLUTIONS LTD,E2003980709,64,118.07,FUEL,08/01/2015,,Operations Fire Stations,Vehicle Management
800056939,ALLSTAR BUSINESS SOLUTIONS LTD,E2003980709,65,116.05,FUEL,08/01/2015,,Operations Fire Stations,Vehicle Management
800056939,ALLSTAR BUSINESS SOLUTIONS LTD,E2003980709,66,115.86,FUEL,08/01/2015,,Operations Fire Stations,Vehicle Management
800056939,ALLSTAR BUSINESS SOLUTIONS LTD,E2003980709,67,113.3,FUEL,08/01/2015,,Operations Fire Stations,Vehicle Management
800056939,ALLSTAR BUSINESS SOLUTIONS LTD,E2003980709,68,109.67,FUEL,08/01/2015,,Command Units,Vehicle Management
800056939,ALLSTAR BUSINESS SOLUTIONS LTD,E2003980709,69,107.89,FUEL,08/01/2015,,Operations Fire Stations,Vehicle Management
800056939,ALLSTAR BUSINESS SOLUTIONS LTD,E2003980709,70,105.68,FUEL,08/01/2015,,Operations Fire Stations,Vehicle Management
800056939,ALLSTAR BUSINESS SOLUTIONS LTD,E2003980709,71,105.38,FUEL,08/01/2015,,Command Units,Vehicle Management
800056939,ALLSTAR BUSINESS SOLUTIONS LTD,E2003980709,72,103.97,FUEL,08/01/2015,,Operations Fire Stations,Vehicle Management
800056939,ALLSTAR BUSINESS SOLUTIONS LTD,E2003980709,73,103.15,FUEL,08/01/2015,,Operations Fire Stations,Vehicle Management
800056939,ALLSTAR BUSINESS SOLUTIONS LTD,E2003980709,74,102.4,FUEL,08/01/2015,,Operations Fire Stations,Vehicle Management
800056939,ALLSTAR BUSINESS SOLUTIONS LTD,E2003980709,75,99.36,FUEL,08/01/2015,,Operations Fire Stations,Vehicle Management
800056939,ALLSTAR BUSINESS SOLUTIONS LTD,E2003980709,76,97.04,FUEL,08/01/2015,,Operations Fire Stations,Vehicle Management
800056939,ALLSTAR BUSINESS SOLUTIONS LTD,E2003980709,77,92.87,FUEL,08/01/2015,,Operations Fire Stations,Vehicle Management
800056939,ALLSTAR BUSINESS SOLUTIONS LTD,E2003980709,78,89.83,FUEL,08/01/2015,,Command Units,Vehicle Management
800056939,ALLSTAR BUSINESS SOLUTIONS LTD,E2003980709,79,89.42,FUEL,08/01/2015,,Operations Fire Stations,Vehicle Management
800056939,ALLSTAR BUSINESS SOLUTIONS LTD,E2003980709,80,86.42,FUEL,08/01/2015,,Information and Communication Technology,Vehicle Management
800056939,ALLSTAR BUSINESS SOLUTIONS LTD,E2003980709,81,74.19,FUEL,08/01/2015,,Regulatory Fire Safety,Vehicle Management
800056939,ALLSTAR BUSINESS SOLUTIONS LTD,E2003980709,82,73.66,FUEL,08/01/2015,,CBRN RRT,Vehicle Management
800056939,ALLSTAR BUSINESS SOLUTIONS LTD,E2003980709,83,73.48,FUEL,08/01/2015,,Technical And Service Support,Vehicle Management
800056939,ALLSTAR BUSINESS SOLUTIONS LTD,E2003980709,84,70.99,FUEL,08/01/2015,,Operations Fire Stations,Vehicle Management
800056939,ALLSTAR BUSINESS SOLUTIONS LTD,E2003980709,85,69.74,FUEL,08/01/2015,,Operations Fire Stations,Vehicle Management
800056939,ALLSTAR BUSINESS SOLUTIONS LTD,E2003980709,86,69.17,FUEL,08/01/2015,,Operations Fire Stations,Vehicle Management
800056939,ALLSTAR BUSINESS SOLUTIONS LTD,E2003980709,87,67.8,FUEL,08/01/2015,,Operations Fire Stations,Vehicle Management
800056939,ALLSTAR BUSINESS SOLUTIONS LTD,E2003980709,88,67.79,FUEL,08/01/2015,,Operations Fire Stations,Vehicle Management
800056939,ALLSTAR BUSINESS SOLUTIONS LTD,E2003980709,89,58.95,FUEL,08/01/2015,,Command Units,Vehicle Management
800056939,ALLSTAR BUSINESS SOLUTIONS LTD,E2003980709,90,57.7,FUEL,08/01/2015,,Command Units,Vehicle Management
800056939,ALLSTAR BUSINESS SOLUTIONS LTD,E2003980709,91,53.82,FUEL,08/01/2015,,Operations Fire Stations,Vehicle Management
800056939,ALLSTAR BUSINESS SOLUTIONS LTD,E2003980709,92,50.81,FUEL,08/01/2015,,Command Units,Vehicle Management
800056939,ALLSTAR BUSINESS SOLUTIONS LTD,E2003980709,93,42.5,FUEL,08/01/2015,,Operational Resilience,Vehicle Management
800056939,ALLSTAR BUSINESS SOLUTIONS LTD,E2003980709,94,35.76,FUEL,08/01/2015,,Technical And Service Support,Vehicle Management
800056939,ALLSTAR BUSINESS SOLUTIONS LTD,E2003980709,95,31.58,FUEL,08/01/2015,,Operations Fire Stations,Vehicle Management
800056939,ALLSTAR BUSINESS SOLUTIONS LTD,E2003980709,96,26.08,FUEL,08/01/2015,,Operations Fire Stations,Vehicle Management
800056939,ALLSTAR BUSINESS SOLUTIONS LTD,E2003980709,97,25,FUEL,08/01/2015,,Operations Fire Stations,Vehicle Management
800056939,ALLSTAR BUSINESS SOLUTIONS LTD,E2003980709,98,16.25,FUEL,08/01/2015,,Operations Fire Stations,Vehicle Management
800056939,ALLSTAR BUSINESS SOLUTIONS LTD,E2003980709,99,9.23,FUEL,08/01/2015,,Operations Fire Stations,Vehicle Management
800056939,ALLSTAR BUSINESS SOLUTIONS LTD,E2003980709,100,8.54,FUEL,08/01/2015,,Operations Fire Stations,Vehicle Management
800056939,ALLSTAR BUSINESS SOLUTIONS LTD,E2003980709,101,7.5,FUEL,08/01/2015,,Operations Fire Stations,Vehicle Management
800056939,ALLSTAR BUSINESS SOLUTIONS LTD,E2003980709,102,4.13,FUEL,08/01/2015,,Operations Fire Stations,Vehicle Management
800056940,ALLSTAR BUSINESS SOLUTIONS LTD,E2004012731,1,627.64,FUEL,08/01/2015,"14,416.16",Operations Non Fire Stations,Vehicle Management
800056940,ALLSTAR BUSINESS SOLUTIONS LTD,E2004012731,2,578.15,FUEL,08/01/2015,,Procurement,Vehicle Management
800056940,ALLSTAR BUSINESS SOLUTIONS LTD,E2004012731,3,434.08,FUEL,08/01/2015,,Operations Fire Stations,Vehicle Management
800056940,ALLSTAR BUSINESS SOLUTIONS LTD,E2004012731,4,282.41,FUEL,08/01/2015,,Operations Fire Stations,Vehicle Management
800056940,ALLSTAR BUSINESS SOLUTIONS LTD,E2004012731,5,276.44,FUEL,08/01/2015,,Operations Fire Stations,Vehicle Management
800056940,ALLSTAR BUSINESS SOLUTIONS LTD,E2004012731,6,272.57,FUEL,08/01/2015,,Operations Fire Stations,Vehicle Management
800056940,ALLSTAR BUSINESS SOLUTIONS LTD,E2004012731,7,269.84,FUEL,08/01/2015,,Operations Fire Stations,Vehicle Management
800056940,ALLSTAR BUSINESS SOLUTIONS LTD,E2004012731,8,267.57,FUEL,08/01/2015,,Operations Fire Stations,Vehicle Management
800056940,ALLSTAR BUSINESS SOLUTIONS LTD,E2004012731,9,257.2,FUEL,08/01/2015,,Operations Fire Stations,Vehicle Management
800056940,ALLSTAR BUSINESS SOLUTIONS LTD,E2004012731,10,254.92,FUEL,08/01/2015,,Operations Fire Stations,Vehicle Management
800056940,ALLSTAR BUSINESS SOLUTIONS LTD,E2004012731,11,254.77,FUEL,08/01/2015,,Operations Fire Stations,Vehicle Management
800056940,ALLSTAR BUSINESS SOLUTIONS LTD,E2004012731,12,254.57,FUEL,08/01/2015,,Operations Fire Stations,Vehicle Management
800056940,ALLSTAR BUSINESS SOLUTIONS LTD,E2004012731,13,242.14,FUEL,08/01/2015,,Operations Fire Stations,Vehicle Management
800056940,ALLSTAR BUSINESS SOLUTIONS LTD,E2004012731,14,235.91,FUEL,08/01/2015,,Operations Fire Stations,Vehicle Management
800056940,ALLSTAR BUSINESS SOLUTIONS LTD,E2004012731,15,233.53,FUEL,08/01/2015,,Regulatory Fire Safety,Vehicle Management
800056940,ALLSTAR BUSINESS SOLUTIONS LTD,E2004012731,16,230.53,FUEL,08/01/2015,,Operations Fire Stations,Vehicle Management
800056940,ALLSTAR BUSINESS SOLUTIONS LTD,E2004012731,17,230.1,FUEL,08/01/2015,,Operations Fire Stations,Vehicle Management
800056940,ALLSTAR BUSINESS SOLUTIONS LTD,E2004012731,18,223.46,FUEL,08/01/2015,,Operations Fire Stations,Vehicle Management
800056940,ALLSTAR BUSINESS SOLUTIONS LTD,E2004012731,19,218.96,FUEL,08/01/2015,,Operations Fire Stations,Vehicle Management
800056940,ALLSTAR BUSINESS SOLUTIONS LTD,E2004012731,20,209.57,FUEL,08/01/2015,,Operations Fire Stations,Vehicle Management
800056940,ALLSTAR BUSINESS SOLUTIONS LTD,E2004012731,21,206.7,FUEL,08/01/2015,,Operations Fire Stations,Vehicle Management
800056940,ALLSTAR BUSINESS SOLUTIONS LTD,E2004012731,22,205.6,FUEL,08/01/2015,,Operations Fire Stations,Vehicle Management
800056940,ALLSTAR BUSINESS SOLUTIONS LTD,E2004012731,23,205.1,FUEL,08/01/2015,,Operations Fire Stations,Vehicle Management
800056940,ALLSTAR BUSINESS SOLUTIONS LTD,E2004012731,24,203.77,FUEL,08/01/2015,,Operations Fire Stations,Vehicle Management
800056940,ALLSTAR BUSINESS SOLUTIONS LTD,E2004012731,25,200.57,FUEL,08/01/2015,,Operations Fire Stations,Vehicle Management
800056940,ALLSTAR BUSINESS SOLUTIONS LTD,E2004012731,26,198.43,FUEL,08/01/2015,,Operations Fire Stations,Vehicle Management
800056940,ALLSTAR BUSINESS SOLUTIONS LTD,E2004012731,27,191.38,FUEL,08/01/2015,,Technical And Service Support,Vehicle Management
800056940,ALLSTAR BUSINESS SOLUTIONS LTD,E2004012731,28,187.51,FUEL,08/01/2015,,Operations Fire Stations,Vehicle Management
800056940,ALLSTAR BUSINESS SOLUTIONS LTD,E2004012731,29,185.06,FUEL,08/01/2015,,Business Continuity,Vehicle Management
800056940,ALLSTAR BUSINESS SOLUTIONS LTD,E2004012731,30,183.94,FUEL,08/01/2015,,Operations Fire Stations,Vehicle Management
800056940,ALLSTAR BUSINESS SOLUTIONS LTD,E2004012731,31,177.22,FUEL,08/01/2015,,Operations Fire Stations,Vehicle Management
800056940,ALLSTAR BUSINESS SOLUTIONS LTD,E2004012731,32,167.88,FUEL,08/01/2015,,Operations Fire Stations,Vehicle Management
800056940,ALLSTAR BUSINESS SOLUTIONS LTD,E2004012731,33,164.8,FUEL,08/01/2015,,Operations Fire Stations,Vehicle Management
800056940,ALLSTAR BUSINESS SOLUTIONS LTD,E2004012731,34,153.63,FUEL,08/01/2015,,Operations Fire Stations,Vehicle Management
800056940,ALLSTAR BUSINESS SOLUTIONS LTD,E2004012731,35,151.54,FUEL,08/01/2015,,Operations Fire Stations,Vehicle Management
800056940,ALLSTAR BUSINESS SOLUTIONS LTD,E2004012731,36,151.16,FUEL,08/01/2015,,Operations Fire Stations,Vehicle Management
800056940,ALLSTAR BUSINESS SOLUTIONS LTD,E2004012731,37,150.92,FUEL,08/01/2015,,Operations Fire Stations,Vehicle Management
800056940,ALLSTAR BUSINESS SOLUTIONS LTD,E2004012731,38,150,FUEL,08/01/2015,,Operations Fire Stations,Vehicle Management
800056940,ALLSTAR BUSINESS SOLUTIONS LTD,E2004012731,39,149.94,FUEL,08/01/2015,,Technical And Service Support,Vehicle Management
800056940,ALLSTAR BUSINESS SOLUTIONS LTD,E2004012731,40,149.79,FUEL,08/01/2015,,Operations Fire Stations,Vehicle Management
800056940,ALLSTAR BUSINESS SOLUTIONS LTD,E2004012731,41,149.49,FUEL,08/01/2015,,Operations Fire Stations,Vehicle Management
800056940,ALLSTAR BUSINESS SOLUTIONS LTD,E2004012731,42,149.49,FUEL,08/01/2015,,Operations Fire Stations,Vehicle Management
800056940,ALLSTAR BUSINESS SOLUTIONS LTD,E2004012731,43,146.28,FUEL,08/01/2015,,Operations Fire Stations,Vehicle Management
800056940,ALLSTAR BUSINESS SOLUTIONS LTD,E2004012731,44,140.79,FUEL,08/01/2015,,Operations Fire Stations,Vehicle Management
800056940,ALLSTAR BUSINESS SOLUTIONS LTD,E2004012731,45,139.76,FUEL,08/01/2015,,Operations Fire Stations,Vehicle Management
800056940,ALLSTAR BUSINESS SOLUTIONS LTD,E2004012731,46,137.93,FUEL,08/01/2015,,Operations Fire Stations,Vehicle Management
800056940,ALLSTAR BUSINESS SOLUTIONS LTD,E2004012731,47,136.66,FUEL,08/01/2015,,Operations Fire Stations,Vehicle Management
800056940,ALLSTAR BUSINESS SOLUTIONS LTD,E2004012731,48,135.97,FUEL,08/01/2015,,Operations Fire Stations,Vehicle Management
800056940,ALLSTAR BUSINESS SOLUTIONS LTD,E2004012731,49,132.18,FUEL,08/01/2015,,Information and Communication Technology,Vehicle Management
800056940,ALLSTAR BUSINESS SOLUTIONS LTD,E2004012731,50,131.98,FUEL,08/01/2015,,Operations Fire Stations,Vehicle Management
800056940,ALLSTAR BUSINESS SOLUTIONS LTD,E2004012731,51,131.95,FUEL,08/01/2015,,Operations Fire Stations,Vehicle Management
800056940,ALLSTAR BUSINESS SOLUTIONS LTD,E2004012731,52,130,FUEL,08/01/2015,,Operations Fire Stations,Vehicle Management
800056940,ALLSTAR BUSINESS SOLUTIONS LTD,E2004012731,53,125.23,FUEL,08/01/2015,,Operations Fire Stations,Vehicle Management
800056940,ALLSTAR BUSINESS SOLUTIONS LTD,E2004012731,54,125.09,FUEL,08/01/2015,,Operations Fire Stations,Vehicle Management
800056940,ALLSTAR BUSINESS SOLUTIONS LTD,E2004012731,55,118,FUEL,08/01/2015,,Operations Fire Stations,Vehicle Management
800056940,ALLSTAR BUSINESS SOLUTIONS LTD,E2004012731,56,115.5,FUEL,08/01/2015,,Operations Fire Stations,Vehicle Management
800056940,ALLSTAR BUSINESS SOLUTIONS LTD,E2004012731,57,112.11,FUEL,08/01/2015,,Operations Fire Stations,Vehicle Management
800056940,ALLSTAR BUSINESS SOLUTIONS LTD,E2004012731,58,110.12,FUEL,08/01/2015,,Operations Fire Stations,Vehicle Management
800056940,ALLSTAR BUSINESS SOLUTIONS LTD,E2004012731,59,109.84,FUEL,08/01/2015,,Operations Fire Stations,Vehicle Management
800056940,ALLSTAR BUSINESS SOLUTIONS LTD,E2004012731,60,107.16,FUEL,08/01/2015,,Operations Fire Stations,Vehicle Management
800056940,ALLSTAR BUSINESS SOLUTIONS LTD,E2004012731,61,106.32,FUEL,08/01/2015,,Operations Fire Stations,Vehicle Management
800056940,ALLSTAR BUSINESS SOLUTIONS LTD,E2004012731,62,105.75,FUEL,08/01/2015,,Operations Fire Stations,Vehicle Management
800056940,ALLSTAR BUSINESS SOLUTIONS LTD,E2004012731,63,99.41,FUEL,08/01/2015,,Operations Fire Stations,Vehicle Management
800056940,ALLSTAR BUSINESS SOLUTIONS LTD,E2004012731,64,95.64,FUEL,08/01/2015,,Operations Fire Stations,Vehicle Management
800056940,ALLSTAR BUSINESS SOLUTIONS LTD,E2004012731,65,94.46,FUEL,08/01/2015,,Operations Fire Stations,Vehicle Management
800056940,ALLSTAR BUSINESS SOLUTIONS LTD,E2004012731,66,93.19,FUEL,08/01/2015,,Operations Fire Stations,Vehicle Management
800056940,ALLSTAR BUSINESS SOLUTIONS LTD,E2004012731,67,92.87,FUEL,08/01/2015,,Operations Fire Stations,Vehicle Management
800056940,ALLSTAR BUSINESS SOLUTIONS LTD,E2004012731,68,92.39,FUEL,08/01/2015,,Operations Fire Stations,Vehicle Management
800056940,ALLSTAR BUSINESS SOLUTIONS LTD,E2004012731,69,91.58,FUEL,08/01/2015,,Operations Fire Stations,Vehicle Management
800056940,ALLSTAR BUSINESS SOLUTIONS LTD,E2004012731,70,86.58,FUEL,08/01/2015,,Operations Fire Stations,Vehicle Management
800056940,ALLSTAR BUSINESS SOLUTIONS LTD,E2004012731,71,84.83,FUEL,08/01/2015,,Operations Fire Stations,Vehicle Management
800056940,ALLSTAR BUSINESS SOLUTIONS LTD,E2004012731,72,82.6,FUEL,08/01/2015,,Command Units,Vehicle Management
800056940,ALLSTAR BUSINESS SOLUTIONS LTD,E2004012731,73,80.94,FUEL,08/01/2015,,Operations Fire Stations,Vehicle Management
800056940,ALLSTAR BUSINESS SOLUTIONS LTD,E2004012731,74,79.95,FUEL,08/01/2015,,Operations Fire Stations,Vehicle Management
800056940,ALLSTAR BUSINESS SOLUTIONS LTD,E2004012731,75,79.81,FUEL,08/01/2015,,Operations Fire Stations,Vehicle Management
800056940,ALLSTAR BUSINESS SOLUTIONS LTD,E2004012731,76,79.55,FUEL,08/01/2015,,Operations Fire Stations,Vehicle Management
800056940,ALLSTAR BUSINESS SOLUTIONS LTD,E2004012731,77,79,FUEL,08/01/2015,,Operations Fire Stations,Vehicle Management
800056940,ALLSTAR BUSINESS SOLUTIONS LTD,E2004012731,78,77.28,FUEL,08/01/2015,,Operations Fire Stations,Vehicle Management
800056940,ALLSTAR BUSINESS SOLUTIONS LTD,E2004012731,79,68.87,FUEL,08/01/2015,,Command Units,Vehicle Management
800056940,ALLSTAR BUSINESS SOLUTIONS LTD,E2004012731,80,66.3,FUEL,08/01/2015,,Operations Fire Stations,Vehicle Management
800056940,ALLSTAR BUSINESS SOLUTIONS LTD,E2004012731,81,64.41,FUEL,08/01/2015,,Command Units,Vehicle Management
800056940,ALLSTAR BUSINESS SOLUTIONS LTD,E2004012731,82,62.5,FUEL,08/01/2015,,Operations Fire Stations,Vehicle Management
800056940,ALLSTAR BUSINESS SOLUTIONS LTD,E2004012731,83,60.63,FUEL,08/01/2015,,Operations Fire Stations,Vehicle Management
800056940,ALLSTAR BUSINESS SOLUTIONS LTD,E2004012731,84,59.96,FUEL,08/01/2015,,Operations Fire Stations,Vehicle Management
800056940,ALLSTAR BUSINESS SOLUTIONS LTD,E2004012731,85,58.88,FUEL,08/01/2015,,Operations Fire Stations,Vehicle Management
800056940,ALLSTAR BUSINESS SOLUTIONS LTD,E2004012731,86,56.95,FUEL,08/01/2015,,Command Units,Vehicle Management
800056940,ALLSTAR BUSINESS SOLUTIONS LTD,E2004012731,87,55.37,FUEL,08/01/2015,,Command Units,Vehicle Management
800056940,ALLSTAR BUSINESS SOLUTIONS LTD,E2004012731,88,53.38,FUEL,08/01/2015,,Targeted Development,Vehicle Management
800056940,ALLSTAR BUSINESS SOLUTIONS LTD,E2004012731,89,51.7,FUEL,08/01/2015,,Operations Fire Stations,Vehicle Management
800056940,ALLSTAR BUSINESS SOLUTIONS LTD,E2004012731,90,41.95,FUEL,08/01/2015,,Command Units,Vehicle Management
800056940,ALLSTAR BUSINESS SOLUTIONS LTD,E2004012731,91,41.44,FUEL,08/01/2015,,Command Units,Vehicle Management
800056940,ALLSTAR BUSINESS SOLUTIONS LTD,E2004012731,92,40.82,FUEL,08/01/2015,,Operations Fire Stations,Vehicle Management
800056940,ALLSTAR BUSINESS SOLUTIONS LTD,E2004012731,93,33.54,FUEL,08/01/2015,,Operations Fire Stations,Vehicle Management
800056940,ALLSTAR BUSINESS SOLUTIONS LTD,E2004012731,94,22.48,FUEL,08/01/2015,,CBRN RRT,Vehicle Management
231214E,HALL FUELS,I07161478,1,"2,538.00",FUEL,08/01/2015,"2,538.00",Operations Fire Stations,Vehicle Management
231214E,HALL FUELS,I07171812,1,"1,518.90",FUEL,08/01/2015,"1,518.90",Operations Fire Stations,Vehicle Management
231214E,HALL FUELS,I07192081,1,"2,995.20",FUEL,08/01/2015,"2,995.20",Operations Fire Stations,Vehicle Management
191214C,HALL FUELS,I07234444,1,"2,884.50",FUEL,08/01/2015,"2,884.50",Operations Fire Stations,Vehicle Management
231214E,HALL FUELS,I07234445,1,"2,884.50",FUEL,08/01/2015,"2,884.50",Operations Fire Stations,Vehicle Management
231214E,HALL FUELS,I07239246,1,"3,008.00",FUEL,08/01/2015,"3,008.00",Operations Fire Stations,Vehicle Management
050115G,HALL FUELS,I07246779,1,"1,880.00",FUEL,08/01/2015,"1,880.00",Operations Fire Stations,Vehicle Management
050115G,HALL FUELS,I07246781,1,"3,290.00",FUEL,08/01/2015,"3,290.00",Operations Fire Stations,Vehicle Management
050115G,HALL FUELS,I07251229,1,"1,410.00",FUEL,08/01/2015,"1,410.00",Operations Fire Stations,Vehicle Management
050115G,HALL FUELS,I07251230,1,"2,820.00",FUEL,08/01/2015,"2,820.00",Operations Fire Stations,Vehicle Management
221214C,LONDON YOUTH GOSPEL CHOIR,LIBC/LFB//01,1,300,PUBLIC RELATIONS,08/01/2015,300,Communications,Arts & Leisure Services
050115G,ESSENTRA COMPONENTS LTD,MR203044,1,448.7,PROTECTIVE EQUIPT - PARTS,08/01/2015,448.7,Technical and Service Support,Building Constr Materials
050115G,CANNON'S MSA LTD,NV1080501,1,268.5,GENERAL CONSUMABLES,08/01/2015,268.5,Procurement,Vehicle Management
221214C,ESTEEM SYSTEMS LTD============,OP/I081728,1,"93,790.00",MAINTENANCE & SUPPORT,08/01/2015,"99,935.00",Information and Communication Technology,ICT
221214C,ESTEEM SYSTEMS LTD============,OP/I081728,2,293,MAINTENANCE & SUPPORT,08/01/2015,,Information and Communication Technology,ICT
221214C,ESTEEM SYSTEMS LTD============,OP/I081728,3,"1,080.00",MAINTENANCE & SUPPORT,08/01/2015,,Information and Communication Technology,ICT
221214C,ESTEEM SYSTEMS LTD============,OP/I081728,4,"4,772.00",MAINTENANCE & SUPPORT,08/01/2015,,Information and Communication Technology,ICT
171214C,SECURITAS SECURITY SERVICES LT,S-SIN0285407,1,"57,142.24",GENERAL,08/01/2015,"57,142.24",Procurement,Fire & Rescue
171214C,SECURITAS SECURITY SERVICES LT,S-SIN0285408,1,"197,478.80",GENERAL,08/01/2015,"197,478.80",Procurement,Fire & Rescue
171214C,SECURITAS SECURITY SERVICES LT,S-SIN0285409,1,"33,121.25",GENERAL,08/01/2015,"33,121.25",Procurement,Fire & Rescue
171214C,SECURITAS SECURITY SERVICES LT,S-SIN0285410,1,"86,313.60",GENERAL,08/01/2015,"86,313.60",Business Continuity,Fire & Rescue
221214C,SECURITAS SECURITY SERVICES LT,S-SIN0285411,1,"759,904.74",GENERAL,08/01/2015,"759,904.74",Business Continuity,Fire & Rescue
221214C,SECURITAS SECURITY SERVICES LT,S-SIN0288717,1,"14,025.96",GENERAL,08/01/2015,"14,025.96",Business Continuity,Fire & Rescue
140912,VEOLIA WATER PROJECTS LTD=====,SI-14-0007691,1,"3,812.94",ELECTRICITY,08/01/2015,"3,812.94",Technical And Service Support,Utilities
050115G,SHL GROUP LTD=================,SI/251809/SI/251110,1,"7,262.65",ASSESSMENTS,08/01/2015,"7,262.65",HR Excluding Secondments,Human Resources
800056168,*THOMAS KNEALE & CO LTD,TK109296,1,32.67,CLOTHING,08/01/2015,597.15,Operations Fire Stations,Furniture
800056168,*THOMAS KNEALE & CO LTD,TK109296,2,3.47,CLOTHING,08/01/2015,,Operations Fire Stations,Furniture
800056168,*THOMAS KNEALE & CO LTD,TK109296,3,2.59,OFFICE FURNITURE,08/01/2015,,Operations Fire Stations,Furniture
800056168,*THOMAS KNEALE & CO LTD,TK109296,4,3.47,CLOTHING,08/01/2015,,Operations Fire Stations,Furniture
800056168,*THOMAS KNEALE & CO LTD,TK109296,5,10.89,CLOTHING,08/01/2015,,Operations Fire Stations,Furniture
800056168,*THOMAS KNEALE & CO LTD,TK109296,6,0.99,CLOTHING,08/01/2015,,Operations Fire Stations,Furniture
800056168,*THOMAS KNEALE & CO LTD,TK109296,7,10.89,CLOTHING,08/01/2015,,Operations Fire Stations,Furniture
800056168,*THOMAS KNEALE & CO LTD,TK109296,8,1.48,CLOTHING,08/01/2015,,Operations Fire Stations,Furniture
800056168,*THOMAS KNEALE & CO LTD,TK109296,9,3.47,CLOTHING,08/01/2015,,Operations Fire Stations,Furniture
800056168,*THOMAS KNEALE & CO LTD,TK109296,10,10.89,CLOTHING,08/01/2015,,Operations Fire Stations,Furniture
800056168,*THOMAS KNEALE & CO LTD,TK109296,11,4.98,OFFICE FURNITURE,08/01/2015,,Operations Fire Stations,Furniture
800056168,*THOMAS KNEALE & CO LTD,TK109296,12,10.89,CLOTHING,08/01/2015,,Operations Fire Stations,Furniture
800056168,*THOMAS KNEALE & CO LTD,TK109296,13,3.47,CLOTHING,08/01/2015,,Operations Fire Stations,Furniture
800056168,*THOMAS KNEALE & CO LTD,TK109296,14,1.48,CLOTHING,08/01/2015,,Operations Fire Stations,Furniture
800056168,*THOMAS KNEALE & CO LTD,TK109296,15,10.89,CLOTHING,08/01/2015,,Operations Fire Stations,Furniture
800056168,*THOMAS KNEALE & CO LTD,TK109296,16,3.47,CLOTHING,08/01/2015,,Operations Fire Stations,Furniture
800056168,*THOMAS KNEALE & CO LTD,TK109296,17,1.48,CLOTHING,08/01/2015,,Operations Fire Stations,Furniture
800056168,*THOMAS KNEALE & CO LTD,TK109296,18,2.96,CLOTHING,08/01/2015,,Operations Fire Stations,Furniture
800056168,*THOMAS KNEALE & CO LTD,TK109296,19,10.89,CLOTHING,08/01/2015,,Operations Fire Stations,Furniture
800056168,*THOMAS KNEALE & CO LTD,TK109296,20,10.89,CLOTHING,08/01/2015,,Operations Fire Stations,Furniture
800056168,*THOMAS KNEALE & CO LTD,TK109296,21,10.89,CLOTHING,08/01/2015,,Operations Fire Stations,Furniture
800056168,*THOMAS KNEALE & CO LTD,TK109296,22,0.99,CLOTHING,08/01/2015,,Operations Fire Stations,Furniture
800056168,*THOMAS KNEALE & CO LTD,TK109296,23,10.89,CLOTHING,08/01/2015,,Operations Fire Stations,Furniture
800056168,*THOMAS KNEALE & CO LTD,TK109296,24,2.96,CLOTHING,08/01/2015,,Operations Fire Stations,Furniture
800056168,*THOMAS KNEALE & CO LTD,TK109296,25,6.94,CLOTHING,08/01/2015,,Operations Fire Stations,Furniture
800056168,*THOMAS KNEALE & CO LTD,TK109296,26,10.89,CLOTHING,08/01/2015,,Operations Fire Stations,Furniture
800056168,*THOMAS KNEALE & CO LTD,TK109296,27,10.89,CLOTHING,08/01/2015,,Operations Fire Stations,Furniture
800056168,*THOMAS KNEALE & CO LTD,TK109296,28,2.96,CLOTHING,08/01/2015,,Operations Fire Stations,Furniture
800056168,*THOMAS KNEALE & CO LTD,TK109296,29,3.47,CLOTHING,08/01/2015,,Operations Fire Stations,Furniture
800056168,*THOMAS KNEALE & CO LTD,TK109296,30,98.42,OFFICE FURNITURE,08/01/2015,,Operations Fire Stations,Furniture
800056168,*THOMAS KNEALE & CO LTD,TK109296,31,10.89,CLOTHING,08/01/2015,,Operations Fire Stations,Furniture
800056168,*THOMAS KNEALE & CO LTD,TK109296,32,0.99,CLOTHING,08/01/2015,,Operations Fire Stations,Furniture
800056168,*THOMAS KNEALE & CO LTD,TK109296,33,1.48,CLOTHING,08/01/2015,,Operations Fire Stations,Furniture
800056168,*THOMAS KNEALE & CO LTD,TK109296,34,3.47,CLOTHING,08/01/2015,,Operations Fire Stations,Furniture
800056168,*THOMAS KNEALE & CO LTD,TK109296,35,2.59,OFFICE FURNITURE,08/01/2015,,Operations Fire Stations,Furniture
800056168,*THOMAS KNEALE & CO LTD,TK109296,36,10.89,CLOTHING,08/01/2015,,Operations Fire Stations,Furniture
800056168,*THOMAS KNEALE & CO LTD,TK109296,37,10.89,CLOTHING,08/01/2015,,Operations Fire Stations,Furniture
800056168,*THOMAS KNEALE & CO LTD,TK109296,38,3.47,CLOTHING,08/01/2015,,Operations Fire Stations,Furniture
800056168,*THOMAS KNEALE & CO LTD,TK109296,39,1.48,CLOTHING,08/01/2015,,Operations Fire Stations,Furniture
800056168,*THOMAS KNEALE & CO LTD,TK109296,40,10.89,CLOTHING,08/01/2015,,Operations Fire Stations,Furniture
800056168,*THOMAS KNEALE & CO LTD,TK109296,41,10.89,CLOTHING,08/01/2015,,Operations Fire Stations,Furniture
800056168,*THOMAS KNEALE & CO LTD,TK109296,42,10.89,CLOTHING,08/01/2015,,Operations Fire Stations,Furniture
800056168,*THOMAS KNEALE & CO LTD,TK109296,43,4.98,OFFICE FURNITURE,08/01/2015,,Operations Fire Stations,Furniture
800056168,*THOMAS KNEALE & CO LTD,TK109296,44,10.89,CLOTHING,08/01/2015,,Operations Fire Stations,Furniture
800056168,*THOMAS KNEALE & CO LTD,TK109296,45,10.89,CLOTHING,08/01/2015,,Operations Fire Stations,Furniture
800056168,*THOMAS KNEALE & CO LTD,TK109296,46,10.89,CLOTHING,08/01/2015,,Operations Fire Stations,Furniture
800056168,*THOMAS KNEALE & CO LTD,TK109296,47,1.98,CLOTHING,08/01/2015,,Operations Fire Stations,Furniture
800056168,*THOMAS KNEALE & CO LTD,TK109296,48,10.89,CLOTHING,08/01/2015,,Operations Fire Stations,Furniture
800056168,*THOMAS KNEALE & CO LTD,TK109296,49,0.99,CLOTHING,08/01/2015,,Operations Fire Stations,Furniture
800056168,*THOMAS KNEALE & CO LTD,TK109296,50,10.89,CLOTHING,08/01/2015,,Operations Fire Stations,Furniture
800056168,*THOMAS KNEALE & CO LTD,TK109296,51,10.89,CLOTHING,08/01/2015,,Operations Fire Stations,Furniture
800056168,*THOMAS KNEALE & CO LTD,TK109296,52,10.89,CLOTHING,08/01/2015,,Operations Fire Stations,Furniture
800056168,*THOMAS KNEALE & CO LTD,TK109296,53,10.89,CLOTHING,08/01/2015,,Operations Fire Stations,Furniture
800056168,*THOMAS KNEALE & CO LTD,TK109296,54,10.89,CLOTHING,08/01/2015,,Operations Fire Stations,Furniture
800056168,*THOMAS KNEALE & CO LTD,TK109296,55,6.94,CLOTHING,08/01/2015,,Operations Fire Stations,Furniture
800056168,*THOMAS KNEALE & CO LTD,TK109296,56,2.96,CLOTHING,08/01/2015,,Operations Fire Stations,Furniture
800056168,*THOMAS KNEALE & CO LTD,TK109296,57,3.47,CLOTHING,08/01/2015,,Operations Fire Stations,Furniture
800056168,*THOMAS KNEALE & CO LTD,TK109296,58,1.48,CLOTHING,08/01/2015,,Operations Fire Stations,Furniture
800056168,*THOMAS KNEALE & CO LTD,TK109296,59,10.89,CLOTHING,08/01/2015,,Operations Fire Stations,Furniture
800056168,*THOMAS KNEALE & CO LTD,TK109296,60,10.89,CLOTHING,08/01/2015,,Operations Fire Stations,Furniture
800056168,*THOMAS KNEALE & CO LTD,TK109296,61,3.47,CLOTHING,08/01/2015,,Operations Fire Stations,Furniture
800056168,*THOMAS KNEALE & CO LTD,TK109296,62,1.48,CLOTHING,08/01/2015,,Operations Fire Stations,Furniture
800056168,*THOMAS KNEALE & CO LTD,TK109296,63,10.89,CLOTHING,08/01/2015,,Operations Fire Stations,Furniture
800056168,*THOMAS KNEALE & CO LTD,TK109296,64,0.99,CLOTHING,08/01/2015,,Operations Fire Stations,Furniture
800056168,*THOMAS KNEALE & CO LTD,TK109296,65,0.99,CLOTHING,08/01/2015,,National Operational Guidance Project,Furniture
800056168,*THOMAS KNEALE & CO LTD,TK109296,66,10.89,CLOTHING,08/01/2015,,National Operational Guidance Project,Furniture
800056168,*THOMAS KNEALE & CO LTD,TK109296,67,2.96,CLOTHING,08/01/2015,,Operations Fire Stations,Furniture
800056168,*THOMAS KNEALE & CO LTD,TK109296,68,2.96,CLOTHING,08/01/2015,,Operations Fire Stations,Furniture
800056168,*THOMAS KNEALE & CO LTD,TK109296,69,0.99,CLOTHING,08/01/2015,,Operations Fire Stations,Furniture
800056168,*THOMAS KNEALE & CO LTD,TK109296,70,10.89,CLOTHING,08/01/2015,,Operations Fire Stations,Furniture
800056168,*THOMAS KNEALE & CO LTD,TK109296,71,3.47,CLOTHING,08/01/2015,,Operations Fire Stations,Furniture
800056168,*THOMAS KNEALE & CO LTD,TK109296,72,1.48,CLOTHING,08/01/2015,,Operations Fire Stations,Furniture
800056168,*THOMAS KNEALE & CO LTD,TK109296,73,10.89,CLOTHING,08/01/2015,,Operations Fire Stations,Furniture
800056168,*THOMAS KNEALE & CO LTD,TK109296,74,0.99,CLOTHING,08/01/2015,,Operations Fire Stations,Furniture
800056168,*THOMAS KNEALE & CO LTD,TK109296,75,3.47,CLOTHING,08/01/2015,,Operations Fire Stations,Furniture
800056168,*THOMAS KNEALE & CO LTD,TK109296,76,3.47,CLOTHING,08/01/2015,,Operations Fire Stations,Furniture
800056168,*THOMAS KNEALE & CO LTD,TK109296,77,2.96,CLOTHING,08/01/2015,,Operations Fire Stations,Furniture
800056168,*THOMAS KNEALE & CO LTD,TK109296,78,0.99,CLOTHING,08/01/2015,,Operations Fire Stations,Furniture
231214E,ARVAL UK LTD,VS0001511126,1,68.26,CONTRACT HIRE,08/01/2015,371.3,LIFE - LFB Funded,Vehicle Management
231214E,ARVAL UK LTD,VS0001511126,2,78.26,CONTRACT HIRE,08/01/2015,,Community Safety Delivery,Vehicle Management
231214E,ARVAL UK LTD,VS0001511126,3,224.78,CONTRACT HIRE,08/01/2015,,LIFE - LFB Funded,Vehicle Management
800056860,*XMA LTD,W862409,1,409.84,STATIONERY CONSUMABLES,08/01/2015,409.84,Technical And Service Support,ICT
800056869,*XMA LTD,W862747,1,327.3,STATIONERY CONSUMABLES,08/01/2015,990.66,Technical And Service Support,ICT
800056869,*XMA LTD,W862747,2,331.68,STATIONERY CONSUMABLES,08/01/2015,,Technical And Service Support,ICT
800056869,*XMA LTD,W862747,3,331.68,STATIONERY CONSUMABLES,08/01/2015,,Technical And Service Support,ICT
902485,DEPARTMENT FOR WORK & PENSIONS,9002,1,585,DWP NHS CHARGES,09/01/2015,585,Legal & Democratic Services,Statutory Bodies
902486,SEARCHFLOW LIMITED,INV6778962,1,672.38,DISPOSAL COSTS-LEGAL COSTS,09/01/2015,672.38,Technical and Service Support,Legal Services
902486,SEARCHFLOW LIMITED,INV6778963,1,730.88,DISPOSAL COSTS-LEGAL COSTS,09/01/2015,730.88,Technical and Service Support,Legal Services
902486,SEARCHFLOW LIMITED,INV6781157,1,567.38,DISPOSAL COSTS-LEGAL COSTS,09/01/2015,567.38,Technical and Service Support,Legal Services
902486,SEARCHFLOW LIMITED,INV6781158,1,620.88,DISPOSAL COSTS-LEGAL COSTS,09/01/2015,620.88,Technical and Service Support,Legal Services
140914,THAMES WATER UTILITIES LTD====,04255-21115M,1,372.1,WATER & SEWERAGE RATES,12/01/2015,372.1,Technical And Service Support,Utilities
140914,THAMES WATER UTILITIES LTD====,0592996051Z,1,756.18,WATER & SEWERAGE RATES,12/01/2015,756.18,Technical And Service Support,Utilities
060115E,BT GLOBAL SERVICES============,790135019,1,500,TELECOMMUNICATIONS,12/01/2015,500,Information and Communication Technology,ICT
060115E,EFFECTUAL STORAGE LTD=========,1001283/96,1,"1,844.40",OPERATIONAL EQUIP-PURCHASE,12/01/2015,"1,844.40",Communications,Facilities & Management S
060115E,IBM UK LIMITED================,105330237,1,675,MAINTENANCE & SUPPORT,12/01/2015,"30,378.00",Information and Communication Technology,ICT
060115E,IBM UK LIMITED================,105330237,2,"3,420.00",MAINTENANCE & SUPPORT,12/01/2015,,Information and Communication Technology,ICT
060115E,IBM UK LIMITED================,105330237,3,"6,851.00",MAINTENANCE & SUPPORT,12/01/2015,,Information and Communication Technology,ICT
060115E,IBM UK LIMITED================,105330237,4,"19,432.00",MAINTENANCE & SUPPORT,12/01/2015,,Information and Communication Technology,ICT
060115E,*SPRUE SAFETY PRODUCTS LTD====,1068957,1,800,FIRE DETECTORS,12/01/2015,800,Operations Non Fire Stations,Health & Safety
060115E,*SPRUE SAFETY PRODUCTS LTD====,1068958,1,440,FIRE DETECTORS,12/01/2015,440,Operations Non Fire Stations,Health & Safety
060115E,*SPRUE SAFETY PRODUCTS LTD====,1069017,1,618,FIRE DETECTORS,12/01/2015,618,Operations Non Fire Stations,Health & Safety
060115E,*SPRUE SAFETY PRODUCTS LTD====,1069019,1,"1,236.00",FIRE DETECTORS,12/01/2015,"1,236.00",Operations Non Fire Stations,Health & Safety
060115E,*SPRUE SAFETY PRODUCTS LTD====,1069024,1,494.4,FIRE DETECTORS,12/01/2015,494.4,Operations Non Fire Stations,Health & Safety
060115E,*SPRUE SAFETY PRODUCTS LTD====,1069025,1,741.6,FIRE DETECTORS,12/01/2015,741.6,Operations Non Fire Stations,Health & Safety
060115E,*SPRUE SAFETY PRODUCTS LTD====,1069026,1,741.6,FIRE DETECTORS,12/01/2015,741.6,Operations Non Fire Stations,Health & Safety
060115E,*SPRUE SAFETY PRODUCTS LTD====,1069061,1,"1,483.20",FIRE DETECTORS,12/01/2015,"1,483.20",Operations Non Fire Stations,Health & Safety
060115E,*SPRUE SAFETY PRODUCTS LTD====,1069063,1,"1,483.20",FIRE DETECTORS,12/01/2015,"1,483.20",Operations Non Fire Stations,Health & Safety
060115E,*SPRUE SAFETY PRODUCTS LTD====,1069075,1,440,FIRE DETECTORS,12/01/2015,440,Operations Non Fire Stations,Health & Safety
060115E,*SPRUE SAFETY PRODUCTS LTD====,1069076,1,800,FIRE DETECTORS,12/01/2015,800,Operations Non Fire Stations,Health & Safety
060115E,*SPRUE SAFETY PRODUCTS LTD====,1069158,1,"1,236.00",FIRE DETECTORS,12/01/2015,"1,236.00",Operations Non Fire Stations,Health & Safety
060115E,*SPRUE SAFETY PRODUCTS LTD====,1069159,1,"1,359.60",FIRE DETECTORS,12/01/2015,"1,359.60",Operations Non Fire Stations,Health & Safety
060115E,*SPRUE SAFETY PRODUCTS LTD====,1069160,1,741.6,FIRE DETECTORS,12/01/2015,741.6,Operations Non Fire Stations,Health & Safety
070115C,*SPRUE SAFETY PRODUCTS LTD====,1069224,1,494.4,FIRE DETECTORS,12/01/2015,494.4,Operations Non Fire Stations,Health & Safety
070115C,*SPRUE SAFETY PRODUCTS LTD====,10692243,1,370.8,FIRE DETECTORS,12/01/2015,370.8,Operations Non Fire Stations,Health & Safety
070115C,*SPRUE SAFETY PRODUCTS LTD====,1069226,1,618,FIRE DETECTORS,12/01/2015,618,Operations Non Fire Stations,Health & Safety
070115C,*SPRUE SAFETY PRODUCTS LTD====,1069227,1,988.8,FIRE DETECTORS,12/01/2015,988.8,Operations Non Fire Stations,Health & Safety
070115C,*SPRUE SAFETY PRODUCTS LTD====,1069228,1,618,FIRE DETECTORS,12/01/2015,618,Operations Non Fire Stations,Health & Safety
070115C,*SPRUE SAFETY PRODUCTS LTD====,1069229,1,"1,236.00",FIRE DETECTORS,12/01/2015,"1,236.00",Operations Non Fire Stations,Health & Safety
070115C,*SPRUE SAFETY PRODUCTS LTD====,1069231,1,"1,236.00",FIRE DETECTORS,12/01/2015,"1,236.00",Operations Non Fire Stations,Health & Safety
070115C,*SPRUE SAFETY PRODUCTS LTD====,1069232,1,"1,236.00",FIRE DETECTORS,12/01/2015,"1,236.00",Operations Non Fire Stations,Health & Safety
070115C,*SPRUE SAFETY PRODUCTS LTD====,1069236,1,741.6,FIRE DETECTORS,12/01/2015,741.6,Operations Non Fire Stations,Health & Safety
070115C,*SPRUE SAFETY PRODUCTS LTD====,1069238,1,618,FIRE DETECTORS,12/01/2015,618,Operations Non Fire Stations,Health & Safety
070115C,*SPRUE SAFETY PRODUCTS LTD====,1069239,1,"1,236.00",FIRE DETECTORS,12/01/2015,"1,236.00",Operations Non Fire Stations,Health & Safety
070115C,*SPRUE SAFETY PRODUCTS LTD====,1069241,1,618,FIRE DETECTORS,12/01/2015,618,Operations Non Fire Stations,Health & Safety
070115C,*SPRUE SAFETY PRODUCTS LTD====,1069244,1,370.8,FIRE DETECTORS,12/01/2015,370.8,Operations Non Fire Stations,Health & Safety
070115C,*SPRUE SAFETY PRODUCTS LTD====,1069245,1,"1,236.00",FIRE DETECTORS,12/01/2015,"1,236.00",Operations Non Fire Stations,Health & Safety
070115C,*SPRUE SAFETY PRODUCTS LTD====,1069246,1,741.6,FIRE DETECTORS,12/01/2015,741.6,Operations Non Fire Stations,Health & Safety
070115C,*SPRUE SAFETY PRODUCTS LTD====,1069247,1,618,FIRE DETECTORS,12/01/2015,618,Operations Non Fire Stations,Health & Safety
070115C,*SPRUE SAFETY PRODUCTS LTD====,1069248,1,618,FIRE DETECTORS,12/01/2015,618,Operations Non Fire Stations,Health & Safety
070115C,*SPRUE SAFETY PRODUCTS LTD====,1069251,1,618,FIRE DETECTORS,12/01/2015,618,Operations Non Fire Stations,Health & Safety
070115C,*SPRUE SAFETY PRODUCTS LTD====,1069253,1,"1,236.00",FIRE DETECTORS,12/01/2015,"1,236.00",Operations Non Fire Stations,Health & Safety
070115C,*SPRUE SAFETY PRODUCTS LTD====,1069257,1,"1,236.00",FIRE DETECTORS,12/01/2015,"1,236.00",Operations Non Fire Stations,Health & Safety
060115E,*SPRUE SAFETY PRODUCTS LTD====,1069335,1,618,FIRE DETECTORS,12/01/2015,618,Operations Non Fire Stations,Health & Safety
060115E,*SPRUE SAFETY PRODUCTS LTD====,1069358,1,988.8,FIRE DETECTORS,12/01/2015,988.8,Operations Non Fire Stations,Health & Safety
060115E,*SPRUE SAFETY PRODUCTS LTD====,1069360,1,"1,483.20",FIRE DETECTORS,12/01/2015,"1,483.20",Operations Non Fire Stations,Health & Safety
070115C,*SPRUE SAFETY PRODUCTS LTD====,1069378,1,"3,708.00",FIRE DETECTORS,12/01/2015,"3,708.00",Operations Non Fire Stations,Health & Safety
070115C,*SPRUE SAFETY PRODUCTS LTD====,1069379,1,988.8,FIRE DETECTORS,12/01/2015,988.8,Operations Non Fire Stations,Health & Safety
070115C,*SPRUE SAFETY PRODUCTS LTD====,1069380,1,988.8,FIRE DETECTORS,12/01/2015,988.8,Operations Non Fire Stations,Health & Safety
070115C,*SPRUE SAFETY PRODUCTS LTD====,1069381,1,"1,730.40",FIRE DETECTORS,12/01/2015,"1,730.40",Operations Non Fire Stations,Health & Safety
070115C,*SPRUE SAFETY PRODUCTS LTD====,1069382,1,"1,730.40",FIRE DETECTORS,12/01/2015,"1,730.40",Operations Non Fire Stations,Health & Safety
070115C,*SPRUE SAFETY PRODUCTS LTD====,1069383,1,988.8,FIRE DETECTORS,12/01/2015,988.8,Operations Non Fire Stations,Health & Safety
070115C,*SPRUE SAFETY PRODUCTS LTD====,1069384,1,988.8,FIRE DETECTORS,12/01/2015,988.8,Operations Non Fire Stations,Health & Safety
070115C,*SPRUE SAFETY PRODUCTS LTD====,1069385,1,988.8,FIRE DETECTORS,12/01/2015,988.8,Operations Non Fire Stations,Health & Safety
070115C,*SPRUE SAFETY PRODUCTS LTD====,1069386,1,988.8,FIRE DETECTORS,12/01/2015,988.8,Operations Non Fire Stations,Health & Safety
070115C,*SPRUE SAFETY PRODUCTS LTD====,1069387,1,988.8,FIRE DETECTORS,12/01/2015,988.8,Operations Non Fire Stations,Health & Safety
070115C,*SPRUE SAFETY PRODUCTS LTD====,1069388,1,618,FIRE DETECTORS,12/01/2015,618,Operations Non Fire Stations,Health & Safety
070115C,*SPRUE SAFETY PRODUCTS LTD====,1069389,1,988.8,FIRE DETECTORS,12/01/2015,988.8,Operations Non Fire Stations,Health & Safety
070115C,*SPRUE SAFETY PRODUCTS LTD====,1069390,1,741.6,FIRE DETECTORS,12/01/2015,741.6,Operations Non Fire Stations,Health & Safety
070115C,*SPRUE SAFETY PRODUCTS LTD====,1069391,1,618,FIRE DETECTORS,12/01/2015,618,Operations Non Fire Stations,Health & Safety
070115C,*SPRUE SAFETY PRODUCTS LTD====,1069392,1,"1,236.00",FIRE DETECTORS,12/01/2015,"1,236.00",Operations Non Fire Stations,Health & Safety
070115C,*SPRUE SAFETY PRODUCTS LTD====,1069393,1,618,FIRE DETECTORS,12/01/2015,618,Operations Non Fire Stations,Health & Safety
070115C,*SPRUE SAFETY PRODUCTS LTD====,1069394,1,988.8,FIRE DETECTORS,12/01/2015,988.8,Operations Non Fire Stations,Health & Safety
070115C,*SPRUE SAFETY PRODUCTS LTD====,1069395,1,"1,730.40",FIRE DETECTORS,12/01/2015,"1,730.40",Operations Non Fire Stations,Health & Safety
070115C,*SPRUE SAFETY PRODUCTS LTD====,1069396,1,"1,730.40",FIRE DETECTORS,12/01/2015,"1,730.40",Operations Non Fire Stations,Health & Safety
070115C,*SPRUE SAFETY PRODUCTS LTD====,1069397,1,618,FIRE DETECTORS,12/01/2015,618,Operations Non Fire Stations,Health & Safety
070115C,*SPRUE SAFETY PRODUCTS LTD====,1069398,1,988.8,FIRE DETECTORS,12/01/2015,988.8,Operations Non Fire Stations,Health & Safety
070115C,*SPRUE SAFETY PRODUCTS LTD====,1069399,1,988.8,FIRE DETECTORS,12/01/2015,988.8,Operations Non Fire Stations,Health & Safety
070115C,*SPRUE SAFETY PRODUCTS LTD====,1069401,1,618,FIRE DETECTORS,12/01/2015,618,Operations Non Fire Stations,Health & Safety
070115C,*SPRUE SAFETY PRODUCTS LTD====,1069402,1,988.8,FIRE DETECTORS,12/01/2015,988.8,Operations Non Fire Stations,Health & Safety
070115C,*SPRUE SAFETY PRODUCTS LTD====,1069403,1,618,FIRE DETECTORS,12/01/2015,618,Operations Non Fire Stations,Health & Safety
060115E,*SPRUE SAFETY PRODUCTS LTD====,1069477,1,"2,719.20",FIRE DETECTORS,12/01/2015,"2,719.20",Operations Non Fire Stations,Health & Safety
060115E,*SPRUE SAFETY PRODUCTS LTD====,1069490,1,880,FIRE DETECTORS,12/01/2015,"2,640.00",Operations Non Fire Stations,Health & Safety
060115E,*SPRUE SAFETY PRODUCTS LTD====,1069490,2,"1,760.00",FIRE DETECTORS,12/01/2015,,Operations Non Fire Stations,Health & Safety
060115E,*SPRUE SAFETY PRODUCTS LTD====,1069491,1,"1,600.00",FIRE DETECTORS,12/01/2015,"1,600.00",Operations Non Fire Stations,Health & Safety
060115E,*SPRUE SAFETY PRODUCTS LTD====,1069537,1,"1,236.00",FIRE DETECTORS,12/01/2015,"1,236.00",Operations Non Fire Stations,Health & Safety
060115E,*SPRUE SAFETY PRODUCTS LTD====,1069538,1,741.6,FIRE DETECTORS,12/01/2015,741.6,Operations Non Fire Stations,Health & Safety
060115E,*SPRUE SAFETY PRODUCTS LTD====,1069540,1,741.6,FIRE DETECTORS,12/01/2015,741.6,Operations Non Fire Stations,Health & Safety
060115E,*SPRUE SAFETY PRODUCTS LTD====,1069541,1,"1,359.60",FIRE DETECTORS,12/01/2015,"1,359.60",Operations Non Fire Stations,Health & Safety
060115E,BT GLOBAL SERVICES============,1132445,1,541.66,TELECOMMUNICATIONS,12/01/2015,541.66,Information and Communication Technology,ICT
060115E,SILVERSANDS LIMITED===========,121649,1,950,PURCHASES-SOFTWARE,12/01/2015,950,Information and Communication Technology,ICT
140915,BOURNE CONSTRUCTION COMPANY,14/514,1,"2,500.00",STRATEGIC (NON CYCLICAL),12/01/2015,"4,150.00",Technical and Service Support,"Works - Construction, R&M"
140915,BOURNE CONSTRUCTION COMPANY,14/514,2,"1,650.00",STRATEGIC (NON CYCLICAL),12/01/2015,,Technical and Service Support,"Works - Construction, R&M"
140915,BOURNE CONSTRUCTION COMPANY,14/515,1,"3,400.00",STRATEGIC (NON CYCLICAL),12/01/2015,"5,650.00",Technical and Service Support,"Works - Construction, R&M"
140915,BOURNE CONSTRUCTION COMPANY,14/515,2,"2,250.00",STRATEGIC (NON CYCLICAL),12/01/2015,,Technical and Service Support,"Works - Construction, R&M"
070115C,RICOH IMAGING UK LTD,1400147756,1,848.85,OPERATIONAL EQUIP-PURCHASE,12/01/2015,848.85,Operational Assurance,Facilities & Management S
140914,THAMES WATER UTILITIES LTD====,16168-06584M,1,456.75,WATER & SEWERAGE RATES,12/01/2015,456.75,Technical And Service Support,Utilities
140914,THAMES WATER UTILITIES LTD====,18966-01041O,1,890.91,WATER & SEWERAGE RATES,12/01/2015,890.91,Technical And Service Support,Utilities
060115E,GRADIENT CONSULTANTS LLP======,2196,1,105,ASBESTOS,12/01/2015,790,Technical and Service Support,"Works - Construction, R&M"
060115E,GRADIENT CONSULTANTS LLP======,2196,2,105,ASBESTOS,12/01/2015,,Technical and Service Support,"Works - Construction, R&M"
060115E,GRADIENT CONSULTANTS LLP======,2196,3,105,ASBESTOS,12/01/2015,,Technical and Service Support,"Works - Construction, R&M"
060115E,GRADIENT CONSULTANTS LLP======,2196,4,55,ASBESTOS,12/01/2015,,Technical and Service Support,"Works - Construction, R&M"
060115E,GRADIENT CONSULTANTS LLP======,2196,5,105,ASBESTOS,12/01/2015,,Technical and Service Support,"Works - Construction, R&M"
060115E,GRADIENT CONSULTANTS LLP======,2196,6,105,ASBESTOS,12/01/2015,,Technical and Service Support,"Works - Construction, R&M"
060115E,GRADIENT CONSULTANTS LLP======,2196,7,105,ASBESTOS,12/01/2015,,Technical and Service Support,"Works - Construction, R&M"
060115E,GRADIENT CONSULTANTS LLP======,2196,8,105,ASBESTOS,12/01/2015,,Technical and Service Support,"Works - Construction, R&M"
070115C,FIRE SERVICES YOUTH TRAIN.ASS.,2501,1,416.9,SUBSCRIPTIONS,12/01/2015,416.9,Community Safety Delivery,Human Resources
140914,THAMES WATER UTILITIES LTD====,25599-01112M,1,327.71,WATER & SEWERAGE RATES,12/01/2015,327.71,Technical And Service Support,Utilities
800054051,ADECCO UK LIMITED=============,26926725,1,"1,285.55",FRS STAFF AGENCY,12/01/2015,"1,285.55",Technical And Service Support,Human Resources
800056973,ADECCO UK LIMITED=============,26934369,1,"1,835.15",FRS STAFF AGENCY,12/01/2015,"1,835.15",Vehicle & Equipment Programme,Human Resources
800057013,ADECCO UK LIMITED=============,26948929,1,531.6,FRS STAFF AGENCY,12/01/2015,531.6,Mobilising,Human Resources
800055331,ADECCO UK LIMITED=============,26963819,1,345.4,FRS STAFF AGENCY,12/01/2015,345.4,Regulatory Fire Safety,Human Resources
800055374,ADECCO UK LIMITED=============,26971957,1,535.92,FRS STAFF AGENCY,12/01/2015,535.92,Vehicle & Equipment Programme,Human Resources
800056979,ADECCO UK LIMITED=============,26979151,1,"1,468.12",FRS STAFF AGENCY,12/01/2015,"1,468.12",Vehicle & Equipment Programme,Human Resources
800056980,ADECCO UK LIMITED=============,26986650,1,"1,835.15",FRS STAFF AGENCY,12/01/2015,"1,835.15",Vehicle & Equipment Programme,Human Resources
800055958,ADECCO UK LIMITED=============,26994129,1,893.2,FRS STAFF AGENCY,12/01/2015,893.2,Vehicle & Equipment Programme,Human Resources
800056716,ADECCO UK LIMITED=============,27008904,1,499.52,FRS STAFF AGENCY,12/01/2015,499.52,Operations Non Fire Stations,Human Resources
800056793,ADECCO UK LIMITED=============,27022905,1,354.4,FRS STAFF AGENCY,12/01/2015,354.4,Mobilising,Human Resources
140916,THAMES WATER UTILITIES LTD====,27970-86298M,1,"1,897.79",WATER & SEWERAGE RATES,12/01/2015,"1,897.79",Technical And Service Support,Utilities
060115E,EVOLUTION ENVIRONMENTAL LTD,3451,1,205,ASBESTOS,12/01/2015,690,Technical and Service Support,"Works - Construction, R&M"
060115E,EVOLUTION ENVIRONMENTAL LTD,3451,2,205,ASBESTOS,12/01/2015,,Technical and Service Support,"Works - Construction, R&M"
060115E,EVOLUTION ENVIRONMENTAL LTD,3451,3,280,ASBESTOS,12/01/2015,,Technical and Service Support,"Works - Construction, R&M"
070115C,HUNTERS CONTRACTS LIMITED,348584,1,334.3,OFFICE FURNITURE,12/01/2015,334.3,Operations Fire Stations,Furniture
070115C,FLEXIFORM BUSINESS FURNITURE==,412700,1,"22,149.60",PURCHASES-FURNITURE,12/01/2015,"22,149.60",Technical and Service Support,Furniture
070115C,FLEXIFORM BUSINESS FURNITURE==,413703,1,"17,484.00",PURCHASES-FURNITURE,12/01/2015,"17,484.00",Technical and Service Support,Furniture
070115C,FLEXIFORM BUSINESS FURNITURE==,413704,1,"1,165.60",PURCHASES-FURNITURE,12/01/2015,"1,165.60",Technical and Service Support,Furniture
070115C,FLEXIFORM BUSINESS FURNITURE==,413717,1,528,PURCHASES-FURNITURE,12/01/2015,528,Technical and Service Support,Furniture
060115E,FLEXIFORM BUSINESS FURNITURE==,413718,1,"7,698.60",PURCHASES-FURNITURE,12/01/2015,"7,698.60",Technical and Service Support,Furniture
070115C,FLEXIFORM BUSINESS FURNITURE==,413719,1,"3,496.80",PURCHASES-FURNITURE,12/01/2015,"3,496.80",Technical and Service Support,Furniture
140916,MR STEVEN SNOWDEN,417653*,1,"3,000.00",COUNSELS FEES,12/01/2015,"3,000.00",Legal & Democratic Services,Legal Services
140916,MR JACK FERRO=================,419451*,1,800,COUNSELS FEES,12/01/2015,800,Legal & Democratic Services,Legal Services
140914,THAMES WATER UTILITIES LTD====,42153-20857M,1,350.57,WATER & SEWERAGE RATES,12/01/2015,350.57,Technical And Service Support,Utilities
060115E,MITIE SECURITY (LONDON) LTD===,45/573583,1,"11,340.00",PREMISES SECURITY,12/01/2015,"12,120.00",Business Continuity,Facilities & Management S
060115E,MITIE SECURITY (LONDON) LTD===,45/573583,2,780,PREMISES SECURITY,12/01/2015,,Business Continuity,Facilities & Management S
140916,THAMES WATER UTILITIES LTD====,45803-10009M,1,682.79,WATER & SEWERAGE RATES,12/01/2015,682.79,Technical And Service Support,Utilities
140916,THAMES WATER UTILITIES LTD====,47190-45186M,1,"1,839.44",WATER & SEWERAGE RATES,12/01/2015,"1,839.44",Technical And Service Support,Utilities
140914,THAMES WATER UTILITIES LTD====,6514996346+,1,253.43,WATER & SEWERAGE RATES,12/01/2015,253.43,Technical And Service Support,Utilities
140916,MR JOHN CAVANAGH==============,73816B,1,"4,015.00",COUNSELS FEES,12/01/2015,"4,015.00",Legal & Democratic Services,Legal Services
140914,THAMES WATER UTILITIES LTD====,79779-62312N,1,917.99,WATER & SEWERAGE RATES,12/01/2015,917.99,Technical And Service Support,Utilities
140916,THAMES WATER UTILITIES LTD====,86411-42518M,1,910.01,WATER & SEWERAGE RATES,12/01/2015,910.01,Technical And Service Support,Utilities
070115C,ROYAL MAIL (LONDON DIVISION)==,9048794965,1,"1,781.29",POSTAL SERVICES,12/01/2015,"1,950.00",Strategy & Performance,Mail Services
070115C,ROYAL MAIL (LONDON DIVISION)==,9048794965,2,168.71,POSTAL SERVICES,12/01/2015,,Strategy & Performance,Mail Services
070115C,WESTON DIGITAL TECHNOLOGIES===,91208,1,"3,740.43",MAINTENANCE & SUPPORT,12/01/2015,"3,740.43",Information and Communication Technology,ICT
140914,THAMES WATER UTILITIES LTD====,95992-95181M,1,374.16,WATER & SEWERAGE RATES,12/01/2015,374.16,Technical And Service Support,Utilities
060115E,PITNEY BOWES PURCHASE POWER,BC214808,1,"4,040.00",POSTAL SERVICES,12/01/2015,"4,040.00",Strategy & Performance,Mail Services
070115C,THAMES WATER UTILITIES LTD====,CBA1410822,1,"1,185.00",CURRENT HYDRANT COSTS,12/01/2015,"1,185.00",Operational Resilience,Utilities
070115C,THAMES WATER UTILITIES LTD====,CBA1411032,1,"1,185.00",CURRENT HYDRANT COSTS,12/01/2015,"1,185.00",Operational Resilience,Utilities
070115C,THAMES WATER UTILITIES LTD====,CBA1411036,1,"1,185.00",CURRENT HYDRANT COSTS,12/01/2015,"1,185.00",Operational Resilience,Utilities
070115C,THAMES WATER UTILITIES LTD====,CBA1411634,1,"1,185.00",CURRENT HYDRANT COSTS,12/01/2015,"1,185.00",Operational Resilience,Utilities
070115C,THAMES WATER UTILITIES LTD====,CBA1411635,1,436,CURRENT HYDRANT COSTS,12/01/2015,436,Operational Resilience,Utilities
800056972,ALLSTAR BUSINESS SOLUTIONS LTD,E2004045703,1,473.16,FUEL,12/01/2015,"13,322.23",Operations Non Fire Stations,Vehicle Management
800056972,ALLSTAR BUSINESS SOLUTIONS LTD,E2004045703,2,384.77,FUEL,12/01/2015,,Operations Fire Stations,Vehicle Management
800056972,ALLSTAR BUSINESS SOLUTIONS LTD,E2004045703,3,384.14,FUEL,12/01/2015,,Operations Fire Stations,Vehicle Management
800056972,ALLSTAR BUSINESS SOLUTIONS LTD,E2004045703,4,350.4,FUEL,12/01/2015,,Operations Fire Stations,Vehicle Management
800056972,ALLSTAR BUSINESS SOLUTIONS LTD,E2004045703,5,317.58,FUEL,12/01/2015,,Operations Fire Stations,Vehicle Management
800056972,ALLSTAR BUSINESS SOLUTIONS LTD,E2004045703,6,287.45,FUEL,12/01/2015,,Operations Fire Stations,Vehicle Management
800056972,ALLSTAR BUSINESS SOLUTIONS LTD,E2004045703,7,263.29,FUEL,12/01/2015,,Operations Fire Stations,Vehicle Management
800056972,ALLSTAR BUSINESS SOLUTIONS LTD,E2004045703,8,260.25,FUEL,12/01/2015,,Technical And Service Support,Vehicle Management
800056972,ALLSTAR BUSINESS SOLUTIONS LTD,E2004045703,9,258.26,FUEL,12/01/2015,,Operations Fire Stations,Vehicle Management
800056972,ALLSTAR BUSINESS SOLUTIONS LTD,E2004045703,10,255.46,FUEL,12/01/2015,,Operations Fire Stations,Vehicle Management
800056972,ALLSTAR BUSINESS SOLUTIONS LTD,E2004045703,11,246.79,FUEL,12/01/2015,,Operations Fire Stations,Vehicle Management
800056972,ALLSTAR BUSINESS SOLUTIONS LTD,E2004045703,12,244.02,FUEL,12/01/2015,,Operations Fire Stations,Vehicle Management
800056972,ALLSTAR BUSINESS SOLUTIONS LTD,E2004045703,13,239.84,FUEL,12/01/2015,,Operations Fire Stations,Vehicle Management
800056972,ALLSTAR BUSINESS SOLUTIONS LTD,E2004045703,14,231.37,FUEL,12/01/2015,,Operations Fire Stations,Vehicle Management
800056972,ALLSTAR BUSINESS SOLUTIONS LTD,E2004045703,15,230.68,FUEL,12/01/2015,,Operations Fire Stations,Vehicle Management
800056972,ALLSTAR BUSINESS SOLUTIONS LTD,E2004045703,16,225.95,FUEL,12/01/2015,,Operations Fire Stations,Vehicle Management
800056972,ALLSTAR BUSINESS SOLUTIONS LTD,E2004045703,17,224.84,FUEL,12/01/2015,,Operations Fire Stations,Vehicle Management
800056972,ALLSTAR BUSINESS SOLUTIONS LTD,E2004045703,18,216.79,FUEL,12/01/2015,,Operations Fire Stations,Vehicle Management
800056972,ALLSTAR BUSINESS SOLUTIONS LTD,E2004045703,19,210.09,FUEL,12/01/2015,,Operations Fire Stations,Vehicle Management
800056972,ALLSTAR BUSINESS SOLUTIONS LTD,E2004045703,20,209.78,FUEL,12/01/2015,,Operations Fire Stations,Vehicle Management
800056972,ALLSTAR BUSINESS SOLUTIONS LTD,E2004045703,21,205.94,FUEL,12/01/2015,,Operations Fire Stations,Vehicle Management
800056972,ALLSTAR BUSINESS SOLUTIONS LTD,E2004045703,22,204.37,FUEL,12/01/2015,,Operations Fire Stations,Vehicle Management
800056972,ALLSTAR BUSINESS SOLUTIONS LTD,E2004045703,23,204.09,FUEL,12/01/2015,,Operations Fire Stations,Vehicle Management
800056972,ALLSTAR BUSINESS SOLUTIONS LTD,E2004045703,24,196.14,FUEL,12/01/2015,,Operations Fire Stations,Vehicle Management
800056972,ALLSTAR BUSINESS SOLUTIONS LTD,E2004045703,25,180.57,FUEL,12/01/2015,,Operations Fire Stations,Vehicle Management
800056972,ALLSTAR BUSINESS SOLUTIONS LTD,E2004045703,26,180.26,FUEL,12/01/2015,,Operations Fire Stations,Vehicle Management
800056972,ALLSTAR BUSINESS SOLUTIONS LTD,E2004045703,27,174.2,FUEL,12/01/2015,,Operations Fire Stations,Vehicle Management
800056972,ALLSTAR BUSINESS SOLUTIONS LTD,E2004045703,28,173.3,FUEL,12/01/2015,,Operations Fire Stations,Vehicle Management
800056972,ALLSTAR BUSINESS SOLUTIONS LTD,E2004045703,29,167.61,FUEL,12/01/2015,,Operations Fire Stations,Vehicle Management
800056972,ALLSTAR BUSINESS SOLUTIONS LTD,E2004045703,30,163.38,FUEL,12/01/2015,,Operations Fire Stations,Vehicle Management
800056972,ALLSTAR BUSINESS SOLUTIONS LTD,E2004045703,31,161.29,FUEL,12/01/2015,,Operations Fire Stations,Vehicle Management
800056972,ALLSTAR BUSINESS SOLUTIONS LTD,E2004045703,32,160.55,FUEL,12/01/2015,,Operations Fire Stations,Vehicle Management
800056972,ALLSTAR BUSINESS SOLUTIONS LTD,E2004045703,33,159.75,FUEL,12/01/2015,,Operations Fire Stations,Vehicle Management
800056972,ALLSTAR BUSINESS SOLUTIONS LTD,E2004045703,34,157.49,FUEL,12/01/2015,,Operations Fire Stations,Vehicle Management
800056972,ALLSTAR BUSINESS SOLUTIONS LTD,E2004045703,35,154.55,FUEL,12/01/2015,,Operations Fire Stations,Vehicle Management
800056972,ALLSTAR BUSINESS SOLUTIONS LTD,E2004045703,36,151.58,FUEL,12/01/2015,,Operations Fire Stations,Vehicle Management
800056972,ALLSTAR BUSINESS SOLUTIONS LTD,E2004045703,37,146.42,FUEL,12/01/2015,,Regulatory Fire Safety,Vehicle Management
800056972,ALLSTAR BUSINESS SOLUTIONS LTD,E2004045703,38,143.36,FUEL,12/01/2015,,Operations Fire Stations,Vehicle Management
800056972,ALLSTAR BUSINESS SOLUTIONS LTD,E2004045703,39,143.31,FUEL,12/01/2015,,Operations Fire Stations,Vehicle Management
800056972,ALLSTAR BUSINESS SOLUTIONS LTD,E2004045703,40,141.1,FUEL,12/01/2015,,Operations Fire Stations,Vehicle Management
800056972,ALLSTAR BUSINESS SOLUTIONS LTD,E2004045703,41,140.12,FUEL,12/01/2015,,Operations Fire Stations,Vehicle Management
800056972,ALLSTAR BUSINESS SOLUTIONS LTD,E2004045703,42,139.22,FUEL,12/01/2015,,Operations Fire Stations,Vehicle Management
800056972,ALLSTAR BUSINESS SOLUTIONS LTD,E2004045703,43,137.8,FUEL,12/01/2015,,Operations Fire Stations,Vehicle Management
800056972,ALLSTAR BUSINESS SOLUTIONS LTD,E2004045703,44,135.57,FUEL,12/01/2015,,Operations Fire Stations,Vehicle Management
800056972,ALLSTAR BUSINESS SOLUTIONS LTD,E2004045703,45,129.41,FUEL,12/01/2015,,Operations Fire Stations,Vehicle Management
800056972,ALLSTAR BUSINESS SOLUTIONS LTD,E2004045703,46,124.09,FUEL,12/01/2015,,Operations Fire Stations,Vehicle Management
800056972,ALLSTAR BUSINESS SOLUTIONS LTD,E2004045703,47,120.95,FUEL,12/01/2015,,Operations Fire Stations,Vehicle Management
800056972,ALLSTAR BUSINESS SOLUTIONS LTD,E2004045703,48,120.73,FUEL,12/01/2015,,Operations Fire Stations,Vehicle Management
800056972,ALLSTAR BUSINESS SOLUTIONS LTD,E2004045703,49,115.68,FUEL,12/01/2015,,Operations Fire Stations,Vehicle Management
800056972,ALLSTAR BUSINESS SOLUTIONS LTD,E2004045703,50,115.1,FUEL,12/01/2015,,Procurement,Vehicle Management
800056972,ALLSTAR BUSINESS SOLUTIONS LTD,E2004045703,51,113.59,FUEL,12/01/2015,,Operations Fire Stations,Vehicle Management
800056972,ALLSTAR BUSINESS SOLUTIONS LTD,E2004045703,52,112.72,FUEL,12/01/2015,,Operations Fire Stations,Vehicle Management
800056972,ALLSTAR BUSINESS SOLUTIONS LTD,E2004045703,53,112.5,FUEL,12/01/2015,,Operations Fire Stations,Vehicle Management
800056972,ALLSTAR BUSINESS SOLUTIONS LTD,E2004045703,54,109.05,FUEL,12/01/2015,,Operations Fire Stations,Vehicle Management
800056972,ALLSTAR BUSINESS SOLUTIONS LTD,E2004045703,55,105.95,FUEL,12/01/2015,,Operations Fire Stations,Vehicle Management
800056972,ALLSTAR BUSINESS SOLUTIONS LTD,E2004045703,56,105.2,FUEL,12/01/2015,,Operations Non Fire Stations,Vehicle Management
800056972,ALLSTAR BUSINESS SOLUTIONS LTD,E2004045703,57,105.11,FUEL,12/01/2015,,Operations Fire Stations,Vehicle Management
800056972,ALLSTAR BUSINESS SOLUTIONS LTD,E2004045703,58,95.53,FUEL,12/01/2015,,Operations Fire Stations,Vehicle Management
800056972,ALLSTAR BUSINESS SOLUTIONS LTD,E2004045703,59,94.72,FUEL,12/01/2015,,Operations Fire Stations,Vehicle Management
800056972,ALLSTAR BUSINESS SOLUTIONS LTD,E2004045703,60,92.99,FUEL,12/01/2015,,Operations Fire Stations,Vehicle Management
800056972,ALLSTAR BUSINESS SOLUTIONS LTD,E2004045703,61,92.89,FUEL,12/01/2015,,Operations Fire Stations,Vehicle Management
800056972,ALLSTAR BUSINESS SOLUTIONS LTD,E2004045703,62,90.74,FUEL,12/01/2015,,Operations Fire Stations,Vehicle Management
800056972,ALLSTAR BUSINESS SOLUTIONS LTD,E2004045703,63,88.86,FUEL,12/01/2015,,Operations Fire Stations,Vehicle Management
800056972,ALLSTAR BUSINESS SOLUTIONS LTD,E2004045703,64,83.94,FUEL,12/01/2015,,Operations Fire Stations,Vehicle Management
800056972,ALLSTAR BUSINESS SOLUTIONS LTD,E2004045703,65,82.48,FUEL,12/01/2015,,Operations Fire Stations,Vehicle Management
800056972,ALLSTAR BUSINESS SOLUTIONS LTD,E2004045703,66,81.61,FUEL,12/01/2015,,Operations Fire Stations,Vehicle Management
800056972,ALLSTAR BUSINESS SOLUTIONS LTD,E2004045703,67,80.4,FUEL,12/01/2015,,Operations Fire Stations,Vehicle Management
800056972,ALLSTAR BUSINESS SOLUTIONS LTD,E2004045703,68,80.23,FUEL,12/01/2015,,Operations Fire Stations,Vehicle Management
800056972,ALLSTAR BUSINESS SOLUTIONS LTD,E2004045703,69,74.45,FUEL,12/01/2015,,Operations Fire Stations,Vehicle Management
800056972,ALLSTAR BUSINESS SOLUTIONS LTD,E2004045703,70,73.75,FUEL,12/01/2015,,Operations Fire Stations,Vehicle Management
800056972,ALLSTAR BUSINESS SOLUTIONS LTD,E2004045703,71,72.5,FUEL,12/01/2015,,Operational Resilience,Vehicle Management
800056972,ALLSTAR BUSINESS SOLUTIONS LTD,E2004045703,72,70.72,FUEL,12/01/2015,,Operations Fire Stations,Vehicle Management
800056972,ALLSTAR BUSINESS SOLUTIONS LTD,E2004045703,73,70.09,FUEL,12/01/2015,,Operations Fire Stations,Vehicle Management
800056972,ALLSTAR BUSINESS SOLUTIONS LTD,E2004045703,74,67.78,FUEL,12/01/2015,,Operations Fire Stations,Vehicle Management
800056972,ALLSTAR BUSINESS SOLUTIONS LTD,E2004045703,75,67.59,FUEL,12/01/2015,,Command Units,Vehicle Management
800056972,ALLSTAR BUSINESS SOLUTIONS LTD,E2004045703,76,65.39,FUEL,12/01/2015,,Operational Resilience,Vehicle Management
800056972,ALLSTAR BUSINESS SOLUTIONS LTD,E2004045703,77,60.47,FUEL,12/01/2015,,Operations Fire Stations,Vehicle Management
800056972,ALLSTAR BUSINESS SOLUTIONS LTD,E2004045703,78,59.45,FUEL,12/01/2015,,Business Continuity,Vehicle Management
800056972,ALLSTAR BUSINESS SOLUTIONS LTD,E2004045703,79,57.69,FUEL,12/01/2015,,Operations Fire Stations,Vehicle Management
800056972,ALLSTAR BUSINESS SOLUTIONS LTD,E2004045703,80,56.95,FUEL,12/01/2015,,Technical And Service Support,Vehicle Management
800056972,ALLSTAR BUSINESS SOLUTIONS LTD,E2004045703,81,56.14,FUEL,12/01/2015,,Operations Fire Stations,Vehicle Management
800056972,ALLSTAR BUSINESS SOLUTIONS LTD,E2004045703,82,54.8,FUEL,12/01/2015,,Command Units,Vehicle Management
800056972,ALLSTAR BUSINESS SOLUTIONS LTD,E2004045703,83,54.16,FUEL,12/01/2015,,Operations Fire Stations,Vehicle Management
800056972,ALLSTAR BUSINESS SOLUTIONS LTD,E2004045703,84,49.52,FUEL,12/01/2015,,Operations Fire Stations,Vehicle Management
800056972,ALLSTAR BUSINESS SOLUTIONS LTD,E2004045703,85,48.5,FUEL,12/01/2015,,Operations Fire Stations,Vehicle Management
800056972,ALLSTAR BUSINESS SOLUTIONS LTD,E2004045703,86,48.14,FUEL,12/01/2015,,Command Units,Vehicle Management
800056972,ALLSTAR BUSINESS SOLUTIONS LTD,E2004045703,87,45.94,FUEL,12/01/2015,,Command Units,Vehicle Management
800056972,ALLSTAR BUSINESS SOLUTIONS LTD,E2004045703,88,43.09,FUEL,12/01/2015,,Command Units,Vehicle Management
800056972,ALLSTAR BUSINESS SOLUTIONS LTD,E2004045703,89,41.97,FUEL,12/01/2015,,Command Units,Vehicle Management
800056972,ALLSTAR BUSINESS SOLUTIONS LTD,E2004045703,90,39.37,FUEL,12/01/2015,,Command Units,Vehicle Management
800056972,ALLSTAR BUSINESS SOLUTIONS LTD,E2004045703,91,33.33,FUEL,12/01/2015,,Command Units,Vehicle Management
800056972,ALLSTAR BUSINESS SOLUTIONS LTD,E2004045703,92,33.33,FUEL,12/01/2015,,Operational Procedures,Vehicle Management
800056972,ALLSTAR BUSINESS SOLUTIONS LTD,E2004045703,93,31.67,FUEL,12/01/2015,,Operations Fire Stations,Vehicle Management
800056972,ALLSTAR BUSINESS SOLUTIONS LTD,E2004045703,94,27.98,FUEL,12/01/2015,,Mobilising,Vehicle Management
800056972,ALLSTAR BUSINESS SOLUTIONS LTD,E2004045703,95,26.11,FUEL,12/01/2015,,CBRN RRT,Vehicle Management
070115C,KEY INDUSTRIAL EQUIPMENT LTD==,I0559075,1,188,OPERATIONAL EQUIP-PURCHASE,12/01/2015,376,Operations Fire Stations,Furniture
070115C,KEY INDUSTRIAL EQUIPMENT LTD==,I0559075,2,188,OPERATIONAL EQUIP-PURCHASE,12/01/2015,,Operations Fire Stations,Furniture
140916,QBE INSURANCE (EUROPE) LTD====,INSTALMENT 2 14/15,1,"165,000.00",INSURANCE CLAIMS,12/01/2015,"330,000.00",Procurement,Vehicle Management
140916,QBE INSURANCE (EUROPE) LTD====,INSTALMENT 2 14/15,2,"165,000.00",PAYMENTS IN ADVANCE,12/01/2015,,Do not include,Vehicle Management
060115E,BLUESKY SHAREPOINT CONSULTING,INV-1446,1,"20,400.00",CONSULTANTS,12/01/2015,"20,400.00",National Operational Guidance Project,Consultancy
070115C,ESTEEM SYSTEMS LTD============,OP/I081879,1,"22,383.00",MAINTENANCE & SUPPORT,12/01/2015,"22,383.00",Information and Communication Technology,ICT
070115C,KCOM GROUP====================,PA171778,1,"1,586.13",DEVELOPMT  EXP-COMPUTER CABLES,12/01/2015,"6,608.37",Technical and Service Support,ICT
070115C,KCOM GROUP====================,PA171778,2,"3,441.72",DEVELOPMT  EXP-COMPUTER CABLES,12/01/2015,,Technical and Service Support,ICT
070115C,KCOM GROUP====================,PA171778,3,718.52,DEVELOPMT  EXP-COMPUTER CABLES,12/01/2015,,Technical and Service Support,ICT
070115C,KCOM GROUP====================,PA171778,4,862,DEVELOPMT  EXP-COMPUTER CABLES,12/01/2015,,Technical and Service Support,ICT
070115C,KCOM GROUP====================,PA171780,1,"4,450.00",DEVELOPMENT  EXPENSES-CONTRACT,12/01/2015,"4,450.00",Property PFI,ICT
070115C,KCOM GROUP====================,PA171781,1,"1,137.00",DEVELOPMENT  EXPENSES-CONTRACT,12/01/2015,"1,137.00",Property PFI,ICT
070115C,KCOM GROUP====================,PA171782,1,642,DEVELOPMENT  EXPENSES-CONTRACT,12/01/2015,642,Property PFI,ICT
070115C,SAFETYNET SOLUTIONS LIMITED===,PSI-0024146,1,314.3,TACTICAL DAY TO DAY,12/01/2015,314.3,Technical And Service Support,Facilities & Management S
060115E,SECURITAS SECURITY SERVICES LT,S-SIN0291876,1,"94,944.96",GENERAL,12/01/2015,"94,944.96",Business Continuity,Fire & Rescue
070115C,HUNTER LODGE==================,SI-05684,1,"6,000.00",ADVERTISING,12/01/2015,"6,000.00",Business Continuity,Facilities & Management S
140920,THE SALVATION ARMY============,3/9/KG,1,"2,522.08",REFRESHMENTS,14/01/2015,"2,522.08",Operational Procedures,Social Community Care S&S
902487,OPENDNS INC,447428,1,"1,564.89",MAINTENANCE & SUPPORT,14/01/2015,"1,564.89",Information and Communication Technology,ICT
140921,PATTINSON BREWER==============,9534,1,"2,800.00",CLAIMANT COSTS AGREED,14/01/2015,"2,800.00",Legal & Democratic Services,Consultancy
140920,ROYAL MAIL (LONDON DIVISION)==,AD5834,1,620,POSTAL SERVICES,14/01/2015,620,Strategy & Performance,Mail Services
140920,JOHN TYLER====================,VAT-C141205,1,456,REFRESHMENTS,14/01/2015,456,Operational Procedures,Social Community Care S&S
080115E,GOVNET COMMUNICATIONS=========,76186,1,295,PROFESSIONAL DEVELOPMENT,15/01/2015,295,Operational Resilience,Human Resources
080115C,MOOLANDS LTD,1562,1,"3,170.00",STRATEGIC (NON CYCLICAL),15/01/2015,"3,170.00",Technical and Service Support,"Works - Construction, R&M"
080115C,MOOLANDS LTD,1583,1,755,STRATEGIC (CYCLICAL),15/01/2015,"7,550.00",Technical and Service Support,"Works - Construction, R&M"
080115C,MOOLANDS LTD,1583,2,755,STRATEGIC (CYCLICAL),15/01/2015,,Technical and Service Support,"Works - Construction, R&M"
080115C,MOOLANDS LTD,1583,3,755,STRATEGIC (CYCLICAL),15/01/2015,,Technical and Service Support,"Works - Construction, R&M"
080115C,MOOLANDS LTD,1583,4,755,STRATEGIC (CYCLICAL),15/01/2015,,Technical and Service Support,"Works - Construction, R&M"
080115C,MOOLANDS LTD,1583,5,755,STRATEGIC (CYCLICAL),15/01/2015,,Technical and Service Support,"Works - Construction, R&M"
080115C,MOOLANDS LTD,1583,6,755,STRATEGIC (CYCLICAL),15/01/2015,,Technical and Service Support,"Works - Construction, R&M"
080115C,MOOLANDS LTD,1583,7,755,STRATEGIC (CYCLICAL),15/01/2015,,Technical and Service Support,"Works - Construction, R&M"
080115C,MOOLANDS LTD,1583,8,755,STRATEGIC (CYCLICAL),15/01/2015,,Technical and Service Support,"Works - Construction, R&M"
080115C,MOOLANDS LTD,1583,9,755,STRATEGIC (CYCLICAL),15/01/2015,,Technical and Service Support,"Works - Construction, R&M"
080115C,MOOLANDS LTD,1583,10,755,STRATEGIC (CYCLICAL),15/01/2015,,Technical and Service Support,"Works - Construction, R&M"
140919,OGILVIE FLEET LTD=============,316186,1,355.22,LEASE CAR CHARGES,15/01/2015,355.22,Procurement,Vehicle Management
140919,OGILVIE FLEET LTD=============,316186,2,-30.7,VAT CAR LEASING,15/01/2015,,Finance Services,Vehicle Management
140919,OGILVIE FLEET LTD=============,316186,3,30.7,LEASE CAR CHARGES,15/01/2015,,Procurement,Vehicle Management
140919,OGILVIE FLEET LTD=============,316187,1,393.25,LEASE CAR CHARGES,15/01/2015,393.25,Procurement,Vehicle Management
140919,OGILVIE FLEET LTD=============,316187,2,-34.53,VAT CAR LEASING,15/01/2015,,Finance Services,Vehicle Management
140919,OGILVIE FLEET LTD=============,316187,3,34.53,LEASE CAR CHARGES,15/01/2015,,Procurement,Vehicle Management
140919,OGILVIE FLEET LTD=============,316188,1,286.81,LEASE CAR CHARGES,15/01/2015,286.81,Procurement,Vehicle Management
140919,OGILVIE FLEET LTD=============,316188,2,-23.76,VAT CAR LEASING,15/01/2015,,Finance Services,Vehicle Management
140919,OGILVIE FLEET LTD=============,316188,3,23.76,LEASE CAR CHARGES,15/01/2015,,Procurement,Vehicle Management
140919,OGILVIE FLEET LTD=============,317635,1,886.41,LEASE CAR CHARGES,15/01/2015,"4,313.88",Procurement,Vehicle Management
140919,OGILVIE FLEET LTD=============,317635,2,"3,427.47",P/PAYMTS-CAR LEASG-RENTAL,15/01/2015,,Finance Services,Vehicle Management
140919,OGILVIE FLEET LTD=============,317635,3,-365.96,VAT CAR LEASING,15/01/2015,,Finance Services,Vehicle Management
140919,OGILVIE FLEET LTD=============,317635,4,365.96,LEASE CAR CHARGES,15/01/2015,,Procurement,Vehicle Management
140919,OGILVIE FLEET LTD=============,317636,1,"1,081.75",LEASE CAR CHARGES,15/01/2015,"5,335.68",Procurement,Vehicle Management
140919,OGILVIE FLEET LTD=============,317636,2,"4,253.93",P/PAYMTS-CAR LEASG-RENTAL,15/01/2015,,Finance Services,Vehicle Management
140919,OGILVIE FLEET LTD=============,317636,3,-464.35,VAT CAR LEASING,15/01/2015,,Finance Services,Vehicle Management
140919,OGILVIE FLEET LTD=============,317636,4,464.35,LEASE CAR CHARGES,15/01/2015,,Procurement,Vehicle Management
140919,OGILVIE FLEET LTD=============,317637,1,"1,018.86",LEASE CAR CHARGES,15/01/2015,"5,312.64",Procurement,Vehicle Management
140919,OGILVIE FLEET LTD=============,317637,2,"4,293.78",P/PAYMTS-CAR LEASG-RENTAL,15/01/2015,,Finance Services,Vehicle Management
140919,OGILVIE FLEET LTD=============,317637,3,-468.52,VAT CAR LEASING,15/01/2015,,Finance Services,Vehicle Management
140919,OGILVIE FLEET LTD=============,317637,4,468.52,LEASE CAR CHARGES,15/01/2015,,Procurement,Vehicle Management
140919,OGILVIE FLEET LTD=============,317638,1,828.51,LEASE CAR CHARGES,15/01/2015,"3,927.36",Procurement,Vehicle Management
140919,OGILVIE FLEET LTD=============,317638,2,"3,098.85",P/PAYMTS-CAR LEASG-RENTAL,15/01/2015,,Finance Services,Vehicle Management
140919,OGILVIE FLEET LTD=============,317638,3,-345.82,VAT CAR LEASING,15/01/2015,,Finance Services,Vehicle Management
140919,OGILVIE FLEET LTD=============,317638,4,345.82,LEASE CAR CHARGES,15/01/2015,,Procurement,Vehicle Management
140919,OGILVIE FLEET LTD=============,317639,1,586.95,LEASE CAR CHARGES,15/01/2015,"3,400.56",Procurement,Vehicle Management
140919,OGILVIE FLEET LTD=============,317639,2,"2,813.61",P/PAYMTS-CAR LEASG-RENTAL,15/01/2015,,Finance Services,Vehicle Management
140919,OGILVIE FLEET LTD=============,317639,3,-286.31,VAT CAR LEASING,15/01/2015,,Finance Services,Vehicle Management
140919,OGILVIE FLEET LTD=============,317639,4,286.31,LEASE CAR CHARGES,15/01/2015,,Procurement,Vehicle Management
120115C,OPERATIONAL RESEARCH IN HEALTH,02A/LFB1/52,1,"3,800.00",CONSULTANTS,15/01/2015,"3,800.00",Strategy & Performance,Consultancy
140917,THAMES WATER UTILITIES LTD====,04230-30577K,1,"1,125.17",WATER & SEWERAGE RATES,15/01/2015,"1,125.17",Technical And Service Support,Utilities
080115C,HUNTER APPAREL SOLUTIONS LTD==,62,1,224.4,UNIFORMS - POMS,15/01/2015,748.9,Procurement,Clothing
080115C,HUNTER APPAREL SOLUTIONS LTD==,62,2,524.5,UNIFORMS - POMS,15/01/2015,,Procurement,Clothing
140919,ALPHABET (GB) LIMITED,106157,1,"1,268.46",LEASE CAR CHARGES,15/01/2015,"4,097.23",Procurement,Vehicle Management
140919,ALPHABET (GB) LIMITED,106157,2,"2,828.77",P/PAYMTS-CAR LEASG-RENTAL,15/01/2015,,Finance Services,Vehicle Management
140919,ALPHABET (GB) LIMITED,106157,3,-324.89,VAT CAR LEASING,15/01/2015,,Finance Services,Vehicle Management
140919,ALPHABET (GB) LIMITED,106157,4,324.89,LEASE CAR CHARGES,15/01/2015,,Procurement,Vehicle Management
140919,ALPHABET (GB) LIMITED,106376,1,"1,297.54",LEASE CAR CHARGES,15/01/2015,"4,228.60",Procurement,Vehicle Management
140919,ALPHABET (GB) LIMITED,106376,2,"2,931.06",P/PAYMTS-CAR LEASG-RENTAL,15/01/2015,,Finance Services,Vehicle Management
140919,ALPHABET (GB) LIMITED,106376,3,-363.8,VAT CAR LEASING,15/01/2015,,Finance Services,Vehicle Management
140919,ALPHABET (GB) LIMITED,106376,4,363.8,LEASE CAR CHARGES,15/01/2015,,Procurement,Vehicle Management
140919,ALPHABET (GB) LIMITED,106632,1,"1,273.17",LEASE CAR CHARGES,15/01/2015,"4,343.06",Procurement,Vehicle Management
140919,ALPHABET (GB) LIMITED,106632,2,"3,069.89",P/PAYMTS-CAR LEASG-RENTAL,15/01/2015,,Finance Services,Vehicle Management
140919,ALPHABET (GB) LIMITED,106632,3,-371.32,VAT CAR LEASING,15/01/2015,,Finance Services,Vehicle Management
140919,ALPHABET (GB) LIMITED,106632,4,371.32,LEASE CAR CHARGES,15/01/2015,,Procurement,Vehicle Management
080115E,SILVERSANDS LIMITED===========,121692,1,950,PURCHASES-SOFTWARE,15/01/2015,950,Information and Communication Technology,ICT
080115E,SILVERSANDS LIMITED===========,121693,1,"1,900.00",PURCHASES-SOFTWARE,15/01/2015,"1,900.00",Information and Communication Technology,ICT
080115C,HAGEMEYER UK LTD==============,132539455,1,"1,330.68",FIRE DETECTORS,15/01/2015,"1,330.68",Operations Non Fire Stations,Building Constr Materials
080115E,DIAMOND BUILD PLC=============,13854,1,"3,203.24",DEVELOPMENT  EXPENSES-CONTRACT,15/01/2015,"3,203.24",Technical and Service Support,"Works - Construction, R&M"
800056028,*NPS (SHOES) LTD,13892,1,29.45,CLOTHING,15/01/2015,"1,616.25",Operations Fire Stations,Clothing
800056028,*NPS (SHOES) LTD,13892,2,29.45,CLOTHING,15/01/2015,,Operations Fire Stations,Clothing
800056028,*NPS (SHOES) LTD,13892,3,29.45,CLOTHING,15/01/2015,,Operations Fire Stations,Clothing
800056028,*NPS (SHOES) LTD,13892,4,35,CLOTHING,15/01/2015,,Operations Fire Stations,Clothing
800056028,*NPS (SHOES) LTD,13892,5,29.45,CLOTHING,15/01/2015,,Operations Fire Stations,Clothing
800056028,*NPS (SHOES) LTD,13892,6,41.1,CLOTHING,15/01/2015,,Operations Fire Stations,Clothing
800056028,*NPS (SHOES) LTD,13892,7,41.1,CLOTHING,15/01/2015,,Command Units,Clothing
800056028,*NPS (SHOES) LTD,13892,8,28.45,CLOTHING,15/01/2015,,Operations Fire Stations,Clothing
800056028,*NPS (SHOES) LTD,13892,9,29.45,CLOTHING,15/01/2015,,Operations Fire Stations,Clothing
800056028,*NPS (SHOES) LTD,13892,10,35,CLOTHING,15/01/2015,,Operations Fire Stations,Clothing
800056028,*NPS (SHOES) LTD,13892,11,41.1,CLOTHING,15/01/2015,,Operations Fire Stations,Clothing
800056028,*NPS (SHOES) LTD,13892,12,41.1,CLOTHING,15/01/2015,,Operations Fire Stations,Clothing
800056028,*NPS (SHOES) LTD,13892,13,30.05,CLOTHING,15/01/2015,,Operations Fire Stations,Clothing
800056028,*NPS (SHOES) LTD,13892,14,30.05,CLOTHING,15/01/2015,,Operations Fire Stations,Clothing
800056028,*NPS (SHOES) LTD,13892,15,30.05,CLOTHING,15/01/2015,,Operations Fire Stations,Clothing
800056028,*NPS (SHOES) LTD,13892,16,30.05,CLOTHING,15/01/2015,,Operations Fire Stations,Clothing
800056028,*NPS (SHOES) LTD,13892,17,30.05,CLOTHING,15/01/2015,,Operations Fire Stations,Clothing
800056028,*NPS (SHOES) LTD,13892,18,30.05,CLOTHING,15/01/2015,,Operations Fire Stations,Clothing
800056028,*NPS (SHOES) LTD,13892,19,30.05,CLOTHING,15/01/2015,,Operations Fire Stations,Clothing
800056028,*NPS (SHOES) LTD,13892,20,30.05,CLOTHING,15/01/2015,,Operations Fire Stations,Clothing
800056028,*NPS (SHOES) LTD,13892,21,29.45,CLOTHING,15/01/2015,,Operations Fire Stations,Clothing
800056028,*NPS (SHOES) LTD,13892,22,29.45,CLOTHING,15/01/2015,,Operations Fire Stations,Clothing
800056028,*NPS (SHOES) LTD,13892,23,29.45,CLOTHING,15/01/2015,,Operations Fire Stations,Clothing
800056028,*NPS (SHOES) LTD,13892,24,29.45,CLOTHING,15/01/2015,,Operations Fire Stations,Clothing
800056028,*NPS (SHOES) LTD,13892,25,29.45,CLOTHING,15/01/2015,,Operations Fire Stations,Clothing
800056028,*NPS (SHOES) LTD,13892,26,35,CLOTHING,15/01/2015,,Operations Fire Stations,Clothing
800056028,*NPS (SHOES) LTD,13892,27,35,CLOTHING,15/01/2015,,Operations Fire Stations,Clothing
800056028,*NPS (SHOES) LTD,13892,28,30.05,CLOTHING,15/01/2015,,Operations Fire Stations,Clothing
800056028,*NPS (SHOES) LTD,13892,29,29.45,CLOTHING,15/01/2015,,Operations Fire Stations,Clothing
800056028,*NPS (SHOES) LTD,13892,30,29.45,CLOTHING,15/01/2015,,Operations Fire Stations,Clothing
800056028,*NPS (SHOES) LTD,13892,31,29.45,CLOTHING,15/01/2015,,Operations Fire Stations,Clothing
800056028,*NPS (SHOES) LTD,13892,32,29.45,CLOTHING,15/01/2015,,Operations Fire Stations,Clothing
800056028,*NPS (SHOES) LTD,13892,33,29.45,CLOTHING,15/01/2015,,Operations Fire Stations,Clothing
800056028,*NPS (SHOES) LTD,13892,34,29.45,CLOTHING,15/01/2015,,Operations Fire Stations,Clothing
800056028,*NPS (SHOES) LTD,13892,35,29.45,CLOTHING,15/01/2015,,Regulatory Fire Safety,Clothing
800056028,*NPS (SHOES) LTD,13892,36,29.45,CLOTHING,15/01/2015,,Regulatory Fire Safety,Clothing
800056028,*NPS (SHOES) LTD,13892,37,29.45,CLOTHING,15/01/2015,,Operations Fire Stations,Clothing
800056028,*NPS (SHOES) LTD,13892,38,29.45,CLOTHING,15/01/2015,,Operations Fire Stations,Clothing
800056028,*NPS (SHOES) LTD,13892,39,29.45,CLOTHING,15/01/2015,,Operations Fire Stations,Clothing
800056028,*NPS (SHOES) LTD,13892,40,29.45,CLOTHING,15/01/2015,,Operations Fire Stations,Clothing
800056028,*NPS (SHOES) LTD,13892,41,29.45,CLOTHING,15/01/2015,,Operations Fire Stations,Clothing
800056028,*NPS (SHOES) LTD,13892,42,29.45,CLOTHING,15/01/2015,,Operations Fire Stations,Clothing
800056028,*NPS (SHOES) LTD,13892,43,29.45,CLOTHING,15/01/2015,,Operations Fire Stations,Clothing
800056028,*NPS (SHOES) LTD,13892,44,29.45,CLOTHING,15/01/2015,,Operations Fire Stations,Clothing
800056028,*NPS (SHOES) LTD,13892,45,29.45,CLOTHING,15/01/2015,,Operations Fire Stations,Clothing
800056028,*NPS (SHOES) LTD,13892,46,29.45,CLOTHING,15/01/2015,,Operations Fire Stations,Clothing
800056028,*NPS (SHOES) LTD,13892,47,29.45,CLOTHING,15/01/2015,,Operations Fire Stations,Clothing
800056028,*NPS (SHOES) LTD,13892,48,29.45,CLOTHING,15/01/2015,,Operations Fire Stations,Clothing
800056028,*NPS (SHOES) LTD,13892,49,29.45,CLOTHING,15/01/2015,,Operations Fire Stations,Clothing
800056028,*NPS (SHOES) LTD,13892,50,29.45,CLOTHING,15/01/2015,,Regulatory Fire Safety,Clothing
800056028,*NPS (SHOES) LTD,13892,51,29.45,CLOTHING,15/01/2015,,Operations Fire Stations,Clothing
800056028,*NPS (SHOES) LTD,13892,52,41.1,CLOTHING,15/01/2015,,Operations Fire Stations,Clothing
080115C,BURKE HUNTER ADAMS LLP,14/097,1,"3,293.29",PROF FEES-MISCELLANEOUS,15/01/2015,"3,293.29",Technical and Service Support,Consultancy
080115C,BUREAU VERITAS HS&E LTD=======,14021143,1,"4,162.90",REPAIR & MAINTENANCE,15/01/2015,"7,829.10",Technical And Service Support,Environmental Services
080115C,BUREAU VERITAS HS&E LTD=======,14021143,2,"3,666.20",REPAIR & MAINTENANCE,15/01/2015,,Technical And Service Support,Environmental Services
080115E,OPERATIONAL RESEARCH IN HEALTH,144Y/LFBD4/5,1,"3,200.00",CONSULTANTS,15/01/2015,"3,200.00",Operations Non Fire Stations,Consultancy
140919,NORTON ROSE FULBRIGHT,1452139,1,"4,461.13",PROF FEES-MISCELLANEOUS,15/01/2015,"4,461.13",Technical and Service Support,Consultancy
080115C,RIG EQUIPMENT LTD,1576,1,"2,337.90",CLOTHING,15/01/2015,"2,346.23",Mass Casualty Response Project,Fire & Rescue
080115C,RIG EQUIPMENT LTD,1576,2,8.33,CLOTHING,15/01/2015,,Mass Casualty Response Project,Fire & Rescue
080115E,HARRIS INSTALLATION SERVICES,17126,1,305.15,REMOVALS,15/01/2015,305.15,Technical And Service Support,Facilities & Management S
080115E,HARRIS INSTALLATION SERVICES,17141,1,528,OFFICE FURNITURE,15/01/2015,528,Technical And Service Support,Facilities & Management S
080115E,HARRIS INSTALLATION SERVICES,17181,1,"8,195.92",REMOVALS,15/01/2015,"8,195.92",Technical And Service Support,Facilities & Management S
120115C,HARRIS INSTALLATION SERVICES,17221,1,"1,907.72",REMOVALS,15/01/2015,"1,907.72",Technical And Service Support,Facilities & Management S
140917,EDF ENERGY===================,1785676856,1,"1,119.63",ELECTRICITY,15/01/2015,"1,119.63",Technical And Service Support,Utilities
140917,EDF ENERGY===================,1785907951,1,"3,087.17",ELECTRICITY,15/01/2015,"3,087.17",Technical And Service Support,Utilities
140917,EDF ENERGY===================,1786209552,1,"8,332.23",ELECTRICITY,15/01/2015,"8,332.23",Technical And Service Support,Utilities
140917,EDF ENERGY===================,1786484452,1,432.67,ELECTRICITY,15/01/2015,"4,326.67",Technical And Service Support,Utilities
140917,EDF ENERGY===================,1786484452,2,"3,894.00",ELECTRICITY,15/01/2015,,Technical And Service Support,Utilities
140917,EDF ENERGY===================,1793376249,1,"11,211.74",ELECTRICITY,15/01/2015,"11,211.74",Technical And Service Support,Utilities
080115E,COMMUNITIES & LOCAL GOVERNMENT,1800020958,1,"122,993.53",RADIO,15/01/2015,"136,342.33",Information and Communication Technology,ICT
080115E,COMMUNITIES & LOCAL GOVERNMENT,1800020958,2,"8,416.82",RADIO,15/01/2015,,Information and Communication Technology,ICT
080115E,COMMUNITIES & LOCAL GOVERNMENT,1800020958,3,"4,931.98",RADIO,15/01/2015,,Information and Communication Technology,ICT
140917,EDF ENERGY===================,1813823644,1,"16,590.48",ELECTRICITY,15/01/2015,"16,590.48",Technical And Service Support,Utilities
120115C,CHAIN GANG,20602,1,522.26,POSTAL SERVICES,15/01/2015,522.26,Strategy & Performance,Mail Services
140919,MISS SARAH LE FEVRE===========,235046,1,"1,995.00",PROFESSIONAL FEES ENFORCEMENT,15/01/2015,"1,995.00",Legal & Democratic Services,Legal Services
080115E,CHARTERBRAE LIMITED===========,24182,1,343.95,PURCHASES-FURNITURE,15/01/2015,343.95,Property PFI,Furniture
080115C,B NOKES CONTRACTS LTD,2520,1,840,PURCHASES-COMPUTER/EQUIPMENT,15/01/2015,840,Property PFI,"Works - Construction, R&M"
080115C,B NOKES CONTRACTS LTD,2521,1,"1,087.00",DAY TO DAY MINOR IMPS,15/01/2015,"1,087.00",Property PFI,"Works - Construction, R&M"
080115C,B NOKES CONTRACTS LTD,2523,1,"1,570.00",DAY TO DAY MINOR IMPS,15/01/2015,"1,570.00",Property PFI,"Works - Construction, R&M"
080115C,B NOKES CONTRACTS LTD,2524,1,"6,202.50",STRATEGIC (NON CYCLICAL),15/01/2015,"6,202.50",Technical and Service Support,"Works - Construction, R&M"
080115C,B NOKES CONTRACTS LTD,2525,1,"7,749.00",STRATEGIC (NON CYCLICAL),15/01/2015,"7,749.00",Technical and Service Support,"Works - Construction, R&M"
080115C,B NOKES CONTRACTS LTD,2526,1,673,STRATEGIC (NON CYCLICAL),15/01/2015,"3,583.50",Technical and Service Support,"Works - Construction, R&M"
080115C,B NOKES CONTRACTS LTD,2526,2,"2,910.50",STRATEGIC (NON CYCLICAL),15/01/2015,,Technical and Service Support,"Works - Construction, R&M"
080115C,B NOKES CONTRACTS LTD,2531,1,"1,185.00",STRATEGIC (NON CYCLICAL),15/01/2015,"1,185.00",Technical And Service Support,"Works - Construction, R&M"
080115C,B NOKES CONTRACTS LTD,2533,1,627,STRATEGIC (NON CYCLICAL),15/01/2015,627,Technical and Service Support,"Works - Construction, R&M"
080115C,B NOKES CONTRACTS LTD,2534,1,"4,479.75",STRATEGIC (NON CYCLICAL),15/01/2015,"4,479.75",Technical and Service Support,"Works - Construction, R&M"
080115C,B NOKES CONTRACTS LTD,2535,1,"1,236.50",STRATEGIC (NON CYCLICAL),15/01/2015,"1,236.50",Technical and Service Support,"Works - Construction, R&M"
080115C,B NOKES CONTRACTS LTD,2536,1,549.25,STRATEGIC (NON CYCLICAL),15/01/2015,549.25,Technical and Service Support,"Works - Construction, R&M"
080115C,B NOKES CONTRACTS LTD,2537,1,"1,121.50",STRATEGIC (NON CYCLICAL),15/01/2015,"1,121.50",Technical and Service Support,"Works - Construction, R&M"
080115C,B NOKES CONTRACTS LTD,2538,1,420,STRATEGIC (NON CYCLICAL),15/01/2015,420,Technical and Service Support,"Works - Construction, R&M"
080115C,B NOKES CONTRACTS LTD,2539,1,768,STRATEGIC (NON CYCLICAL),15/01/2015,768,Technical and Service Support,"Works - Construction, R&M"
140917,THAMES WATER UTILITIES LTD====,25747-00531A,1,574.75,WATER & SEWERAGE RATES,15/01/2015,574.75,Technical And Service Support,Utilities
800054065,ADECCO UK LIMITED=============,26926739,1,612.15,FRS STAFF AGENCY,15/01/2015,612.15,Procurement,Human Resources
800056988,ADECCO UK LIMITED=============,26948913,1,"1,835.15",FRS STAFF AGENCY,15/01/2015,"1,835.15",Vehicle & Equipment Programme,Human Resources
800056989,ADECCO UK LIMITED=============,26956385,1,"1,835.15",FRS STAFF AGENCY,15/01/2015,"1,835.15",Vehicle & Equipment Programme,Human Resources
800057014,ADECCO UK LIMITED=============,26956399,1,531.6,FRS STAFF AGENCY,15/01/2015,531.6,Mobilising,Human Resources
800056990,ADECCO UK LIMITED=============,26963808,1,"1,835.15",FRS STAFF AGENCY,15/01/2015,"1,835.15",Vehicle & Equipment Programme,Human Resources
800057015,ADECCO UK LIMITED=============,26963822,1,354.4,FRS STAFF AGENCY,15/01/2015,354.4,Mobilising,Human Resources
800056991,ADECCO UK LIMITED=============,26971951,1,"1,835.15",FRS STAFF AGENCY,15/01/2015,"1,835.15",Vehicle & Equipment Programme,Human Resources
800057016,ADECCO UK LIMITED=============,26971964,1,531.6,FRS STAFF AGENCY,15/01/2015,531.6,Mobilising,Human Resources
800057017,ADECCO UK LIMITED=============,26979155,1,354.4,FRS STAFF AGENCY,15/01/2015,354.4,Mobilising,Human Resources
800056994,ADECCO UK LIMITED=============,26994115,1,"1,835.15",FRS STAFF AGENCY,15/01/2015,"1,835.15",Vehicle & Equipment Programme,Human Resources
800057018,ADECCO UK LIMITED=============,26994119,1,531.6,FRS STAFF AGENCY,15/01/2015,531.6,Mobilising,Human Resources
800057019,ADECCO UK LIMITED=============,27002211,1,531.6,FRS STAFF AGENCY,15/01/2015,531.6,Mobilising,Human Resources
800056659,ADECCO UK LIMITED=============,27002223,1,714.56,FRS STAFF AGENCY,15/01/2015,714.56,Vehicle & Equipment Programme,Human Resources
800056996,ADECCO UK LIMITED=============,27008880,1,"1,835.15",FRS STAFF AGENCY,15/01/2015,"1,835.15",Vehicle & Equipment Programme,Human Resources
800057020,ADECCO UK LIMITED=============,27008884,1,354.4,FRS STAFF AGENCY,15/01/2015,354.4,Mobilising,Human Resources
800056704,ADECCO UK LIMITED=============,27008892,1,893.2,FRS STAFF AGENCY,15/01/2015,893.2,Vehicle & Equipment Programme,Human Resources
800056997,ADECCO UK LIMITED=============,27015839,1,"1,835.15",FRS STAFF AGENCY,15/01/2015,"1,835.15",Vehicle & Equipment Programme,Human Resources
800057021,ADECCO UK LIMITED=============,27015843,1,708.8,FRS STAFF AGENCY,15/01/2015,708.8,Mobilising,Human Resources
800056749,ADECCO UK LIMITED=============,27015851,1,893.2,FRS STAFF AGENCY,15/01/2015,893.2,Vehicle & Equipment Programme,Human Resources
800056998,ADECCO UK LIMITED=============,27022901,1,"1,835.15",FRS STAFF AGENCY,15/01/2015,"1,835.15",Vehicle & Equipment Programme,Human Resources
800056800,ADECCO UK LIMITED=============,27022912,1,893.2,FRS STAFF AGENCY,15/01/2015,893.2,Vehicle & Equipment Programme,Human Resources
800056944,ADECCO UK LIMITED=============,27029361,1,374.64,FRS STAFF AGENCY,15/01/2015,374.64,Operations Non Fire Stations,Human Resources
120115C,VIGILANCE PROPERTIES,2874,1,"4,625.00",PREMISES SECURITY,15/01/2015,"4,625.00",Technical and Service Support,Facilities & Management S
120115C,VIGILANCE PROPERTIES,2875,1,"4,625.00",PREMISES SECURITY,15/01/2015,"4,625.00",Technical and Service Support,Facilities & Management S
120115C,VIGILANCE PROPERTIES,2876,1,"6,937.50",PREMISES SECURITY,15/01/2015,"6,937.50",Technical and Service Support,Facilities & Management S
120115C,VIGILANCE PROPERTIES,2877,1,"4,625.00",PREMISES SECURITY,15/01/2015,"4,625.00",Technical and Service Support,Facilities & Management S
120115C,VIGILANCE PROPERTIES,2878,1,"4,625.00",PREMISES SECURITY,15/01/2015,"4,625.00",Technical and Service Support,Facilities & Management S
120115C,VIGILANCE PROPERTIES,2879,1,"4,625.00",PREMISES SECURITY,15/01/2015,"4,625.00",Technical and Service Support,Facilities & Management S
120115C,VIGILANCE PROPERTIES,2880,1,"7,500.00",PREMISES SECURITY,15/01/2015,"7,500.00",Technical And Service Support,Facilities & Management S
120115C,VIGILANCE PROPERTIES,2881,1,"4,625.00",PREMISES SECURITY,15/01/2015,"4,625.00",Technical and Service Support,Facilities & Management S
120115C,VIGILANCE PROPERTIES,2882,1,"4,625.00",PREMISES SECURITY,15/01/2015,"4,625.00",Technical and Service Support,Facilities & Management S
120115C,VIGILANCE PROPERTIES,2884,1,"4,625.00",PREMISES SECURITY,15/01/2015,"4,625.00",Technical And Service Support,Facilities & Management S
120115C,VIGILANCE PROPERTIES,2885,1,"4,625.00",PREMISES SECURITY,15/01/2015,"4,625.00",Technical and Service Support,Facilities & Management S
080115C,STORM TECHNOLOGIES============,304827,1,"1,064.85",ACQUISITIONS,15/01/2015,"1,277.82",Information and Communication Technology,ICT
080115C,STORM TECHNOLOGIES============,304827,2,212.97,ACQUISITIONS,15/01/2015,,Information and Communication Technology,ICT
090115C,FRS COUNTRYWEAR LTD===========,306172,1,"1,032.00",UNIFORMS - POMS,15/01/2015,"1,032.00",Procurement,Clothing
090115C,FRS COUNTRYWEAR LTD===========,316829,1,154.8,UNIFORMS - POMS,15/01/2015,340.56,Procurement,Clothing
090115C,FRS COUNTRYWEAR LTD===========,316829,2,185.76,UNIFORMS - POMS,15/01/2015,,Procurement,Clothing
090115C,EUROLOOS LTD,33461,1,850,OPERATIONAL EQUIP-PURCHASE,15/01/2015,850,Operations Non Fire Stations,Facilities & Management S
080115C,CARPETS & FLOOR COVERS DIRECT=,3405,1,"2,868.56",STRATEGIC (NON CYCLICAL),15/01/2015,"9,367.12",Technical and Service Support,Building Constr Materials
080115C,CARPETS & FLOOR COVERS DIRECT=,3405,2,"6,238.56",STRATEGIC (NON CYCLICAL),15/01/2015,,Technical and Service Support,Building Constr Materials
080115C,CARPETS & FLOOR COVERS DIRECT=,3405,3,260,STRATEGIC (NON CYCLICAL),15/01/2015,,Technical and Service Support,Building Constr Materials
080115E,CARPETS & FLOOR COVERS DIRECT=,3408,1,350,TACTICAL DAY TO DAY,15/01/2015,350,Technical And Service Support,Building Constr Materials
120115C,CARPETS & FLOOR COVERS DIRECT=,3419,1,"2,159.00",STRATEGIC (NON CYCLICAL),15/01/2015,"2,159.00",Technical And Service Support,Building Constr Materials
120115C,MCGRATH BROS (WASTE CONTROL) L,345194,1,273,REFUSE COLLECTION,15/01/2015,273,Technical And Service Support,Environmental Services
120115C,MCGRATH BROS (WASTE CONTROL) L,347322,1,500,REFUSE COLLECTION,15/01/2015,500,Technical And Service Support,Environmental Services
080115C,PLASTOR=======================,38130,1,249.72,PROF FEES-MISCELLANEOUS,15/01/2015,289.72,Technical and Service Support,Fire & Rescue
080115C,PLASTOR=======================,38130,2,40,PROF FEES-MISCELLANEOUS,15/01/2015,,Technical and Service Support,Fire & Rescue
080115E,COMPUTACENTRE================,3880366454,1,"6,188.00",ACQUISITIONS,15/01/2015,"6,188.00",Operational Resilience,ICT
080115E,COMPUTACENTRE================,3880366455,1,"1,068.00",ACQUISITIONS,15/01/2015,"1,068.00",Operational Resilience,ICT
120115C,CANON (UK) LTD===============,401604806,1,484.07,OFFICE EQUIPMENT,15/01/2015,512.17,Technical And Service Support,ICT
120115C,CANON (UK) LTD===============,401604806,2,28.1,OFFICE EQUIPMENT,15/01/2015,,Technical And Service Support,ICT
090115C,CANON (UK) LTD===============,401607410,1,23.28,OFFICE EQUIPMENT,15/01/2015,471.72,Mobilising,ICT
090115C,CANON (UK) LTD===============,401607410,2,448.44,OFFICE EQUIPMENT,15/01/2015,,Mobilising,ICT
080115C,DUE NORTH LTD=================,4043,1,"2,450.01",SUBSCRIPTIONS,15/01/2015,"2,450.01",Procurement,Financial Services
080115C,FOCUS & VISION TECHNOLOGY LTD,43801,1,515.48,MEDICAL EXPENSES CONTRACT,15/01/2015,515.48,HR Excluding Secondments,Healthcare
080115C,FOCUS & VISION TECHNOLOGY LTD,43859,1,266.28,MEDICAL EXPENSES CONTRACT,15/01/2015,266.28,HR Excluding Secondments,Healthcare
080115C,FOCUS & VISION TECHNOLOGY LTD,43962,1,772.94,MEDICAL EXPENSES CONTRACT,15/01/2015,772.94,HR Excluding Secondments,Healthcare
080115C,FOCUS & VISION TECHNOLOGY LTD,43973,1,603.6,MEDICAL EXPENSES CONTRACT,15/01/2015,603.6,HR Excluding Secondments,Healthcare
080115C,FOCUS & VISION TECHNOLOGY LTD,44003,1,746.2,MEDICAL EXPENSES CONTRACT,15/01/2015,746.2,HR Excluding Secondments,Healthcare
090115C,WILLIAM SUGDEN & SONS LTD=====,48976,1,785,UNIFORMS - POMS,15/01/2015,785,Procurement,Clothing
120115C,MARTIN LAVELL LTD=============,60254,1,320.25,BOOKS & JOURNALS,15/01/2015,320.25,Communications,Education
140917,ESSEX & SUFFOLK WATER PLC=====,60311490001XP,1,"1,585.51",WATER & SEWERAGE RATES,15/01/2015,"1,585.51",Technical And Service Support,Utilities
080115E,URS SCOTT WILSON LIMITED,6055726,1,"1,716.76",PROF FEES-MISCELLANEOUS,15/01/2015,"1,716.76",Technical and Service Support,Consultancy
080115E,URS SCOTT WILSON LIMITED,6121971,1,"9,932.52",PROF FEES-MISCELLANEOUS,15/01/2015,"9,932.52",Technical and Service Support,Consultancy
120115C,URS SCOTT WILSON LIMITED,6129332,1,"3,914.48",PROF FEES-MISCELLANEOUS,15/01/2015,"3,914.48",Technical and Service Support,Consultancy
080115C,CONTRACT CATERING CONSULTANTS=,6287,1,500,CONSULTANTS,15/01/2015,500,Technical And Service Support,Catering
080115E,MOORE STEPHENS CONSULTING LTD=,673697,1,"39,175.40",MAINTENANCE & SUPPORT,15/01/2015,"39,175.40",Information and Communication Technology,ICT
070115C,MAYORS OFF FOR POLICING&CRIME,6800100235,1,"14,811.12",OPERATIONAL EQUIP-PURCHASE,15/01/2015,"14,811.12",Operational Resilience,Human Resources
070115C,MAYORS OFF FOR POLICING&CRIME,6800100236,1,"14,811.12",OPERATIONAL EQUIP-PURCHASE,15/01/2015,"14,811.12",Operational Resilience,Human Resources
120115C,TWO SERVICES LTD==============,80066,1,713,CATERING EQUIPMENT,15/01/2015,"1,449.50",Operations Fire Stations,Catering
120115C,TWO SERVICES LTD==============,80066,2,681.5,CATERING EQUIPMENT,15/01/2015,,Operations Fire Stations,Catering
120115C,TWO SERVICES LTD==============,80066,3,55,CATERING EQUIPMENT,15/01/2015,,Operations Fire Stations,Catering
090115C,SHARPE PRITCHARD==============,80148,1,356.69,GENERAL,15/01/2015,356.69,Vehicle & Equipment Programme,Legal Services
080115C,CITY UNIVERSITY===============,90322035,1,"1,330.00",MEDICAL EXPENSES CONTRACT,15/01/2015,"1,330.00",HR Excluding Secondments,TRAINING AND EDUCATIONAL
120115C,CITY UNIVERSITY===============,90322036,1,"16,210.00",MEDICAL EXPENSES CONTRACT,15/01/2015,"16,210.00",HR Excluding Secondments,TRAINING AND EDUCATIONAL
140917,THAMES WATER UTILITIES LTD====,98709-62314.,1,711.57,WATER & SEWERAGE RATES,15/01/2015,711.57,Technical And Service Support,Utilities
080115E,RADIOCOMS SYSTEMS LIMITED=====,CF287661,1,"1,311.00",RADIO,15/01/2015,"5,202.60",Information and Communication Technology,ICT
080115E,RADIOCOMS SYSTEMS LIMITED=====,CF287661,2,"3,891.60",RADIO,15/01/2015,,Information and Communication Technology,ICT
080115E,GUY'S AND ST THOMAS' NHS TRUST,CHAPLAIN SERVS 2013-14,1,"1,025.00",CONSULTANTS,15/01/2015,"1,025.00",Communications,Healthcare
080115C,KIER BUILDING SERV ENGINEERS==,F00051895,1,935.42,STRATEGIC (CYCLICAL),15/01/2015,935.42,Technical and Service Support,"Works - Construction, R&M"
080115C,KIER BUILDING SERV ENGINEERS==,F00051896,1,"2,160.54",STRATEGIC (NON CYCLICAL),15/01/2015,"2,160.54",Technical And Service Support,"Works - Construction, R&M"
080115C,KIER BUILDING SERV ENGINEERS==,F00051898,1,568.84,STRATEGIC (NON CYCLICAL),15/01/2015,568.84,Technical And Service Support,"Works - Construction, R&M"
080115C,KIER BUILDING SERV ENGINEERS==,F00051899,1,"4,236.62",STRATEGIC (NON CYCLICAL),15/01/2015,"4,236.62",Technical and Service Support,"Works - Construction, R&M"
080115C,GOVT KNOWLEDGE EVENTS LTD,GKE18444,1,275,PROFESSIONAL DEVELOPMENT,15/01/2015,275,Legal & Democratic Services,Human Resources
090115C,HALL FUELS,I07242756,1,"1,410.00",FUEL,15/01/2015,"1,410.00",Operations Fire Stations,Vehicle Management
090115C,HALL FUELS,I07242757,1,743.54,FUEL,15/01/2015,743.54,Operations Fire Stations,Vehicle Management
080115C,HALL FUELS,I07246780,1,"2,773.00",FUEL,15/01/2015,"2,773.00",Operations Fire Stations,Vehicle Management
090115C,HALL FUELS,I07268351,1,"2,759.10",FUEL,15/01/2015,"2,759.10",Operations Fire Stations,Vehicle Management
080115C,BABCOCK CIVIL INFRASTRUCTURE,II5000871,1,422.5,REFRESHMENTS,15/01/2015,582.58,Mobilising,"Works - Construction, R&M"
080115C,BABCOCK CIVIL INFRASTRUCTURE,II5000871,2,160.08,REFRESHMENTS,15/01/2015,,Mobilising,"Works - Construction, R&M"
140917,JCT600 VEHICLE LEASING,INV00079733,1,465.78,LEASE CAR CHARGES,15/01/2015,465.78,Procurement,Vehicle Management
140917,JCT600 VEHICLE LEASING,INV00079733,2,-40.31,VAT CAR LEASING,15/01/2015,,Finance Services,Vehicle Management
140917,JCT600 VEHICLE LEASING,INV00079733,3,40.31,LEASE CAR CHARGES,15/01/2015,,Procurement,Vehicle Management
140917,JCT600 VEHICLE LEASING,INV00079734,1,365.83,LEASE CAR CHARGES,15/01/2015,365.83,Procurement,Vehicle Management
140917,JCT600 VEHICLE LEASING,INV00079734,2,-31.68,VAT CAR LEASING,15/01/2015,,Finance Services,Vehicle Management
140917,JCT600 VEHICLE LEASING,INV00079734,3,31.68,LEASE CAR CHARGES,15/01/2015,,Procurement,Vehicle Management
140917,JCT600 VEHICLE LEASING,INV00079735,1,533.51,LEASE CAR CHARGES,15/01/2015,533.51,Procurement,Vehicle Management
140917,JCT600 VEHICLE LEASING,INV00079735,2,-47.37,VAT CAR LEASING,15/01/2015,,Finance Services,Vehicle Management
140917,JCT600 VEHICLE LEASING,INV00079735,3,47.37,LEASE CAR CHARGES,15/01/2015,,Procurement,Vehicle Management
140917,JCT600 VEHICLE LEASING,INV00079736,1,421.55,LEASE CAR CHARGES,15/01/2015,421.55,Procurement,Vehicle Management
140917,JCT600 VEHICLE LEASING,INV00079736,2,-37.37,VAT CAR LEASING,15/01/2015,,Finance Services,Vehicle Management
140917,JCT600 VEHICLE LEASING,INV00079736,3,37.37,LEASE CAR CHARGES,15/01/2015,,Procurement,Vehicle Management
140917,JCT600 VEHICLE LEASING,INV00079737,1,381.11,LEASE CAR CHARGES,15/01/2015,381.11,Procurement,Vehicle Management
140917,JCT600 VEHICLE LEASING,INV00079737,2,-33.48,VAT CAR LEASING,15/01/2015,,Finance Services,Vehicle Management
140917,JCT600 VEHICLE LEASING,INV00079737,3,33.48,LEASE CAR CHARGES,15/01/2015,,Procurement,Vehicle Management
140917,JCT600 VEHICLE LEASING,INV00079738,1,370.39,LEASE CAR CHARGES,15/01/2015,370.39,Procurement,Vehicle Management
140917,JCT600 VEHICLE LEASING,INV00079738,2,-32.96,VAT CAR LEASING,15/01/2015,,Finance Services,Vehicle Management
140917,JCT600 VEHICLE LEASING,INV00079738,3,32.96,LEASE CAR CHARGES,15/01/2015,,Procurement,Vehicle Management
140917,JCT600 VEHICLE LEASING,INV00079739,1,419.3,LEASE CAR CHARGES,15/01/2015,419.3,Procurement,Vehicle Management
140917,JCT600 VEHICLE LEASING,INV00079739,2,-37.89,VAT CAR LEASING,15/01/2015,,Finance Services,Vehicle Management
140917,JCT600 VEHICLE LEASING,INV00079739,3,37.89,LEASE CAR CHARGES,15/01/2015,,Procurement,Vehicle Management
120115C,JACKSON LIFT GROUP============,JS398238M,1,87.09,STRATEGIC (CYCLICAL),15/01/2015,"2,394.09",Technical And Service Support,Facilities & Management S
120115C,JACKSON LIFT GROUP============,JS398238M,2,87.09,STRATEGIC (CYCLICAL),15/01/2015,,Technical And Service Support,Facilities & Management S
120115C,JACKSON LIFT GROUP============,JS398238M,3,87.09,STRATEGIC (CYCLICAL),15/01/2015,,Technical and Service Support,Facilities & Management S
120115C,JACKSON LIFT GROUP============,JS398238M,4,87.09,STRATEGIC (CYCLICAL),15/01/2015,,Technical and Service Support,Facilities & Management S
120115C,JACKSON LIFT GROUP============,JS398238M,5,87.09,STRATEGIC (CYCLICAL),15/01/2015,,Technical and Service Support,Facilities & Management S
120115C,JACKSON LIFT GROUP============,JS398238M,6,87.09,STRATEGIC (CYCLICAL),15/01/2015,,Technical and Service Support,Facilities & Management S
120115C,JACKSON LIFT GROUP============,JS398238M,7,87.09,STRATEGIC (CYCLICAL),15/01/2015,,Technical and Service Support,Facilities & Management S
120115C,JACKSON LIFT GROUP============,JS398238M,8,87.09,STRATEGIC (CYCLICAL),15/01/2015,,Technical and Service Support,Facilities & Management S
120115C,JACKSON LIFT GROUP============,JS398238M,9,87.09,STRATEGIC (CYCLICAL),15/01/2015,,Technical and Service Support,Facilities & Management S
120115C,JACKSON LIFT GROUP============,JS398238M,10,43.09,STRATEGIC (CYCLICAL),15/01/2015,,Technical and Service Support,Facilities & Management S
120115C,JACKSON LIFT GROUP============,JS398238M,11,43.09,STRATEGIC (CYCLICAL),15/01/2015,,Technical and Service Support,Facilities & Management S
120115C,JACKSON LIFT GROUP============,JS398238M,12,109.17,STRATEGIC (CYCLICAL),15/01/2015,,Technical and Service Support,Facilities & Management S
120115C,JACKSON LIFT GROUP============,JS398238M,13,109.17,STRATEGIC (CYCLICAL),15/01/2015,,Technical And Service Support,Facilities & Management S
120115C,JACKSON LIFT GROUP============,JS398238M,14,109.17,STRATEGIC (CYCLICAL),15/01/2015,,Technical And Service Support,Facilities & Management S
120115C,JACKSON LIFT GROUP============,JS398238M,15,109.17,STRATEGIC (CYCLICAL),15/01/2015,,Technical And Service Support,Facilities & Management S
120115C,JACKSON LIFT GROUP============,JS398238M,16,109.17,STRATEGIC (CYCLICAL),15/01/2015,,Technical And Service Support,Facilities & Management S
120115C,JACKSON LIFT GROUP============,JS398238M,17,109.17,STRATEGIC (CYCLICAL),15/01/2015,,Technical And Service Support,Facilities & Management S
120115C,JACKSON LIFT GROUP============,JS398238M,18,43.09,STRATEGIC (CYCLICAL),15/01/2015,,Technical And Service Support,Facilities & Management S
120115C,JACKSON LIFT GROUP============,JS398238M,19,87.09,STRATEGIC (CYCLICAL),15/01/2015,,Technical and Service Support,Facilities & Management S
120115C,JACKSON LIFT GROUP============,JS398238M,20,43.09,STRATEGIC (CYCLICAL),15/01/2015,,Technical and Service Support,Facilities & Management S
120115C,JACKSON LIFT GROUP============,JS398238M,21,87.09,STRATEGIC (CYCLICAL),15/01/2015,,Technical and Service Support,Facilities & Management S
120115C,JACKSON LIFT GROUP============,JS398238M,22,43.09,STRATEGIC (CYCLICAL),15/01/2015,,Technical and Service Support,Facilities & Management S
120115C,JACKSON LIFT GROUP============,JS398238M,23,87.09,STRATEGIC (CYCLICAL),15/01/2015,,Technical and Service Support,Facilities & Management S
120115C,JACKSON LIFT GROUP============,JS398238M,24,87.09,STRATEGIC (CYCLICAL),15/01/2015,,Technical and Service Support,Facilities & Management S
120115C,JACKSON LIFT GROUP============,JS398238M,25,87.09,STRATEGIC (CYCLICAL),15/01/2015,,Technical and Service Support,Facilities & Management S
120115C,JACKSON LIFT GROUP============,JS398238M,26,87.09,STRATEGIC (CYCLICAL),15/01/2015,,Technical and Service Support,Facilities & Management S
120115C,JACKSON LIFT GROUP============,JS398238M,27,43.09,STRATEGIC (CYCLICAL),15/01/2015,,Technical and Service Support,Facilities & Management S
120115C,JACKSON LIFT GROUP============,JS398238M,28,87.09,STRATEGIC (CYCLICAL),15/01/2015,,Technical and Service Support,Facilities & Management S
120115C,JACKSON LIFT GROUP============,JS398238M,29,87.09,STRATEGIC (CYCLICAL),15/01/2015,,Technical and Service Support,Facilities & Management S
120115C,JACKSON LIFT GROUP============,JS398240,1,87.09,STRATEGIC (CYCLICAL),15/01/2015,"2,394.09",Technical And Service Support,Facilities & Management S
120115C,JACKSON LIFT GROUP============,JS398240,2,87.09,STRATEGIC (CYCLICAL),15/01/2015,,Technical And Service Support,Facilities & Management S
120115C,JACKSON LIFT GROUP============,JS398240,3,87.09,STRATEGIC (CYCLICAL),15/01/2015,,Technical and Service Support,Facilities & Management S
120115C,JACKSON LIFT GROUP============,JS398240,4,87.09,STRATEGIC (CYCLICAL),15/01/2015,,Technical and Service Support,Facilities & Management S
120115C,JACKSON LIFT GROUP============,JS398240,5,87.09,STRATEGIC (CYCLICAL),15/01/2015,,Technical and Service Support,Facilities & Management S
120115C,JACKSON LIFT GROUP============,JS398240,6,87.09,STRATEGIC (CYCLICAL),15/01/2015,,Technical and Service Support,Facilities & Management S
120115C,JACKSON LIFT GROUP============,JS398240,7,87.09,STRATEGIC (CYCLICAL),15/01/2015,,Technical and Service Support,Facilities & Management S
120115C,JACKSON LIFT GROUP============,JS398240,8,87.09,STRATEGIC (CYCLICAL),15/01/2015,,Technical and Service Support,Facilities & Management S
120115C,JACKSON LIFT GROUP============,JS398240,9,43.09,STRATEGIC (CYCLICAL),15/01/2015,,Technical and Service Support,Facilities & Management S
120115C,JACKSON LIFT GROUP============,JS398240,10,43.09,STRATEGIC (CYCLICAL),15/01/2015,,Technical and Service Support,Facilities & Management S
120115C,JACKSON LIFT GROUP============,JS398240,11,109.17,STRATEGIC (CYCLICAL),15/01/2015,,Technical and Service Support,Facilities & Management S
120115C,JACKSON LIFT GROUP============,JS398240,12,109.17,STRATEGIC (CYCLICAL),15/01/2015,,Technical And Service Support,Facilities & Management S
120115C,JACKSON LIFT GROUP============,JS398240,13,109.17,STRATEGIC (CYCLICAL),15/01/2015,,Technical And Service Support,Facilities & Management S
120115C,JACKSON LIFT GROUP============,JS398240,14,109.17,STRATEGIC (CYCLICAL),15/01/2015,,Technical And Service Support,Facilities & Management S
120115C,JACKSON LIFT GROUP============,JS398240,15,109.17,STRATEGIC (CYCLICAL),15/01/2015,,Technical And Service Support,Facilities & Management S
120115C,JACKSON LIFT GROUP============,JS398240,16,109.17,STRATEGIC (CYCLICAL),15/01/2015,,Technical And Service Support,Facilities & Management S
120115C,JACKSON LIFT GROUP============,JS398240,17,43.09,STRATEGIC (CYCLICAL),15/01/2015,,Technical And Service Support,Facilities & Management S
120115C,JACKSON LIFT GROUP============,JS398240,18,87.09,STRATEGIC (CYCLICAL),15/01/2015,,Technical and Service Support,Facilities & Management S
120115C,JACKSON LIFT GROUP============,JS398240,19,43.09,STRATEGIC (CYCLICAL),15/01/2015,,Technical and Service Support,Facilities & Management S
120115C,JACKSON LIFT GROUP============,JS398240,20,87.09,STRATEGIC (CYCLICAL),15/01/2015,,Technical and Service Support,Facilities & Management S
120115C,JACKSON LIFT GROUP============,JS398240,21,43.09,STRATEGIC (CYCLICAL),15/01/2015,,Technical and Service Support,Facilities & Management S
120115C,JACKSON LIFT GROUP============,JS398240,22,87.09,STRATEGIC (CYCLICAL),15/01/2015,,Technical and Service Support,Facilities & Management S
120115C,JACKSON LIFT GROUP============,JS398240,23,87.09,STRATEGIC (CYCLICAL),15/01/2015,,Technical and Service Support,Facilities & Management S
120115C,JACKSON LIFT GROUP============,JS398240,24,87.09,STRATEGIC (CYCLICAL),15/01/2015,,Technical and Service Support,Facilities & Management S
120115C,JACKSON LIFT GROUP============,JS398240,25,87.09,STRATEGIC (CYCLICAL),15/01/2015,,Technical and Service Support,Facilities & Management S
120115C,JACKSON LIFT GROUP============,JS398240,26,43.09,STRATEGIC (CYCLICAL),15/01/2015,,Technical and Service Support,Facilities & Management S
120115C,JACKSON LIFT GROUP============,JS398240,27,87.09,STRATEGIC (CYCLICAL),15/01/2015,,Technical and Service Support,Facilities & Management S
120115C,JACKSON LIFT GROUP============,JS398240,28,87.09,STRATEGIC (CYCLICAL),15/01/2015,,Technical and Service Support,Facilities & Management S
120115C,JACKSON LIFT GROUP============,JS398240,29,87.09,STRATEGIC (CYCLICAL),15/01/2015,,Technical and Service Support,Facilities & Management S
080115C,SMITH O'SULLIVAN LTD.=========,LFB/CFS/004*,1,648.81,STRATEGIC (NON CYCLICAL),15/01/2015,648.81,Technical and Service Support,"Works - Construction, R&M"
080115C,SMITH O'SULLIVAN LTD.=========,LFB/SNF/003,1,"1,476.56",STRATEGIC (NON CYCLICAL),15/01/2015,"1,476.56",Technical and Service Support,"Works - Construction, R&M"
080115C,SMITH O'SULLIVAN LTD.=========,LFB/SNS002,1,"4,440.30",STRATEGIC (NON CYCLICAL),15/01/2015,"4,440.30",Technical and Service Support,"Works - Construction, R&M"
120115C,COFELY WORKPLACE LIMITED,M132999,1,"5,299.05",STRATEGIC (NON CYCLICAL),15/01/2015,"5,849.52",Technical and Service Support,"Works - Construction, R&M"
120115C,COFELY WORKPLACE LIMITED,M132999,2,550.47,STRATEGIC (NON CYCLICAL),15/01/2015,,Technical and Service Support,"Works - Construction, R&M"
080115E,ESSENTRA COMPONENTS LTD,MR 190801,1,435.2,PROTECTIVE EQUIPT - PARTS,15/01/2015,448.7,Technical and Service Support,Building Constr Materials
080115E,ESSENTRA COMPONENTS LTD,MR 190801,2,13.5,REPAIR & MAINTENANCE,15/01/2015,,Technical And Service Support,Building Constr Materials
140919,LEX AUTOLEASE,MRI3031762,1,"1,345.20",LEASE CAR CHARGES,15/01/2015,"4,676.16",Procurement,Vehicle Management
140919,LEX AUTOLEASE,MRI3031762,2,"3,330.96",P/PAYMTS-CAR LEASG-RENTAL,15/01/2015,,Finance Services,Vehicle Management
140919,LEX AUTOLEASE,MRI3031762,3,-413.98,VAT CAR LEASING,15/01/2015,,Finance Services,Vehicle Management
140919,LEX AUTOLEASE,MRI3031762,4,413.98,LEASE CAR CHARGES,15/01/2015,,Procurement,Vehicle Management
140919,LEX AUTOLEASE,MRI3031763,1,902.66,LEASE CAR CHARGES,15/01/2015,"4,067.52",Procurement,Vehicle Management
140919,LEX AUTOLEASE,MRI3031763,2,"3,164.86",P/PAYMTS-CAR LEASG-RENTAL,15/01/2015,,Finance Services,Vehicle Management
140919,LEX AUTOLEASE,MRI3031763,3,-362.11,VAT CAR LEASING,15/01/2015,,Finance Services,Vehicle Management
140919,LEX AUTOLEASE,MRI3031763,4,362.11,LEASE CAR CHARGES,15/01/2015,,Procurement,Vehicle Management
120115C,ESTEEM SYSTEMS LTD============,OP/I082091,1,"1,700.00",PURCHASES-COMPUTER/EQUIPMENT,15/01/2015,"1,700.00",Information and Communication Technology,ICT
120115C,ESTEEM SYSTEMS LTD============,OP/I082175,1,"8,000.00",PURCHASES-COMPUTER/EQUIPMENT,15/01/2015,"8,000.00",Information and Communication Technology,ICT
140115C,HEALTH MANAGEMENT LIMITED=====,124560,1,291.5,THIRD PARTY REPORTS,19/01/2015,"1,559.20",HR Excluding Secondments,Healthcare
140115C,HEALTH MANAGEMENT LIMITED=====,124560,2,"1,267.70",THIRD PARTY REPORTS,19/01/2015,,HR Excluding Secondments,Healthcare
130115G,MOOLANDS LTD,1609,1,"6,999.00",DAY TO DAY MINOR IMPS,19/01/2015,"6,999.00",Technical And Service Support,"Works - Construction, R&M"
140115C,MOOLANDS LTD,1632,1,316,TACTICAL DAY TO DAY,19/01/2015,316,Technical And Service Support,"Works - Construction, R&M"
130115G,APTCO,101988,1,360,OPERATIONAL EQUIP-PURCHASE,19/01/2015,360,Operations Fire Stations,Environmental Services
130115G,*SPRUE SAFETY PRODUCTS LTD====,1069018,1,"1,236.00",FIRE DETECTORS,19/01/2015,"1,236.00",Operations Non Fire Stations,Health & Safety
130115G,*SPRUE SAFETY PRODUCTS LTD====,1069020,1,"1,236.00",FIRE DETECTORS,19/01/2015,"1,236.00",Operations Non Fire Stations,Health & Safety
140921,MISS NATASHA JOFFE============,113377F,1,950,COUNSELS FEES,19/01/2015,950,Legal & Democratic Services,Legal Services
120115C,SILVERSANDS LIMITED===========,121691,1,"5,700.00",PURCHASES-SOFTWARE,19/01/2015,"5,700.00",Information and Communication Technology,ICT
800056691,*NPS (SHOES) LTD,13921,1,30.05,CLOTHING,19/01/2015,"2,467.00",Operations Fire Stations,Clothing
800056691,*NPS (SHOES) LTD,13921,2,30.05,CLOTHING,19/01/2015,,Regulatory Fire Safety,Clothing
800056691,*NPS (SHOES) LTD,13921,3,30.05,CLOTHING,19/01/2015,,Operations Fire Stations,Clothing
800056691,*NPS (SHOES) LTD,13921,4,30.05,CLOTHING,19/01/2015,,Operations Fire Stations,Clothing
800056691,*NPS (SHOES) LTD,13921,5,30.05,CLOTHING,19/01/2015,,Regulatory Fire Safety,Clothing
800056691,*NPS (SHOES) LTD,13921,6,30.05,CLOTHING,19/01/2015,,Regulatory Fire Safety,Clothing
800056691,*NPS (SHOES) LTD,13921,7,30.05,CLOTHING,19/01/2015,,Regulatory Fire Safety,Clothing
800056691,*NPS (SHOES) LTD,13921,8,35,CLOTHING,19/01/2015,,Operations Fire Stations,Clothing
800056691,*NPS (SHOES) LTD,13921,9,35,CLOTHING,19/01/2015,,Operations Fire Stations,Clothing
800056691,*NPS (SHOES) LTD,13921,10,35,CLOTHING,19/01/2015,,Operations Fire Stations,Clothing
800056691,*NPS (SHOES) LTD,13921,11,35,CLOTHING,19/01/2015,,Operations Fire Stations,Clothing
800056691,*NPS (SHOES) LTD,13921,12,35,CLOTHING,19/01/2015,,Operations Fire Stations,Clothing
800056691,*NPS (SHOES) LTD,13921,13,35,CLOTHING,19/01/2015,,Operations Fire Stations,Clothing
800056691,*NPS (SHOES) LTD,13921,14,30.05,CLOTHING,19/01/2015,,Operations Fire Stations,Clothing
800056691,*NPS (SHOES) LTD,13921,15,30.05,CLOTHING,19/01/2015,,Operations Fire Stations,Clothing
800056691,*NPS (SHOES) LTD,13921,16,29.45,CLOTHING,19/01/2015,,Operations Fire Stations,Clothing
800056691,*NPS (SHOES) LTD,13921,17,29.45,CLOTHING,19/01/2015,,Operations Fire Stations,Clothing
800056691,*NPS (SHOES) LTD,13921,18,29.45,CLOTHING,19/01/2015,,Operations Fire Stations,Clothing
800056691,*NPS (SHOES) LTD,13921,19,29.45,CLOTHING,19/01/2015,,Operations Fire Stations,Clothing
800056691,*NPS (SHOES) LTD,13921,20,29.45,CLOTHING,19/01/2015,,Operations Fire Stations,Clothing
800056691,*NPS (SHOES) LTD,13921,21,29.45,CLOTHING,19/01/2015,,Operations Fire Stations,Clothing
800056691,*NPS (SHOES) LTD,13921,22,29.45,CLOTHING,19/01/2015,,Operational Resilience,Clothing
800056691,*NPS (SHOES) LTD,13921,23,29.45,CLOTHING,19/01/2015,,Operations Fire Stations,Clothing
800056691,*NPS (SHOES) LTD,13921,24,29.45,CLOTHING,19/01/2015,,Operations Fire Stations,Clothing
800056691,*NPS (SHOES) LTD,13921,25,29.45,CLOTHING,19/01/2015,,Operations Fire Stations,Clothing
800056691,*NPS (SHOES) LTD,13921,26,29.45,CLOTHING,19/01/2015,,Operations Fire Stations,Clothing
800056691,*NPS (SHOES) LTD,13921,27,29.45,CLOTHING,19/01/2015,,Operations Fire Stations,Clothing
800056691,*NPS (SHOES) LTD,13921,28,29.45,CLOTHING,19/01/2015,,Operations Fire Stations,Clothing
800056691,*NPS (SHOES) LTD,13921,29,29.45,CLOTHING,19/01/2015,,Operations Fire Stations,Clothing
800056691,*NPS (SHOES) LTD,13921,30,29.45,CLOTHING,19/01/2015,,Operations Fire Stations,Clothing
800056691,*NPS (SHOES) LTD,13921,31,29.45,CLOTHING,19/01/2015,,Operations Fire Stations,Clothing
800056691,*NPS (SHOES) LTD,13921,32,29.45,CLOTHING,19/01/2015,,Operations Fire Stations,Clothing
800056691,*NPS (SHOES) LTD,13921,33,29.45,CLOTHING,19/01/2015,,Operations Fire Stations,Clothing
800056691,*NPS (SHOES) LTD,13921,34,29.45,CLOTHING,19/01/2015,,Operations Fire Stations,Clothing
800056691,*NPS (SHOES) LTD,13921,35,29.45,CLOTHING,19/01/2015,,Operations Fire Stations,Clothing
800056691,*NPS (SHOES) LTD,13921,36,29.45,CLOTHING,19/01/2015,,Operations Fire Stations,Clothing
800056691,*NPS (SHOES) LTD,13921,37,29.45,CLOTHING,19/01/2015,,Operations Fire Stations,Clothing
800056691,*NPS (SHOES) LTD,13921,38,30.05,CLOTHING,19/01/2015,,Regulatory Fire Safety,Clothing
800056691,*NPS (SHOES) LTD,13921,39,30.05,CLOTHING,19/01/2015,,Regulatory Fire Safety,Clothing
800056691,*NPS (SHOES) LTD,13921,40,30.05,CLOTHING,19/01/2015,,Operations Fire Stations,Clothing
800056691,*NPS (SHOES) LTD,13921,41,30.05,CLOTHING,19/01/2015,,Operations Fire Stations,Clothing
800056691,*NPS (SHOES) LTD,13921,42,30.05,CLOTHING,19/01/2015,,Operations Fire Stations,Clothing
800056691,*NPS (SHOES) LTD,13921,43,30.05,CLOTHING,19/01/2015,,Operations Fire Stations,Clothing
800056691,*NPS (SHOES) LTD,13921,44,30.05,CLOTHING,19/01/2015,,Operations Fire Stations,Clothing
800056691,*NPS (SHOES) LTD,13921,45,30.05,CLOTHING,19/01/2015,,Operations Fire Stations,Clothing
800056691,*NPS (SHOES) LTD,13921,46,30.05,CLOTHING,19/01/2015,,Regulatory Fire Safety,Clothing
800056691,*NPS (SHOES) LTD,13921,47,30.05,CLOTHING,19/01/2015,,Operations Fire Stations,Clothing
800056691,*NPS (SHOES) LTD,13921,48,30.05,CLOTHING,19/01/2015,,Operations Fire Stations,Clothing
800056691,*NPS (SHOES) LTD,13921,49,29.45,CLOTHING,19/01/2015,,Operations Fire Stations,Clothing
800056691,*NPS (SHOES) LTD,13921,50,29.45,CLOTHING,19/01/2015,,Operations Fire Stations,Clothing
800056691,*NPS (SHOES) LTD,13921,51,29.45,CLOTHING,19/01/2015,,Community Safety Delivery,Clothing
800056691,*NPS (SHOES) LTD,13921,52,29.45,CLOTHING,19/01/2015,,Operations Fire Stations,Clothing
800056691,*NPS (SHOES) LTD,13921,53,29.45,CLOTHING,19/01/2015,,Operations Fire Stations,Clothing
800056691,*NPS (SHOES) LTD,13921,54,29.45,CLOTHING,19/01/2015,,Operations Fire Stations,Clothing
800056691,*NPS (SHOES) LTD,13921,55,29.45,CLOTHING,19/01/2015,,Operations Fire Stations,Clothing
800056691,*NPS (SHOES) LTD,13921,56,29.45,CLOTHING,19/01/2015,,Operations Fire Stations,Clothing
800056691,*NPS (SHOES) LTD,13921,57,29.45,CLOTHING,19/01/2015,,Operations Fire Stations,Clothing
800056691,*NPS (SHOES) LTD,13921,58,29.45,CLOTHING,19/01/2015,,Operations Fire Stations,Clothing
800056691,*NPS (SHOES) LTD,13921,59,28.45,CLOTHING,19/01/2015,,Operations Fire Stations,Clothing
800056691,*NPS (SHOES) LTD,13921,60,30.05,CLOTHING,19/01/2015,,Operations Fire Stations,Clothing
800056691,*NPS (SHOES) LTD,13921,61,30.05,CLOTHING,19/01/2015,,Operations Fire Stations,Clothing
800056691,*NPS (SHOES) LTD,13921,62,30.05,CLOTHING,19/01/2015,,Operations Fire Stations,Clothing
800056691,*NPS (SHOES) LTD,13921,63,30.05,CLOTHING,19/01/2015,,Operations Fire Stations,Clothing
800056691,*NPS (SHOES) LTD,13921,64,30.05,CLOTHING,19/01/2015,,Operations Fire Stations,Clothing
800056691,*NPS (SHOES) LTD,13921,65,29.45,CLOTHING,19/01/2015,,Operations Fire Stations,Clothing
800056691,*NPS (SHOES) LTD,13921,66,28.45,CLOTHING,19/01/2015,,Community Safety Delivery,Clothing
800056691,*NPS (SHOES) LTD,13921,67,30.05,CLOTHING,19/01/2015,,Operations Fire Stations,Clothing
800056691,*NPS (SHOES) LTD,13921,68,28.45,CLOTHING,19/01/2015,,Operations Fire Stations,Clothing
800056691,*NPS (SHOES) LTD,13921,69,30.05,CLOTHING,19/01/2015,,Operations Fire Stations,Clothing
800056691,*NPS (SHOES) LTD,13921,70,30.05,CLOTHING,19/01/2015,,Operations Fire Stations,Clothing
800056691,*NPS (SHOES) LTD,13921,71,34.4,CLOTHING,19/01/2015,,Community Safety Delivery,Clothing
800056691,*NPS (SHOES) LTD,13921,72,34.4,CLOTHING,19/01/2015,,Operations Fire Stations,Clothing
800056691,*NPS (SHOES) LTD,13921,73,34.4,CLOTHING,19/01/2015,,Operations Fire Stations,Clothing
800056691,*NPS (SHOES) LTD,13921,74,34.4,CLOTHING,19/01/2015,,Operations Fire Stations,Clothing
800056691,*NPS (SHOES) LTD,13921,75,28.45,CLOTHING,19/01/2015,,Community Safety Delivery,Clothing
800056691,*NPS (SHOES) LTD,13921,76,28.45,CLOTHING,19/01/2015,,Operations Fire Stations,Clothing
800056691,*NPS (SHOES) LTD,13921,77,35,CLOTHING,19/01/2015,,Regulatory Fire Safety,Clothing
800056691,*NPS (SHOES) LTD,13921,78,30.05,CLOTHING,19/01/2015,,Operations Fire Stations,Clothing
800056691,*NPS (SHOES) LTD,13921,79,30.05,CLOTHING,19/01/2015,,Operations Fire Stations,Clothing
800056691,*NPS (SHOES) LTD,13921,80,34.4,CLOTHING,19/01/2015,,Operations Fire Stations,Clothing
800056691,*NPS (SHOES) LTD,13921,81,34.4,CLOTHING,19/01/2015,,Community Safety Delivery,Clothing
800056398,REDFERN TRAVEL LTD,1401630,1,321.96,PUBLIC TRANSPORT,19/01/2015,321.96,Community Safety Delivery,Human Resources
800056419,REDFERN TRAVEL LTD,1406107,1,258.48,PUBLIC TRANSPORT,19/01/2015,258.48,National Operational Guidance Project,Human Resources
800057040,REDFERN TRAVEL LTD,1406311,1,328.95,PUBLIC TRANSPORT,19/01/2015,328.95,Business Continuity,Human Resources
800057039,REDFERN TRAVEL LTD,1406334,1,812.8,PUBLIC TRANSPORT,19/01/2015,812.8,Business Continuity,Human Resources
800057031,REDFERN TRAVEL LTD,1406354,1,319.7,PUBLIC TRANSPORT,19/01/2015,319.7,Business Continuity,Human Resources
800057033,REDFERN TRAVEL LTD,1407241,1,266,PUBLIC TRANSPORT,19/01/2015,266,Business Continuity,Human Resources
800057038,REDFERN TRAVEL LTD,1407296,1,254.2,PUBLIC TRANSPORT,19/01/2015,254.2,Business Continuity,Human Resources
800057045,REDFERN TRAVEL LTD,1412699,1,276.7,PUBLIC TRANSPORT,19/01/2015,276.7,Control & Mobilising Services,Human Resources
800057046,REDFERN TRAVEL LTD,1412868,1,276.7,PUBLIC TRANSPORT,19/01/2015,276.7,Control & Mobilising Services,Human Resources
800057073,REDFERN TRAVEL LTD,1414961,1,251.7,PUBLIC TRANSPORT,19/01/2015,251.7,Community Safety Delivery,Human Resources
800057059,REDFERN TRAVEL LTD,1417930,1,263.1,PUBLIC TRANSPORT,19/01/2015,263.1,Operational Assurance,Human Resources
800057086,REDFERN TRAVEL LTD,1419944,1,295.74,PUBLIC TRANSPORT,19/01/2015,295.74,Regulatory Fire Safety,Human Resources
130115G,DRON & WRIGHT=================,17443,1,"1,170.00",PROFESSIONAL SERVICES,19/01/2015,"1,170.00",Property PFI,Facilities & Management S
130115G,MITIE TECH FACILITIES MNGT LT,210946768,1,39.27,DEVELOPMENT  EXPENSES-CONTRACT,19/01/2015,"25,283.47",Technical and Service Support,Facilities & Management S
130115G,MITIE TECH FACILITIES MNGT LT,210946768,2,"1,245.15",DEVELOPMENT  EXPENSES-CONTRACT,19/01/2015,,Technical and Service Support,Facilities & Management S
130115G,MITIE TECH FACILITIES MNGT LT,210946768,3,118.3,DEVELOPMENT  EXPENSES-CONTRACT,19/01/2015,,Technical and Service Support,Facilities & Management S
130115G,MITIE TECH FACILITIES MNGT LT,210946768,4,"19,348.44",DEVELOPMENT  EXPENSES-CONTRACT,19/01/2015,,Technical and Service Support,Facilities & Management S
130115G,MITIE TECH FACILITIES MNGT LT,210946768,5,499.14,DEVELOPMENT  EXPENSES-CONTRACT,19/01/2015,,Technical and Service Support,Facilities & Management S
130115G,MITIE TECH FACILITIES MNGT LT,210946768,6,120.55,DEVELOPMENT  EXPENSES-CONTRACT,19/01/2015,,Technical and Service Support,Facilities & Management S
130115G,MITIE TECH FACILITIES MNGT LT,210946768,7,362.67,DEVELOPMENT  EXPENSES-CONTRACT,19/01/2015,,Technical and Service Support,Facilities & Management S
130115G,MITIE TECH FACILITIES MNGT LT,210946768,8,256.57,DEVELOPMENT  EXPENSES-CONTRACT,19/01/2015,,Technical and Service Support,Facilities & Management S
130115G,MITIE TECH FACILITIES MNGT LT,210946768,9,"1,073.72",DEVELOPMENT  EXPENSES-CONTRACT,19/01/2015,,Technical and Service Support,Facilities & Management S
130115G,MITIE TECH FACILITIES MNGT LT,210946768,10,130.83,DEVELOPMENT  EXPENSES-CONTRACT,19/01/2015,,Technical and Service Support,Facilities & Management S
130115G,MITIE TECH FACILITIES MNGT LT,210946768,11,"2,075.44",DEVELOPMENT  EXPENSES-CONTRACT,19/01/2015,,Technical and Service Support,Facilities & Management S
130115G,MITIE TECH FACILITIES MNGT LT,210946768,12,13.39,DEVELOPMENT  EXPENSES-CONTRACT,19/01/2015,,Technical and Service Support,Facilities & Management S
140115E,ALARM=========================,25168,1,410,SUBSCRIPTIONS,19/01/2015,410,Strategy & Performance,TRAINING AND EDUCATIONAL
080115E,THE UTILITIES EXCHANGE LTD====,2696,1,"1,500.00",CONSULTANTS,19/01/2015,"1,500.00",Technical And Service Support,Environmental Services
800056969,ADECCO UK LIMITED=============,27029368,1,332.85,FRS STAFF AGENCY,19/01/2015,332.85,Strategy & Performance,Human Resources
120115C,PRECISE MEDIA MONITORING LTD==,304892,1,830.21,PRESS OFFICE,19/01/2015,830.21,Communications,Education
130115G,EVOLUTION ENVIRONMENTAL LTD,3458,1,270,ASBESTOS,19/01/2015,270,Technical and Service Support,"Works - Construction, R&M"
140115C,STEPHEN AUSTIN & SONS LTD=====,34799,1,662,GENERAL CONSUMABLES,19/01/2015,662,Procurement,Facilities & Management S
130115G,COMPUTACENTRE================,3880327167,1,"5,725.36",ACQUISITIONS,19/01/2015,"6,506.56",Information and Communication Technology,ICT
130115G,COMPUTACENTRE================,3880327167,2,781.2,ACQUISITIONS,19/01/2015,,Information and Communication Technology,ICT
130115G,BOND DICKINSON LLP,4191436,1,360,PROFESSIONAL SERVICES,19/01/2015,360,Property PFI,Legal Services
130115G,FOCUS & VISION TECHNOLOGY LTD,44026,1,319.9,MEDICAL EXPENSES CONTRACT,19/01/2015,319.9,HR Excluding Secondments,Healthcare
140115C,KNIGHTON CLEANING SERVICES LTD,44369,1,994.97,GENERAL CLEANS,19/01/2015,"71,549.03",Technical And Service Support,Cleaning & Janitorial
140115C,KNIGHTON CLEANING SERVICES LTD,44369,2,"1,097.63",GENERAL CLEANS,19/01/2015,,Technical And Service Support,Cleaning & Janitorial
140115C,KNIGHTON CLEANING SERVICES LTD,44369,3,"1,028.74",GENERAL CLEANS,19/01/2015,,Technical And Service Support,Cleaning & Janitorial
140115C,KNIGHTON CLEANING SERVICES LTD,44369,4,"1,239.39",GENERAL CLEANS,19/01/2015,,Technical And Service Support,Cleaning & Janitorial
140115C,KNIGHTON CLEANING SERVICES LTD,44369,5,602.72,GENERAL CLEANS,19/01/2015,,Technical And Service Support,Cleaning & Janitorial
140115C,KNIGHTON CLEANING SERVICES LTD,44369,6,"1,382.70",GENERAL CLEANS,19/01/2015,,Technical And Service Support,Cleaning & Janitorial
140115C,KNIGHTON CLEANING SERVICES LTD,44369,7,"2,003.99",GENERAL CLEANS,19/01/2015,,Technical And Service Support,Cleaning & Janitorial
140115C,KNIGHTON CLEANING SERVICES LTD,44369,8,"2,063.97",GENERAL CLEANS,19/01/2015,,Technical And Service Support,Cleaning & Janitorial
140115C,KNIGHTON CLEANING SERVICES LTD,44369,9,"3,231.97",GENERAL CLEANS,19/01/2015,,Technical And Service Support,Cleaning & Janitorial
140115C,KNIGHTON CLEANING SERVICES LTD,44369,10,"1,017.81",GENERAL CLEANS,19/01/2015,,Technical And Service Support,Cleaning & Janitorial
140115C,KNIGHTON CLEANING SERVICES LTD,44369,11,900.83,GENERAL CLEANS,19/01/2015,,Technical And Service Support,Cleaning & Janitorial
140115C,KNIGHTON CLEANING SERVICES LTD,44369,12,"1,234.76",GENERAL CLEANS,19/01/2015,,Technical And Service Support,Cleaning & Janitorial
140115C,KNIGHTON CLEANING SERVICES LTD,44369,13,"1,025.49",GENERAL CLEANS,19/01/2015,,Technical And Service Support,Cleaning & Janitorial
140115C,KNIGHTON CLEANING SERVICES LTD,44369,14,"1,071.55",GENERAL CLEANS,19/01/2015,,Technical And Service Support,Cleaning & Janitorial
140115C,KNIGHTON CLEANING SERVICES LTD,44369,15,"1,096.19",GENERAL CLEANS,19/01/2015,,Technical And Service Support,Cleaning & Janitorial
140115C,KNIGHTON CLEANING SERVICES LTD,44369,16,"1,480.49",GENERAL CLEANS,19/01/2015,,Technical And Service Support,Cleaning & Janitorial
140115C,KNIGHTON CLEANING SERVICES LTD,44369,17,"1,242.38",GENERAL CLEANS,19/01/2015,,Technical And Service Support,Cleaning & Janitorial
140115C,KNIGHTON CLEANING SERVICES LTD,44369,18,591.02,GENERAL CLEANS,19/01/2015,,Technical And Service Support,Cleaning & Janitorial
140115C,KNIGHTON CLEANING SERVICES LTD,44369,19,"12,380.25",GENERAL CLEANS,19/01/2015,,Technical And Service Support,Cleaning & Janitorial
140115C,KNIGHTON CLEANING SERVICES LTD,44369,20,"1,195.24",GENERAL CLEANS,19/01/2015,,Technical And Service Support,Cleaning & Janitorial
140115C,KNIGHTON CLEANING SERVICES LTD,44369,21,398.11,GENERAL CLEANS,19/01/2015,,Technical And Service Support,Cleaning & Janitorial
140115C,KNIGHTON CLEANING SERVICES LTD,44369,22,"1,512.91",GENERAL CLEANS,19/01/2015,,Technical And Service Support,Cleaning & Janitorial
140115C,KNIGHTON CLEANING SERVICES LTD,44369,23,"3,172.92",GENERAL CLEANS,19/01/2015,,Technical And Service Support,Cleaning & Janitorial
140115C,KNIGHTON CLEANING SERVICES LTD,44369,24,635.5,GENERAL CLEANS,19/01/2015,,Technical And Service Support,Cleaning & Janitorial
140115C,KNIGHTON CLEANING SERVICES LTD,44369,25,"1,731.71",GENERAL CLEANS,19/01/2015,,Technical And Service Support,Cleaning & Janitorial
140115C,KNIGHTON CLEANING SERVICES LTD,44369,26,855.97,GENERAL CLEANS,19/01/2015,,Technical And Service Support,Cleaning & Janitorial
140115C,KNIGHTON CLEANING SERVICES LTD,44369,27,"1,306.35",GENERAL CLEANS,19/01/2015,,Technical And Service Support,Cleaning & Janitorial
140115C,KNIGHTON CLEANING SERVICES LTD,44369,28,"1,924.53",GENERAL CLEANS,19/01/2015,,Technical And Service Support,Cleaning & Janitorial
140115C,KNIGHTON CLEANING SERVICES LTD,44369,29,"1,244.76",GENERAL CLEANS,19/01/2015,,Technical And Service Support,Cleaning & Janitorial
140115C,KNIGHTON CLEANING SERVICES LTD,44369,30,903.09,GENERAL CLEANS,19/01/2015,,Technical And Service Support,Cleaning & Janitorial
140115C,KNIGHTON CLEANING SERVICES LTD,44369,31,"1,206.08",GENERAL CLEANS,19/01/2015,,Technical And Service Support,Cleaning & Janitorial
140115C,KNIGHTON CLEANING SERVICES LTD,44369,32,"1,229.46",GENERAL CLEANS,19/01/2015,,Technical And Service Support,Cleaning & Janitorial
140115C,KNIGHTON CLEANING SERVICES LTD,44369,33,"7,215.88",GENERAL CLEANS,19/01/2015,,Technical And Service Support,Cleaning & Janitorial
140115C,KNIGHTON CLEANING SERVICES LTD,44369,34,733.93,GENERAL CLEANS,19/01/2015,,Technical And Service Support,Cleaning & Janitorial
140115C,KNIGHTON CLEANING SERVICES LTD,44369,35,916.19,GENERAL CLEANS,19/01/2015,,Technical And Service Support,Cleaning & Janitorial
140115C,KNIGHTON CLEANING SERVICES LTD,44369,36,"1,844.47",GENERAL CLEANS,19/01/2015,,Technical And Service Support,Cleaning & Janitorial
140115C,KNIGHTON CLEANING SERVICES LTD,44369,37,"1,074.95",GENERAL CLEANS,19/01/2015,,Technical And Service Support,Cleaning & Janitorial
140115C,KNIGHTON CLEANING SERVICES LTD,44369,38,814.3,GENERAL CLEANS,19/01/2015,,Technical And Service Support,Cleaning & Janitorial
140115C,KNIGHTON CLEANING SERVICES LTD,44369,39,"1,620.53",GENERAL CLEANS,19/01/2015,,Technical And Service Support,Cleaning & Janitorial
140115C,KNIGHTON CLEANING SERVICES LTD,44369,40,"1,317.56",GENERAL CLEANS,19/01/2015,,Technical And Service Support,Cleaning & Janitorial
140115C,KNIGHTON CLEANING SERVICES LTD,44369,41,"1,312.42",GENERAL CLEANS,19/01/2015,,Technical And Service Support,Cleaning & Janitorial
140115C,KNIGHTON CLEANING SERVICES LTD,44369,42,"1,214.44",GENERAL CLEANS,19/01/2015,,Technical And Service Support,Cleaning & Janitorial
140115C,KNIGHTON CLEANING SERVICES LTD,44369,43,480.88,GENERAL CLEANS,19/01/2015,,Technical And Service Support,Cleaning & Janitorial
140115C,KNIGHTON CLEANING SERVICES LTD,44371,1,"2,186.94",GENERAL CLEANS,19/01/2015,"75,952.85",Technical And Service Support,Cleaning & Janitorial
140115C,KNIGHTON CLEANING SERVICES LTD,44371,2,"2,023.46",GENERAL CLEANS,19/01/2015,,Technical And Service Support,Cleaning & Janitorial
140115C,KNIGHTON CLEANING SERVICES LTD,44371,3,"1,428.84",GENERAL CLEANS,19/01/2015,,Technical And Service Support,Cleaning & Janitorial
140115C,KNIGHTON CLEANING SERVICES LTD,44371,4,"1,154.62",GENERAL CLEANS,19/01/2015,,Technical And Service Support,Cleaning & Janitorial
140115C,KNIGHTON CLEANING SERVICES LTD,44371,5,"1,207.35",GENERAL CLEANS,19/01/2015,,Technical And Service Support,Cleaning & Janitorial
140115C,KNIGHTON CLEANING SERVICES LTD,44371,6,"1,068.32",GENERAL CLEANS,19/01/2015,,Technical And Service Support,Cleaning & Janitorial
140115C,KNIGHTON CLEANING SERVICES LTD,44371,7,758.96,GENERAL CLEANS,19/01/2015,,Technical And Service Support,Cleaning & Janitorial
140115C,KNIGHTON CLEANING SERVICES LTD,44371,8,"1,263.99",GENERAL CLEANS,19/01/2015,,Technical And Service Support,Cleaning & Janitorial
140115C,KNIGHTON CLEANING SERVICES LTD,44371,9,"1,078.24",GENERAL CLEANS,19/01/2015,,Technical And Service Support,Cleaning & Janitorial
140115C,KNIGHTON CLEANING SERVICES LTD,44371,10,"1,901.47",GENERAL CLEANS,19/01/2015,,Technical And Service Support,Cleaning & Janitorial
140115C,KNIGHTON CLEANING SERVICES LTD,44371,11,"2,260.06",GENERAL CLEANS,19/01/2015,,Technical And Service Support,Cleaning & Janitorial
140115C,KNIGHTON CLEANING SERVICES LTD,44371,12,775.23,GENERAL CLEANS,19/01/2015,,Technical And Service Support,Cleaning & Janitorial
140115C,KNIGHTON CLEANING SERVICES LTD,44371,13,"1,448.52",GENERAL CLEANS,19/01/2015,,Technical And Service Support,Cleaning & Janitorial
140115C,KNIGHTON CLEANING SERVICES LTD,44371,14,763.25,GENERAL CLEANS,19/01/2015,,Technical And Service Support,Cleaning & Janitorial
140115C,KNIGHTON CLEANING SERVICES LTD,44371,15,"1,517.78",GENERAL CLEANS,19/01/2015,,Technical And Service Support,Cleaning & Janitorial
140115C,KNIGHTON CLEANING SERVICES LTD,44371,16,"1,752.14",GENERAL CLEANS,19/01/2015,,Technical And Service Support,Cleaning & Janitorial
140115C,KNIGHTON CLEANING SERVICES LTD,44371,17,398.59,GENERAL CLEANS,19/01/2015,,Technical And Service Support,Cleaning & Janitorial
140115C,KNIGHTON CLEANING SERVICES LTD,44371,18,"2,302.80",GENERAL CLEANS,19/01/2015,,Technical And Service Support,Cleaning & Janitorial
140115C,KNIGHTON CLEANING SERVICES LTD,44371,19,"1,826.69",GENERAL CLEANS,19/01/2015,,Technical And Service Support,Cleaning & Janitorial
140115C,KNIGHTON CLEANING SERVICES LTD,44371,20,931.96,GENERAL CLEANS,19/01/2015,,Technical And Service Support,Cleaning & Janitorial
140115C,KNIGHTON CLEANING SERVICES LTD,44371,21,933.18,GENERAL CLEANS,19/01/2015,,Technical And Service Support,Cleaning & Janitorial
140115C,KNIGHTON CLEANING SERVICES LTD,44371,22,"1,083.13",GENERAL CLEANS,19/01/2015,,Technical And Service Support,Cleaning & Janitorial
140115C,KNIGHTON CLEANING SERVICES LTD,44371,23,"1,767.94",GENERAL CLEANS,19/01/2015,,Technical And Service Support,Cleaning & Janitorial
140115C,KNIGHTON CLEANING SERVICES LTD,44371,24,"1,050.67",GENERAL CLEANS,19/01/2015,,Technical And Service Support,Cleaning & Janitorial
140115C,KNIGHTON CLEANING SERVICES LTD,44371,25,824.34,GENERAL CLEANS,19/01/2015,,Technical And Service Support,Cleaning & Janitorial
140115C,KNIGHTON CLEANING SERVICES LTD,44371,26,971.22,GENERAL CLEANS,19/01/2015,,Technical And Service Support,Cleaning & Janitorial
140115C,KNIGHTON CLEANING SERVICES LTD,44371,27,"1,335.48",GENERAL CLEANS,19/01/2015,,Technical And Service Support,Cleaning & Janitorial
140115C,KNIGHTON CLEANING SERVICES LTD,44371,28,771.83,GENERAL CLEANS,19/01/2015,,Technical And Service Support,Cleaning & Janitorial
140115C,KNIGHTON CLEANING SERVICES LTD,44371,29,"1,557.08",GENERAL CLEANS,19/01/2015,,Technical And Service Support,Cleaning & Janitorial
140115C,KNIGHTON CLEANING SERVICES LTD,44371,30,"1,109.10",GENERAL CLEANS,19/01/2015,,Technical And Service Support,Cleaning & Janitorial
140115C,KNIGHTON CLEANING SERVICES LTD,44371,31,"1,395.51",GENERAL CLEANS,19/01/2015,,Technical And Service Support,Cleaning & Janitorial
140115C,KNIGHTON CLEANING SERVICES LTD,44371,32,784.09,GENERAL CLEANS,19/01/2015,,Technical And Service Support,Cleaning & Janitorial
140115C,KNIGHTON CLEANING SERVICES LTD,44371,33,939.33,GENERAL CLEANS,19/01/2015,,Technical And Service Support,Cleaning & Janitorial
140115C,KNIGHTON CLEANING SERVICES LTD,44371,34,82.34,GENERAL CLEANS,19/01/2015,,Technical And Service Support,Cleaning & Janitorial
140115C,KNIGHTON CLEANING SERVICES LTD,44371,35,698.83,GENERAL CLEANS,19/01/2015,,Technical And Service Support,Cleaning & Janitorial
140115C,KNIGHTON CLEANING SERVICES LTD,44371,36,"1,514.40",GENERAL CLEANS,19/01/2015,,Technical And Service Support,Cleaning & Janitorial
140115C,KNIGHTON CLEANING SERVICES LTD,44371,37,"1,337.32",GENERAL CLEANS,19/01/2015,,Technical And Service Support,Cleaning & Janitorial
140115C,KNIGHTON CLEANING SERVICES LTD,44371,38,951.28,GENERAL CLEANS,19/01/2015,,Technical And Service Support,Cleaning & Janitorial
140115C,KNIGHTON CLEANING SERVICES LTD,44371,39,"2,798.92",GENERAL CLEANS,19/01/2015,,Technical And Service Support,Cleaning & Janitorial
140115C,KNIGHTON CLEANING SERVICES LTD,44371,40,"1,034.69",GENERAL CLEANS,19/01/2015,,Technical And Service Support,Cleaning & Janitorial
140115C,KNIGHTON CLEANING SERVICES LTD,44371,41,"1,081.80",GENERAL CLEANS,19/01/2015,,Technical And Service Support,Cleaning & Janitorial
140115C,KNIGHTON CLEANING SERVICES LTD,44371,42,"1,046.98",GENERAL CLEANS,19/01/2015,,Technical And Service Support,Cleaning & Janitorial
140115C,KNIGHTON CLEANING SERVICES LTD,44371,43,949.77,GENERAL CLEANS,19/01/2015,,Technical And Service Support,Cleaning & Janitorial
140115C,KNIGHTON CLEANING SERVICES LTD,44371,44,"1,296.71",GENERAL CLEANS,19/01/2015,,Technical And Service Support,Cleaning & Janitorial
140115C,KNIGHTON CLEANING SERVICES LTD,44371,45,"2,279.98",GENERAL CLEANS,19/01/2015,,Technical And Service Support,Cleaning & Janitorial
140115C,KNIGHTON CLEANING SERVICES LTD,44371,46,"1,858.45",GENERAL CLEANS,19/01/2015,,Technical And Service Support,Cleaning & Janitorial
140115C,KNIGHTON CLEANING SERVICES LTD,44371,47,"1,044.82",GENERAL CLEANS,19/01/2015,,Technical And Service Support,Cleaning & Janitorial
140115C,KNIGHTON CLEANING SERVICES LTD,44371,48,689.04,GENERAL CLEANS,19/01/2015,,Technical And Service Support,Cleaning & Janitorial
140115C,KNIGHTON CLEANING SERVICES LTD,44371,49,680.46,GENERAL CLEANS,19/01/2015,,Technical And Service Support,Cleaning & Janitorial
140115C,KNIGHTON CLEANING SERVICES LTD,44371,50,790.88,GENERAL CLEANS,19/01/2015,,Technical And Service Support,Cleaning & Janitorial
140115C,KNIGHTON CLEANING SERVICES LTD,44371,51,"2,322.07",GENERAL CLEANS,19/01/2015,,Technical And Service Support,Cleaning & Janitorial
140115C,KNIGHTON CLEANING SERVICES LTD,44371,52,919.77,GENERAL CLEANS,19/01/2015,,Technical And Service Support,Cleaning & Janitorial
140115C,KNIGHTON CLEANING SERVICES LTD,44371,53,"1,593.07",GENERAL CLEANS,19/01/2015,,Technical And Service Support,Cleaning & Janitorial
140115C,KNIGHTON CLEANING SERVICES LTD,44371,54,"2,624.01",GENERAL CLEANS,19/01/2015,,Technical And Service Support,Cleaning & Janitorial
140115C,KNIGHTON CLEANING SERVICES LTD,44371,55,769.1,GENERAL CLEANS,19/01/2015,,Technical And Service Support,Cleaning & Janitorial
140115C,KNIGHTON CLEANING SERVICES LTD,44371,56,785.95,GENERAL CLEANS,19/01/2015,,Technical And Service Support,Cleaning & Janitorial
140115C,KNIGHTON CLEANING SERVICES LTD,44371,57,13,GENERAL CLEANS,19/01/2015,,Technical And Service Support,Cleaning & Janitorial
140115C,KNIGHTON CLEANING SERVICES LTD,44371,58,"1,068.72",GENERAL CLEANS,19/01/2015,,Technical And Service Support,Cleaning & Janitorial
140115C,KNIGHTON CLEANING SERVICES LTD,44371,59,811.71,GENERAL CLEANS,19/01/2015,,Technical And Service Support,Cleaning & Janitorial
140115C,KNIGHTON CLEANING SERVICES LTD,44371,60,"1,055.41",GENERAL CLEANS,19/01/2015,,Technical And Service Support,Cleaning & Janitorial
140115C,KNIGHTON CLEANING SERVICES LTD,44371,61,"1,281.26",GENERAL CLEANS,19/01/2015,,Technical And Service Support,Cleaning & Janitorial
140115C,MITIE SECURITY (LONDON) LTD===,45/574670,1,"8,541.12",PREMISES SECURITY,19/01/2015,"8,541.12",Technical And Service Support,Facilities & Management S
140115C,MITIE SECURITY (LONDON) LTD===,45/574674,1,"17,082.24",PREMISES SECURITY,19/01/2015,"17,082.24",Technical And Service Support,Facilities & Management S
130115G,FAHEY BUILDERS LTD============,5250,1,"4,667.00",STRATEGIC (NON CYCLICAL),19/01/2015,"4,667.00",Technical and Service Support,"Works - Construction, R&M"
130115G,FAHEY BUILDERS LTD============,5251,1,"4,967.00",STRATEGIC (NON CYCLICAL),19/01/2015,"4,967.00",Technical and Service Support,"Works - Construction, R&M"
130115G,RICHCO LTD====================,5456,1,"16,023.36",DEVELOPMENT  EXPENSES-CONTRACT,19/01/2015,"16,023.36",Technical and Service Support,Building Constr Materials
130115G,ARBIL 4X4 LTD.,570783/1,1,298,OPERATIONAL EQUIP-PURCHASE,19/01/2015,298,Challenge Team,Fire & Rescue
130115G,CORE SURVEYSLTD===============,5946,1,170,ASBESTOS,19/01/2015,510,Technical and Service Support,"Works - Construction, R&M"
130115G,CORE SURVEYSLTD===============,5946,2,170,ASBESTOS,19/01/2015,,Technical and Service Support,"Works - Construction, R&M"
130115G,CORE SURVEYSLTD===============,5946,3,170,ASBESTOS,19/01/2015,,Technical and Service Support,"Works - Construction, R&M"
130115G,URS SCOTT WILSON LIMITED,6120653,1,"10,077.87",PROF FEES-MISCELLANEOUS,19/01/2015,"12,863.48",Technical and Service Support,Consultancy
130115G,URS SCOTT WILSON LIMITED,6120653,2,"2,785.61",PROF FEES-MISCELLANEOUS,19/01/2015,,Technical and Service Support,Consultancy
130115G,URS SCOTT WILSON LIMITED,6129329,1,"3,485.65",PROF FEES-MISCELLANEOUS,19/01/2015,"3,485.65",Technical and Service Support,Consultancy
140115C,CANON (UK) LTD===============,770503800,1,225.06,OFFICE EQUIPMENT,19/01/2015,675.18,Procurement,ICT
140115C,CANON (UK) LTD===============,770503800,2,225.06,OFFICE EQUIPMENT,19/01/2015,,HR Excluding Secondments,ICT
140115C,CANON (UK) LTD===============,770503800,3,225.06,OFFICE EQUIPMENT,19/01/2015,,Operations Non Fire Stations,ICT
140921,MR JONATHAN MOFFETT,89910*,1,"1,750.00",PROFESSIONAL FEES GENERAL,19/01/2015,"1,750.00",Legal & Democratic Services,Legal Services
140115C,NORTHUMBRIAN WATER LTD========,913342238*,1,973.5,CURRENT HYDRANT COSTS,19/01/2015,973.5,Operational Resilience,Utilities
130115G,ASTEC SURVEYS LIMITED=========,ASL-14-423,1,"1,895.00",ASBESTOS,19/01/2015,"1,895.00",Technical and Service Support,Environmental Services
130115G,LPFA CONTRIBUTIONS ACCOUNT====,BD571,1,"63,947.00",PENSION SERVICES,19/01/2015,"63,947.00",Central Finance,Financial Services
140115C,CFOA (SERVICES) LTD===========,CSL14471,1,315,PROFESSIONAL DEVELOPMENT,19/01/2015,315,Community Safety Delivery,Human Resources
140115C,E&S B DAVIS LTD,DAV/54008,1,360,OPERATIONAL EQUIP-PURCHASE,19/01/2015,360,Operations Fire Stations,Environmental Services
140115C,CHILDCARE VOUCHERS LTD========,INS09965034/310116,1,650.49,CHILDCARE,19/01/2015,650.49,HR Excluding Secondments,Human Resources
130115G,DAYS CONTRACT HIRE,INV00059865,1,358.4,CONTRACT HIRE,19/01/2015,358.4,Business Continuity,Vehicle Management
140115C,IOSH SERVICES LTD=============,ISL119473,1,350,PROFESSIONAL DEVELOPMENT,19/01/2015,350,Operational Assurance,Human Resources
130115G,JACKSON LIFT GROUP============,JS398239M,1,87.09,STRATEGIC (CYCLICAL),19/01/2015,"2,395.00",Technical And Service Support,Facilities & Management S
130115G,JACKSON LIFT GROUP============,JS398239M,2,87.09,STRATEGIC (CYCLICAL),19/01/2015,,Technical And Service Support,Facilities & Management S
130115G,JACKSON LIFT GROUP============,JS398239M,3,87.09,STRATEGIC (CYCLICAL),19/01/2015,,Technical and Service Support,Facilities & Management S
130115G,JACKSON LIFT GROUP============,JS398239M,4,87.09,STRATEGIC (CYCLICAL),19/01/2015,,Technical and Service Support,Facilities & Management S
130115G,JACKSON LIFT GROUP============,JS398239M,5,87.09,STRATEGIC (CYCLICAL),19/01/2015,,Technical and Service Support,Facilities & Management S
130115G,JACKSON LIFT GROUP============,JS398239M,6,87.09,STRATEGIC (CYCLICAL),19/01/2015,,Technical and Service Support,Facilities & Management S
130115G,JACKSON LIFT GROUP============,JS398239M,7,87.09,STRATEGIC (CYCLICAL),19/01/2015,,Technical and Service Support,Facilities & Management S
130115G,JACKSON LIFT GROUP============,JS398239M,8,87.09,STRATEGIC (CYCLICAL),19/01/2015,,Technical and Service Support,Facilities & Management S
130115G,JACKSON LIFT GROUP============,JS398239M,9,87.09,STRATEGIC (CYCLICAL),19/01/2015,,Technical and Service Support,Facilities & Management S
130115G,JACKSON LIFT GROUP============,JS398239M,10,43.09,STRATEGIC (CYCLICAL),19/01/2015,,Technical and Service Support,Facilities & Management S
130115G,JACKSON LIFT GROUP============,JS398239M,11,43.09,STRATEGIC (CYCLICAL),19/01/2015,,Technical and Service Support,Facilities & Management S
130115G,JACKSON LIFT GROUP============,JS398239M,12,109.17,STRATEGIC (CYCLICAL),19/01/2015,,Technical and Service Support,Facilities & Management S
130115G,JACKSON LIFT GROUP============,JS398239M,13,109.17,STRATEGIC (CYCLICAL),19/01/2015,,Technical And Service Support,Facilities & Management S
130115G,JACKSON LIFT GROUP============,JS398239M,14,109.17,STRATEGIC (CYCLICAL),19/01/2015,,Technical And Service Support,Facilities & Management S
130115G,JACKSON LIFT GROUP============,JS398239M,15,109.17,STRATEGIC (CYCLICAL),19/01/2015,,Technical And Service Support,Facilities & Management S
130115G,JACKSON LIFT GROUP============,JS398239M,16,109.17,STRATEGIC (CYCLICAL),19/01/2015,,Technical And Service Support,Facilities & Management S
130115G,JACKSON LIFT GROUP============,JS398239M,17,109.17,STRATEGIC (CYCLICAL),19/01/2015,,Technical And Service Support,Facilities & Management S
130115G,JACKSON LIFT GROUP============,JS398239M,18,43.09,STRATEGIC (CYCLICAL),19/01/2015,,Technical And Service Support,Facilities & Management S
130115G,JACKSON LIFT GROUP============,JS398239M,19,87.09,STRATEGIC (CYCLICAL),19/01/2015,,Technical and Service Support,Facilities & Management S
130115G,JACKSON LIFT GROUP============,JS398239M,20,43.09,STRATEGIC (CYCLICAL),19/01/2015,,Technical and Service Support,Facilities & Management S
130115G,JACKSON LIFT GROUP============,JS398239M,21,87.09,STRATEGIC (CYCLICAL),19/01/2015,,Technical and Service Support,Facilities & Management S
130115G,JACKSON LIFT GROUP============,JS398239M,22,87.09,STRATEGIC (CYCLICAL),19/01/2015,,Technical and Service Support,Facilities & Management S
130115G,JACKSON LIFT GROUP============,JS398239M,23,87.09,STRATEGIC (CYCLICAL),19/01/2015,,Technical and Service Support,Facilities & Management S
130115G,JACKSON LIFT GROUP============,JS398239M,24,87.09,STRATEGIC (CYCLICAL),19/01/2015,,Technical and Service Support,Facilities & Management S
130115G,JACKSON LIFT GROUP============,JS398239M,25,87.09,STRATEGIC (CYCLICAL),19/01/2015,,Technical and Service Support,Facilities & Management S
130115G,JACKSON LIFT GROUP============,JS398239M,26,87.09,STRATEGIC (CYCLICAL),19/01/2015,,Technical and Service Support,Facilities & Management S
130115G,JACKSON LIFT GROUP============,JS398239M,27,87.09,STRATEGIC (CYCLICAL),19/01/2015,,Technical and Service Support,Facilities & Management S
130115G,JACKSON LIFT GROUP============,JS398239M,28,87.09,STRATEGIC (CYCLICAL),19/01/2015,,Technical and Service Support,Facilities & Management S
130115G,CANNON'S MSA LTD,NV1080042,1,299.95,TACTICAL DAY TO DAY,19/01/2015,299.95,Technical And Service Support,Vehicle Management
902488,LONDON PENSIONS FUND AUTHORITY,PENSION/1214,2,"333,500.00",PENSION PAST SERVICE COSTS,19/01/2015,"333,500.00",Central Finance,Financial Services
090115C,PULLMAN MOTORS================,PULL262,1,"1,200.00",OPERATIONAL EQUIP-PURCHASE,19/01/2015,"1,200.00",Procurement,Vehicle Management
090115C,PULLMAN MOTORS================,PULL264,1,300,OPERATIONAL EQUIP-PURCHASE,19/01/2015,300,Procurement,Vehicle Management
060115E,SECURITAS SECURITY SERVICES LT,S-SIN0290303,1,"329,131.34",GENERAL,19/01/2015,"329,131.34",Procurement,Fire & Rescue
060115E,SECURITAS SECURITY SERVICES LT,S-SIN0290304,1,"33,121.25",GENERAL,19/01/2015,"33,121.25",Procurement,Fire & Rescue
130115G,EDM GROUP LIMITED,SI158924,1,"8,907.00",REMOVALS,19/01/2015,"8,907.00",Technical And Service Support,Facilities & Management S
130115G,EDM GROUP LIMITED,SI158925,1,532,REMOVALS,19/01/2015,532,Technical And Service Support,Facilities & Management S
130115G,EDM GROUP LIMITED,SI158926,1,"9,340.00",REMOVALS,19/01/2015,"9,340.00",Technical And Service Support,Facilities & Management S
130115G,LC ENERGY LTD,SIN002877,1,744.75,GAS,19/01/2015,744.75,Technical And Service Support,Utilities
130115G,UNIVERSITY OF CENT LANCASHIRE=,TUI189700088,1,"2,362.50",PROFESSIONAL DEVELOPMENT,19/01/2015,"2,362.50",HR Excluding Secondments,Human Resources
130115G,UNIVERSITY OF CENT LANCASHIRE=,TUI189700089,1,"2,362.50",PROFESSIONAL DEVELOPMENT,19/01/2015,"2,362.50",HR Excluding Secondments,Human Resources
130115G,UNIVERSITY OF CENT LANCASHIRE=,TUI189700090,1,"2,362.50",PROFESSIONAL DEVELOPMENT,19/01/2015,"2,362.50",HR Excluding Secondments,Human Resources
902490,THUNDERHEAD ENGINEERING,2924,1,462.45,ACQUISITIONS,21/01/2015,462.45,Regulatory Fire Safety,ICT
140932,THOMPSONS SOLICITORS==========,9614,1,405,CLAIMANT COSTS AGREED,21/01/2015,405,Legal & Democratic Services,Legal Services
150115E,GOVNET COMMUNICATIONS=========,78666,1,299,PROFESSIONAL DEVELOPMENT,22/01/2015,299,Strategy & Performance,Human Resources
120115C,HEALTH MANAGEMENT LIMITED=====,124668,1,"107,035.75",OHS CONTRACT,22/01/2015,"107,035.75",HR Excluding Secondments,Healthcare
120115C,JAYMART=======================,1087169,1,271.19,FIXTURES & FITTINGS,22/01/2015,271.19,Technical And Service Support,Building Constr Materials
140925,CORONA ENERGY RETAIL 4 LTD,984812142,1,601.47,GAS,22/01/2015,"24,437.38",Technical And Service Support,Utilities
140925,CORONA ENERGY RETAIL 4 LTD,984812142,2,"1,562.35",GAS,22/01/2015,,Technical And Service Support,Utilities
140925,CORONA ENERGY RETAIL 4 LTD,984812142,3,"1,117.88",GAS,22/01/2015,,Technical And Service Support,Utilities
140925,CORONA ENERGY RETAIL 4 LTD,984812142,4,427.32,GAS,22/01/2015,,Technical And Service Support,Utilities
140925,CORONA ENERGY RETAIL 4 LTD,984812142,5,512.66,GAS,22/01/2015,,Technical And Service Support,Utilities
140925,CORONA ENERGY RETAIL 4 LTD,984812142,6,655.71,GAS,22/01/2015,,Technical And Service Support,Utilities
140925,CORONA ENERGY RETAIL 4 LTD,984812142,7,959.13,GAS,22/01/2015,,Technical And Service Support,Utilities
140925,CORONA ENERGY RETAIL 4 LTD,984812142,8,840.72,GAS,22/01/2015,,Technical And Service Support,Utilities
140925,CORONA ENERGY RETAIL 4 LTD,984812142,9,"1,497.77",GAS,22/01/2015,,Technical And Service Support,Utilities
140925,CORONA ENERGY RETAIL 4 LTD,984812142,10,391.42,GAS,22/01/2015,,Technical And Service Support,Utilities
140925,CORONA ENERGY RETAIL 4 LTD,984812142,11,"1,039.64",GAS,22/01/2015,,Technical And Service Support,Utilities
140925,CORONA ENERGY RETAIL 4 LTD,984812142,12,823.35,GAS,22/01/2015,,Technical And Service Support,Utilities
140925,CORONA ENERGY RETAIL 4 LTD,984812142,13,412.32,GAS,22/01/2015,,Technical And Service Support,Utilities
140925,CORONA ENERGY RETAIL 4 LTD,984812142,14,30.12,GAS,22/01/2015,,Technical And Service Support,Utilities
140925,CORONA ENERGY RETAIL 4 LTD,984812142,15,"1,668.85",GAS,22/01/2015,,Technical And Service Support,Utilities
140925,CORONA ENERGY RETAIL 4 LTD,984812142,16,56.04,GAS,22/01/2015,,Technical And Service Support,Utilities
140925,CORONA ENERGY RETAIL 4 LTD,984812142,17,648.7,GAS,22/01/2015,,Technical And Service Support,Utilities
140925,CORONA ENERGY RETAIL 4 LTD,984812142,18,910.56,GAS,22/01/2015,,Technical And Service Support,Utilities
140925,CORONA ENERGY RETAIL 4 LTD,984812142,19,264.13,GAS,22/01/2015,,Technical And Service Support,Utilities
140925,CORONA ENERGY RETAIL 4 LTD,984812142,20,598.24,GAS,22/01/2015,,Technical And Service Support,Utilities
140925,CORONA ENERGY RETAIL 4 LTD,984812142,21,736.01,GAS,22/01/2015,,Technical And Service Support,Utilities
140925,CORONA ENERGY RETAIL 4 LTD,984812142,22,"1,467.20",GAS,22/01/2015,,Technical And Service Support,Utilities
140925,CORONA ENERGY RETAIL 4 LTD,984812142,23,147.4,GAS,22/01/2015,,Technical And Service Support,Utilities
140925,CORONA ENERGY RETAIL 4 LTD,984812142,24,634.56,GAS,22/01/2015,,Technical And Service Support,Utilities
140925,CORONA ENERGY RETAIL 4 LTD,984812142,25,500.05,GAS,22/01/2015,,Technical And Service Support,Utilities
140925,CORONA ENERGY RETAIL 4 LTD,984812142,26,734.21,GAS,22/01/2015,,Technical And Service Support,Utilities
140925,CORONA ENERGY RETAIL 4 LTD,984812142,27,765.57,GAS,22/01/2015,,Technical And Service Support,Utilities
140925,CORONA ENERGY RETAIL 4 LTD,984812142,28,787.29,GAS,22/01/2015,,Technical And Service Support,Utilities
140925,CORONA ENERGY RETAIL 4 LTD,984812142,29,794.61,GAS,22/01/2015,,Technical And Service Support,Utilities
140925,CORONA ENERGY RETAIL 4 LTD,984812142,30,"1,090.68",GAS,22/01/2015,,Technical And Service Support,Utilities
140925,CORONA ENERGY RETAIL 4 LTD,984812142,31,964.73,GAS,22/01/2015,,Technical And Service Support,Utilities
140925,CORONA ENERGY RETAIL 4 LTD,984812142,32,796.69,GAS,22/01/2015,,Technical And Service Support,Utilities
140926,CORONA ENERGY RETAIL 4 LTD,984812143,1,82.7,GAS,22/01/2015,"32,430.17",Technical And Service Support,Utilities
140926,CORONA ENERGY RETAIL 4 LTD,984812143,2,959.59,GAS,22/01/2015,,Technical And Service Support,Utilities
140926,CORONA ENERGY RETAIL 4 LTD,984812143,3,461.41,GAS,22/01/2015,,Technical And Service Support,Utilities
140926,CORONA ENERGY RETAIL 4 LTD,984812143,4,"3,062.00",GAS,22/01/2015,,Technical And Service Support,Utilities
140926,CORONA ENERGY RETAIL 4 LTD,984812143,5,643.45,GAS,22/01/2015,,Technical And Service Support,Utilities
140926,CORONA ENERGY RETAIL 4 LTD,984812143,6,171.56,GAS,22/01/2015,,Technical And Service Support,Utilities
140926,CORONA ENERGY RETAIL 4 LTD,984812143,7,620.86,GAS,22/01/2015,,Technical And Service Support,Utilities
140926,CORONA ENERGY RETAIL 4 LTD,984812143,8,"1,509.43",GAS,22/01/2015,,Technical And Service Support,Utilities
140926,CORONA ENERGY RETAIL 4 LTD,984812143,9,910.89,GAS,22/01/2015,,Technical And Service Support,Utilities
140926,CORONA ENERGY RETAIL 4 LTD,984812143,10,984.71,GAS,22/01/2015,,Technical And Service Support,Utilities
140926,CORONA ENERGY RETAIL 4 LTD,984812143,11,"3,191.63",GAS,22/01/2015,,Technical And Service Support,Utilities
140926,CORONA ENERGY RETAIL 4 LTD,984812143,12,537.67,GAS,22/01/2015,,Technical And Service Support,Utilities
140926,CORONA ENERGY RETAIL 4 LTD,984812143,13,"1,644.07",GAS,22/01/2015,,Technical And Service Support,Utilities
140926,CORONA ENERGY RETAIL 4 LTD,984812143,14,437.45,GAS,22/01/2015,,Technical And Service Support,Utilities
140926,CORONA ENERGY RETAIL 4 LTD,984812143,15,"1,254.70",GAS,22/01/2015,,Technical And Service Support,Utilities
140926,CORONA ENERGY RETAIL 4 LTD,984812143,16,329.47,GAS,22/01/2015,,Technical And Service Support,Utilities
140926,CORONA ENERGY RETAIL 4 LTD,984812143,17,699.05,GAS,22/01/2015,,Technical And Service Support,Utilities
140926,CORONA ENERGY RETAIL 4 LTD,984812143,18,653.01,GAS,22/01/2015,,Technical And Service Support,Utilities
140926,CORONA ENERGY RETAIL 4 LTD,984812143,19,"1,132.69",GAS,22/01/2015,,Technical And Service Support,Utilities
140926,CORONA ENERGY RETAIL 4 LTD,984812143,20,674.4,GAS,22/01/2015,,Technical And Service Support,Utilities
140926,CORONA ENERGY RETAIL 4 LTD,984812143,21,"2,200.76",GAS,22/01/2015,,Technical And Service Support,Utilities
140926,CORONA ENERGY RETAIL 4 LTD,984812143,22,787.96,GAS,22/01/2015,,Technical And Service Support,Utilities
140926,CORONA ENERGY RETAIL 4 LTD,984812143,23,949.31,GAS,22/01/2015,,Technical And Service Support,Utilities
140926,CORONA ENERGY RETAIL 4 LTD,984812143,24,709.34,GAS,22/01/2015,,Technical And Service Support,Utilities
140926,CORONA ENERGY RETAIL 4 LTD,984812143,25,"1,492.08",GAS,22/01/2015,,Technical And Service Support,Utilities
140926,CORONA ENERGY RETAIL 4 LTD,984812143,26,626.97,GAS,22/01/2015,,Technical And Service Support,Utilities
140926,CORONA ENERGY RETAIL 4 LTD,984812143,27,752.86,GAS,22/01/2015,,Technical And Service Support,Utilities
140926,CORONA ENERGY RETAIL 4 LTD,984812143,28,688.65,GAS,22/01/2015,,Technical And Service Support,Utilities
140926,CORONA ENERGY RETAIL 4 LTD,984812143,29,780.73,GAS,22/01/2015,,Technical And Service Support,Utilities
140926,CORONA ENERGY RETAIL 4 LTD,984812143,30,"1,420.67",GAS,22/01/2015,,Technical And Service Support,Utilities
140926,CORONA ENERGY RETAIL 4 LTD,984812143,31,"2,060.10",GAS,22/01/2015,,Technical And Service Support,Utilities
140927,CORONA ENERGY RETAIL 4 LTD,984812144,1,980.21,GAS,22/01/2015,"24,274.06",Technical And Service Support,Utilities
140927,CORONA ENERGY RETAIL 4 LTD,984812144,2,413.7,GAS,22/01/2015,,Technical And Service Support,Utilities
140927,CORONA ENERGY RETAIL 4 LTD,984812144,3,"1,273.99",GAS,22/01/2015,,Technical And Service Support,Utilities
140927,CORONA ENERGY RETAIL 4 LTD,984812144,4,814.67,GAS,22/01/2015,,Technical And Service Support,Utilities
140927,CORONA ENERGY RETAIL 4 LTD,984812144,5,599.44,GAS,22/01/2015,,Technical And Service Support,Utilities
140927,CORONA ENERGY RETAIL 4 LTD,984812144,6,"3,541.96",GAS,22/01/2015,,Technical And Service Support,Utilities
140927,CORONA ENERGY RETAIL 4 LTD,984812144,7,885.49,GAS,22/01/2015,,Technical And Service Support,Utilities
140927,CORONA ENERGY RETAIL 4 LTD,984812144,8,71.61,GAS,22/01/2015,,Technical And Service Support,Utilities
140927,CORONA ENERGY RETAIL 4 LTD,984812144,9,"1,143.20",GAS,22/01/2015,,Technical And Service Support,Utilities
140927,CORONA ENERGY RETAIL 4 LTD,984812144,10,"1,015.15",GAS,22/01/2015,,Technical And Service Support,Utilities
140927,CORONA ENERGY RETAIL 4 LTD,984812144,11,"2,040.60",GAS,22/01/2015,,Technical And Service Support,Utilities
140927,CORONA ENERGY RETAIL 4 LTD,984812144,12,633.38,GAS,22/01/2015,,Technical And Service Support,Utilities
140927,CORONA ENERGY RETAIL 4 LTD,984812144,13,9.3,GAS,22/01/2015,,Technical And Service Support,Utilities
140927,CORONA ENERGY RETAIL 4 LTD,984812144,14,799.06,GAS,22/01/2015,,Technical And Service Support,Utilities
140927,CORONA ENERGY RETAIL 4 LTD,984812144,15,"1,016.99",GAS,22/01/2015,,Technical And Service Support,Utilities
140927,CORONA ENERGY RETAIL 4 LTD,984812144,16,538.27,GAS,22/01/2015,,Technical And Service Support,Utilities
140927,CORONA ENERGY RETAIL 4 LTD,984812144,17,74.57,GAS,22/01/2015,,Technical And Service Support,Utilities
140927,CORONA ENERGY RETAIL 4 LTD,984812144,18,668.32,GAS,22/01/2015,,Technical And Service Support,Utilities
140927,CORONA ENERGY RETAIL 4 LTD,984812144,19,492.3,GAS,22/01/2015,,Technical And Service Support,Utilities
140927,CORONA ENERGY RETAIL 4 LTD,984812144,20,881.83,GAS,22/01/2015,,Technical And Service Support,Utilities
140927,CORONA ENERGY RETAIL 4 LTD,984812144,21,634.56,GAS,22/01/2015,,Technical And Service Support,Utilities
140927,CORONA ENERGY RETAIL 4 LTD,984812144,22,"1,691.22",GAS,22/01/2015,,Technical And Service Support,Utilities
